{"text_format":"1","workbook":"xlsx","n_sheets":27,"sheets":["INICIO","DEFINICIÓN","FORMULARIO DEFINICIÓN","RESULTADOS DEFINICIÓN","RIESGOS","INSTRUCCIONES RIESGOS","Caso 1","Caso 2","Caso 3","Caso 4","Caso 5","Caso 6","Hoja1","Valos Ganado","DESEMPEÑO","RESULTADOS DESEMPEÑO","SATISFACCIÓN","SATISFACCIÓN DEL CLIENTE","Hoja3","RESULTADOS SATISFACCIÓN","MOTIVACIÓN","MOTIVACIÓN DEL EQUIPO","MOTIVACIÓN 1","MOTIVACIÓN 2","MOTIVACIÓN 3","RESULTADOS MOTIVACIÓN","RESULTADOS GLOBALES"],"not_rendered":{"charts":8,"images":8,"macros":1,"external_links":0,"defined_names":25,"comments":0,"pivot_tables":0},"unopened":[],"bounds":{"document_bytes":16777216,"sheet_cells":100000,"rows_first":2000,"rows_last":500,"rows_between":2000,"halvings":0,"cell_chars":16384,"cell_head_chars":4096},"cells_cut":0,"cells_raw":0,"read":"whole","date_system":"1900"}

{"sheet":"INICIO","index":0,"n_rows":30,"n_cols":13,"rows_kept":30,"cut":false,"hidden":false,"merged":[[14,3,16,6],[8,4,8,6],[6,4,6,6],[2,2,4,7]]}
[]
[]
[]
[]
[]
[]
[null,null,null,"Proyecto:","PROYECTO XXXXXXX XXXXXXXXXXXX"]
[]
[null,null,null,"Empresa:","EMPRESA XXXXXXXXXXX XXXXXXXXXXX"]
[]
[null,null,null,"Fecha inicio:","1900-01-01","Fecha estimada de fin:","1901-01-01"]
[]
[null,null,null,"Fecha de diagnóstico:","XX/XX/XXXX"]
[]
[]
[]
[]
[null,null,null,null,null,null,null,null,null,null,null,null,0]
[null,null,null,null,null,null,null,null,null,null,null,null,1]
[null,null,null,null,null,null,null,null,null,null,null,null,2]
[null,null,null,null,null,null,null,null,null,null,null,null,3]
[null,null,null,null,null,null,null,null,null,null,null,null,4]
[null,null,null,null,null,null,null,null,null,null,null,null,5]
[]
[]
[]
[]
[null,null,null,"DESARROLLADO POR:  ","Carolina Barrero Vélez","Ingeniera Electricistra"]
[null,null,null,null,"Diego Mauricio Sarmiento","Ingeniero Civil"]
[null,null,null,null,"Lina María Silva Rodriguez","Ingeniera Electricista","AGOSTO 2015"]

{"sheet":"DEFINICIÓN","index":1,"n_rows":37,"n_cols":16,"rows_kept":37,"cut":false,"hidden":true,"merged":[[35,3,35,4],[36,3,36,9],[6,3,7,9],[9,3,10,9],[2,2,4,10]]}
[]
[]
[]
[]
[]
[]
[null,null,null,"A continuación se solicitará que según las políticas de su compañía o para el tipo específico de proyecto que desee evaluar diligencie el peso (porcentualmente) que cada una de la áreas debe tener dentro de la evaluación."]
[]
[]
[null,null,null,"Adicionalmente para cada una de las áreas de conocimiento debe seleccionar cual es el nivel de definición (En una escala de uno (1) a cinco (5)) que en su compañía se considera aceptable para un proyecto en étapa de EJECUCIÓN. (En caso de asignar un peso de cero a una o varias de las áreas, es indiferente seleccionar o no un nivel de aceptación)"]
[]
[]
[null,null,null,null,null,null,"PESO (100%)",null,"NIVEL DE ACEPTACIÓN"]
[]
[null,null,null,"1.   Integración",null,null,0.1,null,5,null,null,null,null,null,null,0]
[null,null,null,null,null,null,null,null,null,null,null,null,null,null,null,1]
[null,null,null,"2.   Alcance",null,null,0.1,null,5,null,null,null,null,null,null,2]
[null,null,null,null,null,null,null,null,null,null,null,null,null,null,null,3]
[null,null,null,"3.   Tiempo",null,null,0.1,null,5,null,null,null,null,null,null,4]
[null,null,null,null,null,null,null,null,null,null,null,null,null,null,null,5]
[null,null,null,"4.   Costos",null,null,0.1,null,5]
[]
[null,null,null,"5.   Calidad",null,null,0.1,null,5]
[]
[null,null,null,"6.   Riesgos",null,null,0.1,null,5]
[]
[null,null,null,"7.   Stakeholders",null,null,0.1,null,5]
[]
[null,null,null,"8.   Comunicaciones",null,null,0.1,null,5]
[]
[null,null,null,"9.   Adquisiciones",null,null,0.1,null,5]
[]
[null,null,null,"10. Recursos Humanos",null,null,0.1,null,5]
[]
[]
[null,null,null,"TOTAL",null,null,{"$f":"+SUM(G15,G17,G19,G21,G23,G25,G27,G29,G31,G33)","v":0.99999999999999989},null,{"$f":"+(G15*I15+G17*I17+G19*I19+G21*I21+G23*I23+G25*I25+G27*I27+G29*I29+G31*I31+G33*I33)","v":5}]
[null,null,null,{"$f":"IF(SUM($G$15,$G$17,$G$19,$G$21,$G$23,$G$25,$G$27,$G$29,$G$31,$G$33)=100%,\"\",\"Por favor verifique que la suma de 100%\")","v":""}]

{"sheet":"FORMULARIO DEFINICIÓN","index":2,"n_rows":276,"n_cols":26,"rows_kept":276,"cut":false,"hidden":true,"merged":[[58,8,58,13],[22,8,22,13],[24,8,24,13],[26,8,26,13],[28,8,28,13],[30,8,30,13],[46,8,46,13],[48,8,48,13],[50,8,50,13],[54,8,54,13],[56,8,56,13],[36,8,36,13],[38,8,38,13],[40,8,40,13],[42,8,42,13],[44,8,44,13],[5,3,7,18],[10,16,10,18],[12,8,12,13],[14,8,14,13],[16,8,16,13],[18,8,18,13],[20,8,20,13],[25,8,25,13],[2,2,4,19],[60,8,60,13],[64,8,64,13],[99,8,99,13],[101,8,101,13],[103,8,103,13],[75,12,76,12],[75,10,76,10],[74,8,74,13],[72,8,72,13],[68,8,68,13],[177,8,177,13],[119,8,119,13],[121,8,121,13],[125,8,125,13],[127,8,127,13],[105,8,105,13],[107,8,107,13],[109,8,109,13],[113,8,113,13],[117,8,117,13],[123,8,123,13],[161,8,161,13],[163,8,163,13],[165,8,165,13],[129,8,129,13],[131,8,131,13],[143,8,143,13],[145,8,145,13],[139,8,139,13],[133,8,133,13],[201,8,201,13],[203,8,203,13],[181,8,181,13],[191,8,191,13],[193,8,193,13],[195,8,195,13],[271,8,271,13],[255,8,255,13],[261,8,261,13],[265,8,265,13],[267,8,267,13],[259,8,259,13],[257,8,257,13],[263,8,263,13],[233,8,233,13],[235,8,235,13],[237,8,237,13],[245,8,245,13],[253,8,253,13],[239,8,239,13],[183,8,183,13],[275,8,275,13],[249,8,249,13],[205,8,205,13],[207,8,207,13],[209,8,209,13],[211,8,211,13],[213,8,213,13],[215,8,215,13],[217,8,217,13],[219,8,219,13],[221,8,221,13],[223,8,223,13],[227,8,227,13],[231,8,231,13],[229,8,229,13],[241,8,241,13],[247,8,247,13],[243,8,243,13],[77,17,95,17],[153,8,153,13],[269,8,269,13],[273,8,273,13],[97,8,97,13],[62,8,62,13],[70,8,70,13],[115,8,115,13],[147,8,147,13],[135,8,135,13],[141,8,141,13],[151,8,151,13],[155,8,155,13],[157,8,157,13],[149,8,149,13],[167,8,167,13],[199,8,199,13],[169,8,169,13],[171,8,171,13],[173,8,173,13],[175,8,175,13],[185,8,185,13],[187,8,187,13],[189,8,189,13]]}
[]
[]
[]
[]
[]
[null,null,null,"Califique cada uno de los aspecto a continuación entre cero (0) y cinco (5) siendo cinco (5) el puntaje ideal que representará en el resultado un nivel de definición óptimo y cero (0) el caso en que no aplica para el proyecto."]
[]
[null,null,null,null,null,null,null,null,null,null,null,null,null,null,null,null,null,null,null,null,null,null,null,null,null,0]
[null,null,null,null,null,null,null,null,null,null,null,null,null,null,null,null,null,null,null,null,null,null,null,null,null,1]
[null,null,null,null,null,null,null,null,null,null,null,null,null,null,null,null,null,null,null,null,null,null,null,null,null,2]
[null,null,null,"1.",null,null,"DEFINICIÓN DE INTEGRACIÓN DEL PROYECTO",null,null,null,null,null,null,null,null,"CALIFICACIÓN","OBSERVACIONES",null,null,null,null,null,null,null,null,3]
[null,null,null,null,null,null,null,null,null,null,null,null,null,null,null,null,null,null,null,null,null,null,null,null,null,4]
[null,null,null,null,"1.1.",null,null,null,"Se elaboró y firmó el acta de constitución, con la cual se dio inicio formal al proyecto y se nombró al gerente del mismo.",null,null,null,null,null,null,null,null,null,null,null,null,null,null,null,null,5]
[]
[null,null,null,null,"1.2.",null,null,null,"Se definió formalmente el propósito que dio origen al desarrollo del proyecto."]
[]
[null,null,null,null,"1.3.",null,null,null,"Están definidos los objetivos del proyecto y la forma en que el cumplimiento de los mismos contribuyen al cumplimiento de los objetivos estratégicos de la compañía."]
[]
[null,null,null,null,"1.4.",null,null,null,"Se definieron los criterios de éxito para el proyecto directamente relacionados con el cumplimiento de los objetivos del proyecto."]
[]
[null,null,null,null,"1.5.",null,null,null,"Se designó al responsable del proyecto, cuyo nivel de autoridad y  aval para usar los recursos de la organización fue establecido por el patrocinador del proyecto."]
[]
[null,null,null,null,"1.6.",null,null,null,"Se elaboró el plan de gerencia del proyecto, que incluye de forma integrada todos los planes secundarios."]
[]
[null,null,null,null,"1.7.",null,null,null,"El plan de gerencia incluye el procedimiento para dirigir y gestionar el trabajo del proyecto."]
[]
[null,null,null,null,"1.8.",null,null,null,"Se definió el proceso para monitorear y controlar el avance del proyecto, a fin de cumplir con los objetivos de desempeño definidos anteriormente. "]
[]
[null,null,null,null,"1.9.",null,null,null,"Existe un procedimiento formalmente aprobado para el control de cambios durante desarrollo del proyecto."]
[]
[null,null,null,null,"1.10.",null,null,null,"Se  cuenta con un procedimiento para el cierre del proyecto, la entrega de los productos y la documentación final del proyecto."]
[]
[null,null,null,"2.",null,null,"DEFINICIÓN DEL ALCANCE"]
[]
[null,null,null,null,"2.1.",null,null,"Producto"]
[]
[null,null,null,null,null,"2.1.1.",null,null,"Los entregables están definidos."]
[]
[null,null,null,null,null,"2.1.2.",null,null,"Existe un documento formal (declaración de alcance) en el que se describe cada uno de los entregables y el trabajo necesario para desarrollar cada uno de ellos."]
[]
[null,null,null,null,null,"2.1.3.",null,null,"Se realizó un levantamiento completo de los requerimientos del producto del proyecto."]
[]
[null,null,null,null,null,"2.1.4.",null,null,"Se definieron los criterios de aceptación de los entregables del proyecto."]
[]
[null,null,null,null,null,"2.1.5.",null,null,"Se definieron las especificaciones para los entregables del proyecto."]
[]
[null,null,null,null,null,"2.1.6.",null,null,"El producto se definió en cuanto a sus características técnicas (diseño) de una manera clara y evolutiva según el desarrollo del proyecto."]
[]
[null,null,null,null,null,"2.1.7.",null,null,"Se cuenta con un plan de gestión que permita realizar cambios en el producto del proyecto cuando un cambio en el alcance del proyecto lo requiera."]
[]
[null,null,null,null,null,"2.1.8.",null,null,"Existe una lista de exclusiones claramente establecidas para el alcance del producto del proyecto."]
[]
[null,null,null,null,"2.2.",null,null,"Proyecto"]
[]
[null,null,null,null,null,"2.2.1.",null,null,"Se elaboró el plan de gestión de alcance para el proyecto."]
[]
[null,null,null,null,null,"2.2.2.",null,null,"Se estableció un procedimiento para comparar periódicamente la línea base de alcance con el desempeño real del proyecto."]
[]
[null,null,null,null,null,"2.2.3.",null,null,"Se definieron  supuestos y restricciones para el desarrollo del proyecto."]
[]
[null,null,null,null,null,"2.2.4.",null,null,"Se definió una estructura de desglose del trabajo (WBS) para realizar todo el trabajo definido en el alcance del proyecto."]
[]
[null,null,null,null,null,"2.2.5.",null,null,"Se elaboró el diccionario de la WBS."]
[]
[null,null,null,null,null,"2.2.6.",null,null,"Se definieron los recursos necesarios para la gestión de alcance del proyecto."]
[]
[null,null,null,"3.",null,null,"DEFINICIÓN DEL TIEMPO"]
[]
[null,null,null,null,"3.1.",null,null,null,"Se elaboró el plan de gestión del cronograma para el proyecto."]
[]
[null,null,null,null,"3.2.",null,null,null,"Se elaboró el cronograma detallado del proyecto."]
[]
[null,null,null,null,"3.3.",null,null,null,"Se definió de forma específica cada una de las actividades necesarias para el desarrollo del proyecto."]
[]
[null,null,null,null,"3.4.",null,null,null,"Se establecieron los siguientes atributos para las actividades propuestas."]
[null,null,null,null,null,null,null,null,"(Marque con una X según corresponda)",null,"SI",null,"NO"]
[]
[null,null,null,null,null,null,null,null,"•   ","Codificación"]
[]
[null,null,null,null,null,null,null,null,"•   ","Fecha de inicio"]
[]
[null,null,null,null,null,null,null,null,"•   ","Fecha de terminación"]
[]
[null,null,null,null,null,null,null,null,"•   ","Peso (Importancia)"]
[]
[null,null,null,null,null,null,null,null,"•   ","Predecesoras"]
[]
[null,null,null,null,null,null,null,null,"•   ","Sucesoras"]
[]
[null,null,null,null,null,null,null,null,"•   ","Recursos"]
[]
[null,null,null,null,null,null,null,null,"•   ","Inicio temprano"]
[]
[null,null,null,null,null,null,null,null,"•   ","Inicio tardío"]
[]
[null,null,null,null,null,null,null,null,"•   ","Responsable "]
[]
[null,null,null,null,"3.5.",null,null,null,"Se realizó un diagrama de red para definir la secuenciación de las actividades."]
[]
[null,null,null,null,"3.6.",null,null,null,"Se identificó y analizó la ruta critica del proyecto"]
[]
[null,null,null,null,"3.7.",null,null,null,"Se establecieron los hitos del proyecto (puntos de control de la terminación de actividades importantes)"]
[]
[null,null,null,null,"3.8.",null,null,null,"Se estimaron los recursos necesarios para llevar a cabo cada actividad del proyecto."]
[]
[null,null,null,null,"3.9.",null,null,null,"Se estimó la duración de cada una de las actividades del proyecto."]
[]
[null,null,null,null,"3.10.",null,null,null,"Se definió la línea base del cronograma que permite hacer seguimiento y control al proyecto."]
[]
[null,null,null,null,"3.11.",null,null,null,"Se definieron los recursos necesarios para la gestión del cronograma del proyecto."]
[]
[null,null,null,"4.",null,null,"DEFINICIÓN DE LOS COSTOS"]
[]
[null,null,null,null,"4.1.",null,null,null,"Se definió el plan de gestión de costos del proyecto."]
[]
[null,null,null,null,"4.2.",null,null,null,"Se estimaron los recursos necesarios para la realización de las actividades"]
[]
[null,null,null,null,"4.3.",null,null,null,"Las estimaciones de costos se realizaron con el nivel de exactitud y precisión definido por la organización."]
[]
[null,null,null,null,"4.4.",null,null,null,"Se cuenta en la compañía con una base documental de referencia para la estimación de costos."]
[]
[null,null,null,null,"4.5.",null,null,null,"Se definieron los procedimientos para la medición del desempeño de los costos.."]
[]
[null,null,null,null,"4.6.",null,null,null,"Se elaboraron los formatos de los informes de gestión de costos del proyecto"]
[]
[null,null,null,null,"4.7.",null,null,null,"El plan de gestión de costos incluye el procedimiento para  el registro de los costos del proyecto."]
[]
[null,null,null,null,"4.8.",null,null,null,"Se cuenta con un presupuesto para el proyecto definido por actividades y enlazado al cronograma."]
[]
[null,null,null,null,"4.9.",null,null,null,"Dentro del presupuesto estimado para el proyecto se cuenta con una reserva de gerencia establecida con aprobación del sponsor del proyecto."]
[]
[null,null,null,null,"4.10.",null,null,null,"Dentro del presupuesto estimado para el proyecto se cuenta con una reserva de contingencia establecida con aprobación del sponsor del proyecto para gestionar la ocurrencia de riesgos."]
[]
[null,null,null,null,"4.11.",null,null,null,"Se estableció el uso de métricas de Valor ganado (Earned Value) para la gestión de los costos con una periodicidad claramente definida."]
[]
[null,null,null,null,"4.12.",null,null,null,"Se definieron los recursos necesarios para la gestión de costos del proyecto."]
[]
[null,null,null,"5.",null,null,"DEFINICIÓN DE CALIDAD"]
[]
[null,null,null,null,"5.1.",null,null,null,"Se identificaron los requisitos y/o estándares de calidad para el proyecto y sus entregables."]
[]
[null,null,null,null,"5.2.",null,null,null,"Se elaboró el plan de gestión de calidad  del proyecto para los procesos de dirección del proyecto y el producto."]
[]
[null,null,null,null,"5.3.",null,null,null,"El plan de gestión de calidad incluye los procedimientos para asegurar la calidad del proyecto."]
[]
[null,null,null,null,"5.4.",null,null,null,"El plan de gestión de calidad incluye los procedimientos para controlar la calidad del proyecto."]
[]
[null,null,null,null,"5.5.",null,null,null,"Se definieron las herramientas de gestión y control de calidad a utilizar en el proyecto."]
[]
[null,null,null,null,"5.6.",null,null,null,"Se definió el propósito y la frecuencia de aplicación de auditorias internas de calidad."]
[]
[null,null,null,null,"5.7.",null,null,null,"Se estableció el plan de mejoras del proceso, el cual incluye los pasos para analizar los procesos e identificar las actividades que generan valor para el proyecto."]
[]
[null,null,null,null,"5.8.",null,null,null,"Se definieron las métricas de calidad a ser utilizadas en el proyecto."]
[]
[null,null,null,null,"5.9.",null,null,null,"Se definieron las listas de verificación ( o listas de control de calidad) que incorporan los criterios de aceptación incluidos en la línea base de alcance."]
[]
[null,null,null,null,"5.10.",null,null,null,"Se definieron los recursos necesarios para gestionar la calidad del proyecto."]
[]
[null,null,null,"6.",null,null,"DEFINICIÓN DE RIESGOS"]
[]
[null,null,null,null,"6.1.",null,null,null,"Se realizó un proceso de identificación de riesgos para el desarrollo del proyecto."]
[]
[null,null,null,null,"6.2.",null,null,null,"Se realizó un proceso de medición de impacto y probabilidad de los riesgos identificados, de forma cualitativa o cuantitativa según la complejidad del proyecto lo amerite."]
[]
[null,null,null,null,"6.3.",null,null,null,"Se plantearon estrategias y acciones claras para responder ante la ocurrencia de un riesgo identificado."]
[]
[null,null,null,null,"6.4.",null,null,null,"Se tiene una estrategia de respuesta ante riesgos desconocidos (imprevistos), como la constitución de una reserva de contingencias."]
[]
[null,null,null,null,"6.5.",null,null,null,"Se definió un plan de gestión de los riesgos formal para el proyecto que incluye los aspectos arriba definidos."]
[]
[null,null,null,null,"6.6.",null,null,null,"Los niveles de tolerancia al riesgo del proyecto se establecieron mediante información proveniente de los stakeholders afectados ante la ocurrencia de los riesgos definidos."]
[]
[null,null,null,null,"6.7.",null,null,null,"Se realizó una estructura de desglose del riesgo definiendo en detalle la exposición del proyecto a cada uno de los riesgos y las fuentes de los mismos."]
[]
[null,null,null,null,"6.8.",null,null,null,"Se incluyeron en las líneas base de costos y tiempo las acciones de mitigación de los riesgos identificadas."]
[]
[null,null,null,null,"6.9.",null,null,null,"Se constituyó una reserva de contingencia dentro del presupuesto del proyecto para la gestión de los riesgos y un procedimiento para la gestión de dicha reserva."]
[]
[null,null,null,"7.",null,null,"DEFINICIÓN DE STAKEHOLDERS"]
[]
[null,null,null,null,"7.1.",null,null,null,"Se llevó a cabo la identificación de los interesados del proyecto, que incluye sus expectativas y requerimientos del proyecto."]
[]
[null,null,null,null,"7.2.",null,null,null,"Se realizó el plan de gestión de stakeholders del proyecto."]
[]
[null,null,null,null,"7.3.",null,null,null,"Se definieron los niveles de participación actual y deseado de los interesados clave."]
[]
[null,null,null,null,"7.4.",null,null,null,"Se definió el alcance e impacto del cambio para los interesados."]
[]
[null,null,null,null,"7.5.",null,null,null,"Se definieron  las interrelaciones y posible superposición entre interesados que se hayan identificado."]
[]
[null,null,null,null,"7.6.",null,null,null,"Se definió el impacto esperado en la participación de los interesados de acuerdo al plan de comunicaciones."]
[]
[null,null,null,null,"7.7.",null,null,null,"Se definió el método para actualizar y refinar el plan de gestión de los interesados."]
[]
[null,null,null,null,"7.8.",null,null,null,"Se definieron los recursos necesarios para la gestión de interesados del proyecto."]
[]
[null,null,null,"8.",null,null,"DEFINICIÓN DE COMUNICACIONES"]
[]
[null,null,null,null,"8.1.",null,null,null,"Se definió el plan de gestión de las comunicaciones."]
[]
[null,null,null,null,"8.2.",null,null,null,"Se realizó la identificación de requerimientos de comunicación entre los diferentes stakeholders del proyecto."]
[]
[null,null,null,null,"8.3.",null,null,null,"Se definió la información que debe ser comunicada a cada stakeholder."]
[]
[null,null,null,null,"8.4.",null,null,null,"Se definió el plazo y la frecuencia para la distribución de la información requerida y para la recepción de la respuesta correspondiente."]
[]
[null,null,null,null,"8.5.",null,null,null,"Se definieron los responsables de comunicar la información."]
[]
[null,null,null,null,"8.6.",null,null,null,"Se definió la persona responsable de autorizar la divulgación de información confidencial."]
[]
[null,null,null,null,"8.7.",null,null,null,"Se definieron las personas o grupos que recibirán la información."]
[]
[null,null,null,null,"8.8.",null,null,null,"Se definieron los métodos o tecnologías utilizados para transmitir la información."]
[]
[null,null,null,null,"8.9.",null,null,null,"Se definieron los recursos necesarios para la gestión de comunicaciones del proyecto."]
[]
[null,null,null,null,"8.10.",null,null,null,"Se definió  el método para actualizar y refinar el plan de gestión de las comunicaciones."]
[]
[null,null,null,null,"8.11.",null,null,null,"Se elaboraron diagramas de flujo de la información que circula dentro del proyecto y los flujos de trabajo con la posible secuencia de autorizaciones."]
[]
[null,null,null,null,"8.12.",null,null,null,"Se definieron las restricciones de comunicación del proyecto."]
[]
[null,null,null,null,"8.13.",null,null,null,"Se elaboraron las plantillas para las reuniones y los mensajes de correo electrónico."]
[]
[null,null,null,"9.",null,null,"DEFINICIÓN DE ADQUISICIONES"]
[]
[null,null,null,null,"9.1.",null,null,null,"Se identificaron las necesidades del proyecto que pueden ser suplidas mediante la adquisición de bienes o servicios. "]
[]
[null,null,null,null,"9.2.",null,null,null,"Se definió el plan de gestión de adquisiciones del proyecto."]
[]
[null,null,null,null,"9.3.",null,null,null,"Se realizó el análisis \"Hacer o Comprar\" con el fin de establecer la mejor alternativa entre hacerlo en casa vs contratarlo y administrar el contrato. "]
[]
[null,null,null,null,"9.4.",null,null,null,"Se definieron los criterios de selección o  caracteristicas que deben tener los proveedores para cubrir las necesidades del proyecto."]
[]
[null,null,null,null,"9.5.",null,null,null,"Se definieron y socializaron los tipos de contrato para cada tipo de compra necesaria para el desarrollo del proyecto."]
[]
[null,null,null,null,"9.6.",null,null,null,"Se definieron los documentos a usar durante la solicitud de propuestas y selección de proveedores."]
[]
[null,null,null,null,"9.7.",null,null,null,"Se establecieron los procedimientos y políticas de la organización para la gestión de adquisiciones."]
[]
[null,null,null,null,"9.8.",null,null,null,"Se elaboró el cronograma de adquisiciones para cada entregable del proyecto."]
[]
[null,null,null,null,"9.9.",null,null,null,"Se definieron las características y las cantidades de lo que se va adquirir para el desarrollo de cada entregable."]
[]
[null,null,null,null,"9.10.",null,null,null,"Se definieron las garantías a exigir como parte del plan de gestión de adquisiciones."]
[]
[null,null,null,null,"9.11.",null,null,null,"Se establecieron las métricas a utilizar para gestionar los contratos y evaluar los proveedores."]
[]
[null,null,null,null,"9.12.",null,null,null,"Se definieron los recursos necesarios para la gestión de adquisiciones del proyecto."]
[]
[null,null,null,"10.",null,null,"DEFINICIÓN DE RECURSOS HUMANOS"]
[]
[null,null,null,null,"10.1.",null,null,null,"Se desarrolló el plan de recursos humanos para el proyecto."]
[]
[null,null,null,null,"10.2.",null,null,null,"Los roles y responsabilidades requeridos por el proyecto fueron identificados y documentados (Matriz RAM)."]
[]
[null,null,null,null,"10.3.",null,null,null,"La habilidades que deben poseer los integrantes del equipo de trabajo del proyecto fueron definidas"]
[]
[null,null,null,null,"10.4.",null,null,null,"Se desarrollaron el organigrama y la descripción de cargos del proyecto."]
[]
[null,null,null,null,"10.5.",null,null,null,"Las relaciones de comunicación entre el personal del proyecto fueron definidas y documentadas."]
[]
[null,null,null,null,"10.6.",null,null,null,"Cada actividad del proyecto tiene un único responsable, de manera que no hay actividades sin responsable asignado."]
[]
[null,null,null,null,"10.7.",null,null,null,"El plan de gestión de recursos humanos incluye un plan detallado de adquisición de personal."]
[]
[null,null,null,null,"10.8.",null,null,null,"Se definió y documentó un plan de capacitación para los recursos humanos del proyecto."]
[]
[null,null,null,null,"10.9.",null,null,null,"Se definió y socializó un programa de reconocimiento y recompensas destinado a motivar a los integrantes del equipo de trabajo del proyecto."]
[]
[null,null,null,null,"10.10.",null,null,null,"Las herramientas para la evaluación del personal fueron definidas inicialmente."]
[]
[null,null,null,null,"10.11.",null,null,null,"El plan de gestión de recursos humanos incluye el cronograma de contratación y liberación de recursos humanos del proyecto."]
[]
[null,null,null,null,"10.12.",null,null,null,"Se definieron los recursos necesarios para la gestión de recursos humanos del proyecto."]

{"sheet":"RESULTADOS DEFINICIÓN","index":3,"n_rows":279,"n_cols":24,"rows_kept":279,"cut":false,"hidden":true,"merged":[[2,2,5,23],[8,6,8,9],[6,2,7,5],[12,8,12,13],[14,8,14,13],[16,8,16,13],[18,8,18,13],[6,15,7,15],[6,14,7,14],[6,6,7,9],[6,16,7,16],[6,22,6,23],[6,17,6,18],[103,8,103,13],[69,8,69,13],[71,8,71,13],[73,8,73,13],[105,8,105,13],[107,8,107,13],[143,8,143,13],[145,8,145,13],[147,8,147,13],[139,8,139,13],[141,8,141,13],[140,8,140,13],[121,8,121,13],[123,8,123,13],[125,8,125,13],[127,8,127,13],[109,8,109,13],[113,8,113,13],[115,8,115,13],[117,8,117,13],[119,8,119,13],[112,8,112,13],[114,8,114,13],[116,8,116,13],[40,8,40,13],[42,8,42,13],[50,8,50,13],[54,8,54,13],[56,8,56,13],[58,8,58,13],[60,8,60,13],[62,8,62,13],[20,8,20,13],[22,8,22,13],[24,8,24,13],[25,8,25,13],[44,8,44,13],[46,8,46,13],[48,8,48,13],[26,8,26,13],[28,8,28,13],[30,8,30,13],[36,8,36,13],[38,8,38,13],[39,8,39,13],[41,8,41,13],[43,8,43,13],[45,8,45,13],[118,8,118,13],[177,8,177,13],[181,8,181,13],[183,8,183,13],[185,8,185,13],[187,8,187,13],[186,8,186,13],[167,8,167,13],[169,8,169,13],[171,8,171,13],[173,8,173,13],[175,8,175,13],[172,8,172,13],[174,8,174,13],[130,8,130,13],[132,8,132,13],[134,8,134,13],[138,8,138,13],[120,8,120,13],[122,8,122,13],[124,8,124,13],[126,8,126,13],[128,8,128,13],[131,8,131,13],[207,8,207,13],[209,8,209,13],[211,8,211,13],[213,8,213,13],[215,8,215,13],[189,8,189,13],[191,8,191,13],[193,8,193,13],[195,8,195,13],[199,8,199,13],[198,8,198,13],[201,8,201,13],[203,8,203,13],[205,8,205,13],[245,8,245,13],[247,8,247,13],[229,8,229,13],[231,8,231,13],[233,8,233,13],[235,8,235,13],[237,8,237,13],[217,8,217,13],[219,8,219,13],[221,8,221,13],[223,8,223,13],[227,8,227,13],[226,8,226,13],[239,8,239,13],[241,8,241,13],[243,8,243,13],[47,8,47,13],[271,8,271,13],[273,8,273,13],[275,8,275,13],[11,8,11,13],[13,8,13,13],[15,8,15,13],[17,8,17,13],[19,8,19,13],[21,8,21,13],[23,8,23,13],[27,8,27,13],[29,8,29,13],[33,8,33,13],[35,8,35,13],[37,8,37,13],[261,8,261,13],[263,8,263,13],[265,8,265,13],[267,8,267,13],[102,8,102,13],[104,8,104,13],[106,8,106,13],[108,8,108,13],[59,8,59,13],[61,8,61,13],[63,8,63,13],[67,8,67,13],[49,8,49,13],[51,8,51,13],[53,8,53,13],[55,8,55,13],[57,8,57,13],[97,8,97,13],[99,8,99,13],[101,8,101,13],[96,8,96,13],[98,8,98,13],[100,8,100,13],[64,8,64,13],[68,8,68,13],[70,8,70,13],[72,8,72,13],[74,8,74,13],[133,8,133,13],[135,8,135,13],[129,8,129,13],[170,8,170,13],[152,8,152,13],[154,8,154,13],[156,8,156,13],[160,8,160,13],[279,2,281,23],[188,8,188,13],[190,8,190,13],[192,8,192,13],[194,8,194,13],[176,8,176,13],[180,8,180,13],[182,8,182,13],[184,8,184,13],[269,8,269,13],[249,8,249,13],[253,8,253,13],[255,8,255,13],[257,8,257,13],[259,8,259,13],[252,8,252,13],[142,8,142,13],[144,8,144,13],[146,8,146,13],[148,8,148,13],[150,8,150,13],[162,8,162,13],[164,8,164,13],[166,8,166,13],[168,8,168,13],[153,8,153,13],[155,8,155,13],[157,8,157,13],[161,8,161,13],[163,8,163,13],[165,8,165,13],[149,8,149,13],[151,8,151,13]]}
[]
[]
[]
[]
[]
[]
[null,null,"COD.",null,null,null,"DESCRIPCIÓN",null,null,null,null,null,null,null,null,"CALIFICACIÓN","FACTOR","RESULTADOS","PORCENTAJE",null,"ACEPTABLE",null,"MÁXIMO POSIBLE"]
[null,null,null,null,null,null,null,null,null,null,null,null,null,null,null,null,null,"PUNTAJE","PORCENTAJE",null,"PUNTAJE",null,"PUNTAJE","PORCENTAJE"]
[null,null,null,null,null,null,"TOTAL",null,null,null,null,null,null,null,null,null,null,{"$f":"SUBTOTAL(9,R11:R277)","v":0},{"$f":"+R9/W9","v":0},null,{"$f":"SUBTOTAL(9,U11:U276)","v":500.00000000000051},null,500,{"$f":"+X11+X33+X67+X112+X138+X160+X180+X198+X226+X252","v":0.99999999999999989}]
[]
[null,null,null,"1.",null,null,"DEFINICIÓN DE INTEGRACIÓN DEL PROYECTO",null,null,null,null,null,null,null,null,null,null,{"$f":"+SUBTOTAL(9,R13:R31)","v":0},{"$f":"IF(W11=0,0,R11/W11)","v":0},null,{"$f":"SUBTOTAL(9,U13:U31)","v":50},null,{"$f":"+$W$9*X11","v":50},{"$f":"+DEFINICIÓN!G15","v":0.1}]
[]
[null,null,null,null,"1.1.",null,null,null,"Se elaboró y firmó el acta de constitución, con la cual se dio inicio formal al proyecto y se nombró al gerente del mismo.",null,null,null,null,null,1,{"$f":"+O13-1","v":0},2.0000000000000004,{"$f":"+P13*W13/5","v":0},{"$f":"IF(W13=0,0,R13/W13)","v":0},null,{"$f":"+DEFINICIÓN!$I$15*W13/5","v":5},null,{"$f":"+W$11/10","v":5},{"$f":"+W13/$W$9","v":0.01}]
[null,null,null,null,null,null,null,null,null,null,null,null,null,null,null,null,null,null,null,null,null,""]
[null,null,null,null,"1.2.",null,null,null,"Se definió formalmente el propósito que dio origen al desarrollo del proyecto.",null,null,null,null,null,1,{"$f":"+O15-1","v":0},2.0000000000000004,{"$f":"+P15*W15/5","v":0},{"$f":"IF(W15=0,0,R15/W15)","v":0},null,{"$f":"+DEFINICIÓN!$I$15*W15/5","v":5},null,{"$f":"+W$11/10","v":5},{"$f":"+W15/$W$9","v":0.01}]
[null,null,null,null,null,null,null,null,null,null,null,null,null,null,null,null,null,null,null,null,null,""]
[null,null,null,null,"1.3.",null,null,null,"Están definidos los objetivos del proyecto y la forma en que el cumplimiento de los mismos contribuyen al cumplimiento de los objetivos estratégicos de la compañía.",null,null,null,null,null,1,{"$f":"+O17-1","v":0},2.0000000000000004,{"$f":"+P17*W17/5","v":0},{"$f":"IF(W17=0,0,R17/W17)","v":0},null,{"$f":"+DEFINICIÓN!$I$15*W17/5","v":5},null,{"$f":"+W$11/10","v":5},{"$f":"+W17/$W$9","v":0.01}]
[null,null,null,null,null,null,null,null,null,null,null,null,null,null,null,null,null,null,null,null,null,""]
[null,null,null,null,"1.4.",null,null,null,"Se definieron los criterios de éxito para el proyecto directamente relacionados con el cumplimiento de los objetivos del proyecto.",null,null,null,null,null,1,{"$f":"+O19-1","v":0},2.0000000000000004,{"$f":"+P19*W19/5","v":0},{"$f":"IF(W19=0,0,R19/W19)","v":0},null,{"$f":"+DEFINICIÓN!$I$15*W19/5","v":5},null,{"$f":"+W$11/10","v":5},{"$f":"+W19/$W$9","v":0.01}]
[]
[null,null,null,null,"1.5.",null,null,null,"Se designó al responsable del proyecto, cuyo nivel de autoridad y  aval para usar los recursos de la organización fue establecido por el patrocinador del proyecto.",null,null,null,null,null,1,{"$f":"+O21-1","v":0},2.0000000000000004,{"$f":"+P21*W21/5","v":0},{"$f":"IF(W21=0,0,R21/W21)","v":0},null,{"$f":"+DEFINICIÓN!$I$15*W21/5","v":5},null,{"$f":"+W$11/10","v":5},{"$f":"+W21/$W$9","v":0.01}]
[]
[null,null,null,null,"1.6.",null,null,null,"Se elaboró el plan de gerencia del proyecto, que incluye de forma integrada todos los planes secundarios.",null,null,null,null,null,1,{"$f":"+O23-1","v":0},2.0000000000000004,{"$f":"+P23*W23/5","v":0},{"$f":"IF(W23=0,0,R23/W23)","v":0},null,{"$f":"+DEFINICIÓN!$I$15*W23/5","v":5},null,{"$f":"+W$11/10","v":5},{"$f":"+W23/$W$9","v":0.01}]
[]
[null,null,null,null,"1.7.",null,null,null,"El plan de gerencia incluye el procedimiento para dirigir y gestionar el trabajo del proyecto.",null,null,null,null,null,1,{"$f":"+O25-1","v":0},2.0000000000000004,{"$f":"+P25*W25/5","v":0},{"$f":"IF(W25=0,0,R25/W25)","v":0},null,{"$f":"+DEFINICIÓN!$I$15*W25/5","v":5},null,{"$f":"+W$11/10","v":5},{"$f":"+W25/$W$9","v":0.01}]
[]
[null,null,null,null,"1.8.",null,null,null,"Se definió el proceso para monitorear y controlar el avance del proyecto, a fin de cumplir con los objetivos de desempeño definidos anteriormente. ",null,null,null,null,null,1,{"$f":"+O27-1","v":0},2.0000000000000004,{"$f":"+P27*W27/5","v":0},{"$f":"IF(W27=0,0,R27/W27)","v":0},null,{"$f":"+DEFINICIÓN!$I$15*W27/5","v":5},null,{"$f":"+W$11/10","v":5},{"$f":"+W27/$W$9","v":0.01}]
[]
[null,null,null,null,"1.9.",null,null,null,"Existe un procedimiento formalmente aprobado para el control de cambios durante desarrollo del proyecto.",null,null,null,null,null,1,{"$f":"+O29-1","v":0},2.0000000000000004,{"$f":"+P29*W29/5","v":0},{"$f":"IF(W29=0,0,R29/W29)","v":0},null,{"$f":"+DEFINICIÓN!$I$15*W29/5","v":5},null,{"$f":"+W$11/10","v":5},{"$f":"+W29/$W$9","v":0.01}]
[]
[null,null,null,null,"1.10.",null,null,null,"Se  cuenta con un procedimiento para el cierre del proyecto, la entrega de los productos y la documentación final del proyecto.",null,null,null,null,null,1,{"$f":"+O31-1","v":0},2.0000000000000004,{"$f":"+P31*W31/5","v":0},{"$f":"IF(W31=0,0,R31/W31)","v":0},null,{"$f":"+DEFINICIÓN!$I$15*W31/5","v":5},null,{"$f":"+W$11/10","v":5},{"$f":"+W31/$W$9","v":0.01}]
[null,null,null,null,null,null,null,null,null,null,null,null,null,null,null,null,null,null,null,null,null,""]
[null,null,null,"2.",null,null,"DEFINICIÓN DEL ALCANCE",null,null,null,null,null,null,null,null,null,null,{"$f":"+SUBTOTAL(9,R35:R65)","v":0},{"$f":"IF(W33=0,0,R33/W33)","v":0},null,{"$f":"SUBTOTAL(9,U35:U65)","v":49.999999999999993},null,{"$f":"+$W$9*X33","v":50},{"$f":"+DEFINICIÓN!G17","v":0.1}]
[null,null,null,null,null,null,null,null,null,null,null,null,null,null,null,null,null,"",null,null,null,""]
[null,null,null,null,"2.1.",null,null,"Producto",null,null,null,null,null,null,null,null,null,{"$f":"+SUBTOTAL(9,R37:R51)","v":0},{"$f":"IF(W35=0,0,R35/W35)","v":0},null,{"$f":"SUBTOTAL(9,U37:U51)","v":25},null,{"$f":"+$W$9*X35","v":25},{"$f":"+X33/2","v":0.05}]
[null,null,null,null,null,null,null,null,null,null,null,null,null,null,null,null,null,null,null,null,null,""]
[null,null,null,null,null,"2.1.1.",null,null,"Los entregables están definidos.",null,null,null,null,null,1,{"$f":"+O37-1","v":0},0.3125,{"$f":"+P37*W37/5","v":0},{"$f":"IF(W37=0,0,R37/W37)","v":0},null,{"$f":"+DEFINICIÓN!$I$17*W37/5","v":3.125},null,{"$f":"+$W$35/8","v":3.125},{"$f":"+W37/$W$9","v":6.2500000000000003E-3}]
[]
[null,null,null,null,null,"2.1.2.",null,null,"Existe un documento formal (declaración de alcance) en el que se describe cada uno de los entregables y el trabajo necesario para desarrollar cada uno de ellos.",null,null,null,null,null,1,{"$f":"+O39-1","v":0},0.3125,{"$f":"+P39*W39/5","v":0},{"$f":"IF(W39=0,0,R39/W39)","v":0},null,{"$f":"+DEFINICIÓN!$I$17*W39/5","v":3.125},null,{"$f":"+$W$35/8","v":3.125},{"$f":"+W39/$W$9","v":6.2500000000000003E-3}]
[]
[null,null,null,null,null,"2.1.3.",null,null,"Se realizó un levantamiento completo de los requerimientos del producto del proyecto.",null,null,null,null,null,1,{"$f":"+O41-1","v":0},0.3125,{"$f":"+P41*W41/5","v":0},{"$f":"IF(W41=0,0,R41/W41)","v":0},null,{"$f":"+DEFINICIÓN!$I$17*W41/5","v":3.125},null,{"$f":"+$W$35/8","v":3.125},{"$f":"+W41/$W$9","v":6.2500000000000003E-3}]
[]
[null,null,null,null,null,"2.1.4.",null,null,"Se definieron los criterios de aceptación de los entregables del proyecto.",null,null,null,null,null,1,{"$f":"+O43-1","v":0},0.3125,{"$f":"+P43*W43/5","v":0},{"$f":"IF(W43=0,0,R43/W43)","v":0},null,{"$f":"+DEFINICIÓN!$I$17*W43/5","v":3.125},null,{"$f":"+$W$35/8","v":3.125},{"$f":"+W43/$W$9","v":6.2500000000000003E-3}]
[]
[null,null,null,null,null,"2.1.5.",null,null,"Se definieron las especificaciones para los entregables del proyecto.",null,null,null,null,null,1,{"$f":"+O45-1","v":0},0.3125,{"$f":"+P45*W45/5","v":0},{"$f":"IF(W45=0,0,R45/W45)","v":0},null,{"$f":"+DEFINICIÓN!$I$17*W45/5","v":3.125},null,{"$f":"+$W$35/8","v":3.125},{"$f":"+W45/$W$9","v":6.2500000000000003E-3}]
[]
[null,null,null,null,null,"2.1.6.",null,null,"El producto se definió en cuanto a sus características técnicas (diseño) de una manera clara y evolutiva según el desarrollo del proyecto.",null,null,null,null,null,1,{"$f":"+O47-1","v":0},0.3125,{"$f":"+P47*W47/5","v":0},{"$f":"IF(W47=0,0,R47/W47)","v":0},null,{"$f":"+DEFINICIÓN!$I$17*W47/5","v":3.125},null,{"$f":"+$W$35/8","v":3.125},{"$f":"+W47/$W$9","v":6.2500000000000003E-3}]
[]
[null,null,null,null,null,"2.1.7.",null,null,"Se cuenta con un plan de gestión que permita realizar cambios en el producto del proyecto cuando un cambio en el alcance del proyecto lo requiera.",null,null,null,null,null,1,{"$f":"+O49-1","v":0},0.3125,{"$f":"+P49*W49/5","v":0},{"$f":"IF(W49=0,0,R49/W49)","v":0},null,{"$f":"+DEFINICIÓN!$I$17*W49/5","v":3.125},null,{"$f":"+$W$35/8","v":3.125},{"$f":"+W49/$W$9","v":6.2500000000000003E-3}]
[]
[null,null,null,null,null,"2.1.8.",null,null,"Existe una lista de exclusiones claramente establecidas para el alcance del producto del proyecto.",null,null,null,null,null,1,{"$f":"+O51-1","v":0},0.3125,{"$f":"+P51*W51/5","v":0},{"$f":"IF(W51=0,0,R51/W51)","v":0},null,{"$f":"+DEFINICIÓN!$I$17*W51/5","v":3.125},null,{"$f":"+$W$35/8","v":3.125},{"$f":"+W51/$W$9","v":6.2500000000000003E-3}]
[null,null,null,null,null,null,null,null,null,null,null,null,null,null,null,null,null,null,null,null,null,""]
[null,null,null,null,"2.2.",null,null,"Proyecto",null,null,null,null,null,null,null,null,null,{"$f":"+SUBTOTAL(9,R55:R65)","v":0},{"$f":"IF(W53=0,0,R53/W53)","v":0},null,{"$f":"SUBTOTAL(9,U55:U65)","v":25.000000000000004},null,{"$f":"+$W$9*X53","v":25},{"$f":"+X33/2","v":0.05}]
[]
[null,null,null,null,null,"2.2.1.",null,null,"Se elaboró el plan de gestión de alcance para el proyecto.",null,null,null,null,null,1,{"$f":"+O55-1","v":0},0.41666666666666669,{"$f":"+P55*W55/5","v":0},{"$f":"IF(W55=0,0,R55/W55)","v":0},null,{"$f":"+DEFINICIÓN!$I$17*W55/5","v":4.166666666666667},null,{"$f":"+$W$53/6","v":4.166666666666667},{"$f":"+W55/$W$9","v":8.3333333333333332E-3}]
[]
[null,null,null,null,null,"2.2.2.",null,null,"Se estableció un procedimiento para comparar periódicamente la línea base de alcance con el desempeño real del proyecto.",null,null,null,null,null,1,{"$f":"+O57-1","v":0},0.41666666666666669,{"$f":"+P57*W57/5","v":0},{"$f":"IF(W57=0,0,R57/W57)","v":0},null,{"$f":"+DEFINICIÓN!$I$17*W57/5","v":4.166666666666667},null,{"$f":"+$W$53/6","v":4.166666666666667},{"$f":"+W57/$W$9","v":8.3333333333333332E-3}]
[]
[null,null,null,null,null,"2.2.3.",null,null,"Se definieron  supuestos y restricciones para el desarrollo del proyecto.",null,null,null,null,null,1,{"$f":"+O59-1","v":0},0.41666666666666669,{"$f":"+P59*W59/5","v":0},{"$f":"IF(W59=0,0,R59/W59)","v":0},null,{"$f":"+DEFINICIÓN!$I$17*W59/5","v":4.166666666666667},null,{"$f":"+$W$53/6","v":4.166666666666667},{"$f":"+W59/$W$9","v":8.3333333333333332E-3}]
[]
[null,null,null,null,null,"2.2.4.",null,null,"Se definió una estructura de desglose del trabajo (WBS) para realizar todo el trabajo definido en el alcance del proyecto.",null,null,null,null,null,1,{"$f":"+O61-1","v":0},0.41666666666666669,{"$f":"+P61*W61/5","v":0},{"$f":"IF(W61=0,0,R61/W61)","v":0},null,{"$f":"+DEFINICIÓN!$I$17*W61/5","v":4.166666666666667},null,{"$f":"+$W$53/6","v":4.166666666666667},{"$f":"+W61/$W$9","v":8.3333333333333332E-3}]
[]
[null,null,null,null,null,"2.2.5.",null,null,"Se elaboró el diccionario de la WBS.",null,null,null,null,null,1,{"$f":"+O63-1","v":0},0.41666666666666669,{"$f":"+P63*W63/5","v":0},{"$f":"IF(W63=0,0,R63/W63)","v":0},null,{"$f":"+DEFINICIÓN!$I$17*W63/5","v":4.166666666666667},null,{"$f":"+$W$53/6","v":4.166666666666667},{"$f":"+W63/$W$9","v":8.3333333333333332E-3}]
[]
[null,null,null,null,null,"2.2.6.",null,null,"Se definieron los recursos necesarios para la gestión de alcance del proyecto.",null,null,null,null,null,1,{"$f":"+O65-1","v":0},0.41666666666666669,{"$f":"+P65*W65/5","v":0},{"$f":"IF(W65=0,0,R65/W65)","v":0},null,{"$f":"+DEFINICIÓN!$I$17*W65/5","v":4.166666666666667},null,{"$f":"+$W$53/6","v":4.166666666666667},{"$f":"+W65/$W$9","v":8.3333333333333332E-3}]
[]
[null,null,null,"3.",null,null,"DEFINICIÓN DEL TIEMPO",null,null,null,null,null,null,null,null,null,null,{"$f":"+SUBTOTAL(9,R69:R110)","v":0},{"$f":"IF(W67=0,0,R67/W67)","v":0},null,{"$f":"SUBTOTAL(9,U69:U110)","v":49.999999999999993},null,{"$f":"+$W$9*X67","v":50},{"$f":"+DEFINICIÓN!G19","v":0.1}]
[]
[null,null,null,null,"3.1.",null,null,null,"Se elaboró el plan de gestión del cronograma para el proyecto.",null,null,null,null,null,1,{"$f":"+O69-1","v":0},1.6666666666666667,{"$f":"+P69*W69/5","v":0},{"$f":"IF(W69=0,0,R69/W69)","v":0},null,{"$f":"+DEFINICIÓN!$I$19*W69/5","v":4.166666666666667},null,{"$f":"+$W$67/12","v":4.166666666666667},{"$f":"+W69/$W$9","v":8.3333333333333332E-3}]
[]
[null,null,null,null,"3.2.",null,null,null,"Se elaboró el cronograma detallado del proyecto.",null,null,null,null,null,1,{"$f":"+O71-1","v":0},1.6666666666666667,{"$f":"+P71*W71/5","v":0},{"$f":"IF(W71=0,0,R71/W71)","v":0},null,{"$f":"+DEFINICIÓN!$I$19*W71/5","v":4.166666666666667},null,{"$f":"+$W$67/12","v":4.166666666666667},{"$f":"+W71/$W$9","v":8.3333333333333332E-3}]
[]
[null,null,null,null,"3.3.",null,null,null,"Se definió de forma específica cada una de las actividades necesarias para el desarrollo del proyecto.",null,null,null,null,null,1,{"$f":"+O73-1","v":0},1.6666666666666667,{"$f":"+P73*W73/5","v":0},{"$f":"IF(W73=0,0,R73/W73)","v":0},null,{"$f":"+DEFINICIÓN!$I$19*W73/5","v":4.166666666666667},null,{"$f":"+$W$67/12","v":4.166666666666667},{"$f":"+W73/$W$9","v":8.3333333333333332E-3}]
[]
[null,null,null,null,"3.4.",null,null,null,"Se establecieron los siguientes atributos para las actividades propuestas.",null,null,null,null,null,null,null,null,{"$f":"+SUBTOTAL(9,R78:R96)","v":0},{"$f":"IF(W75=0,0,R75/W75)","v":0},null,{"$f":"+DEFINICIÓN!$I$19*W75/5","v":8.3333333333333339},null,{"$f":"+W73*2","v":8.3333333333333339},{"$f":"+W75/$W$9","v":1.6666666666666666E-2}]
[]
[]
[null,null,null,null,null,null,null,null,"•   ","Codificación",null,null,null,null,2,{"$f":"+IF(O78=1,1,0)","v":0},1.6666666666666667,{"$f":"IF(O78=1,O78*W78,0)","v":0},null,null,null,null,{"$f":"+$W$75/10","v":0.83333333333333337},{"$f":"+W78/$W$9","v":1.6666666666666668E-3}]
[]
[null,null,null,null,null,null,null,null,"•   ","Fecha de inicio",null,null,null,null,2,{"$f":"+IF(O80=1,1,0)","v":0},1.6666666666666667,{"$f":"IF(O80=1,O80*W80,0)","v":0},null,null,null,null,{"$f":"+$W$75/10","v":0.83333333333333337},{"$f":"+W80/$W$9","v":1.6666666666666668E-3}]
[]
[null,null,null,null,null,null,null,null,"•   ","Fecha de terminación",null,null,null,null,2,{"$f":"+IF(O82=1,1,0)","v":0},1.6666666666666667,{"$f":"IF(O82=1,O82*W82,0)","v":0},null,null,null,null,{"$f":"+$W$75/10","v":0.83333333333333337},{"$f":"+W82/$W$9","v":1.6666666666666668E-3}]
[]
[null,null,null,null,null,null,null,null,"•   ","Peso (Importancia)",null,null,null,null,2,{"$f":"+IF(O84=1,1,0)","v":0},1.6666666666666667,{"$f":"IF(O84=1,O84*W84,0)","v":0},null,null,null,null,{"$f":"+$W$75/10","v":0.83333333333333337},{"$f":"+W84/$W$9","v":1.6666666666666668E-3}]
[]
[null,null,null,null,null,null,null,null,"•   ","Predecesoras",null,null,null,null,2,{"$f":"+IF(O86=1,1,0)","v":0},1.6666666666666667,{"$f":"IF(O86=1,O86*W86,0)","v":0},null,null,null,null,{"$f":"+$W$75/10","v":0.83333333333333337},{"$f":"+W86/$W$9","v":1.6666666666666668E-3}]
[]
[null,null,null,null,null,null,null,null,"•   ","Sucesoras",null,null,null,null,2,{"$f":"+IF(O88=1,1,0)","v":0},1.6666666666666667,{"$f":"IF(O88=1,O88*W88,0)","v":0},null,null,null,null,{"$f":"+$W$75/10","v":0.83333333333333337},{"$f":"+W88/$W$9","v":1.6666666666666668E-3}]
[]
[null,null,null,null,null,null,null,null,"•   ","Recursos",null,null,null,null,2,{"$f":"+IF(O90=1,1,0)","v":0},1.6666666666666667,{"$f":"IF(O90=1,O90*W90,0)","v":0},null,null,null,null,{"$f":"+$W$75/10","v":0.83333333333333337},{"$f":"+W90/$W$9","v":1.6666666666666668E-3}]
[]
[null,null,null,null,null,null,null,null,"•   ","Inicio temprano",null,null,null,null,2,{"$f":"+IF(O92=1,1,0)","v":0},1.6666666666666667,{"$f":"IF(O92=1,O92*W92,0)","v":0},null,null,null,null,{"$f":"+$W$75/10","v":0.83333333333333337},{"$f":"+W92/$W$9","v":1.6666666666666668E-3}]
[]
[null,null,null,null,null,null,null,null,"•   ","Inicio tardío",null,null,null,null,2,{"$f":"+IF(O94=1,1,0)","v":0},1.6666666666666667,{"$f":"IF(O94=1,O94*W94,0)","v":0},null,null,null,null,{"$f":"+$W$75/10","v":0.83333333333333337},{"$f":"+W94/$W$9","v":1.6666666666666668E-3}]
[]
[null,null,null,null,null,null,null,null,"•   ","Responsable ",null,null,null,null,2,{"$f":"+IF(O96=1,1,0)","v":0},1.6666666666666667,{"$f":"IF(O96=1,O96*W96,0)","v":0},null,null,null,null,{"$f":"+$W$75/10","v":0.83333333333333337},{"$f":"+W96/$W$9","v":1.6666666666666668E-3}]
[null,null,null,null,null,null,null,null,null,null,null,null,null,null,null,null,null,null,null,null,null,""]
[null,null,null,null,"3.5.",null,null,null,"Se realizó un diagrama de red para definir la secuenciación de las actividades.",null,null,null,null,null,1,{"$f":"+O98-1","v":0},1.6666666666666667,{"$f":"+P98*W98/5","v":0},{"$f":"IF(W98=0,0,R98/W98)","v":0},null,{"$f":"+DEFINICIÓN!$I$19*W98/5","v":4.166666666666667},null,{"$f":"+$W$67/12","v":4.166666666666667},{"$f":"+W98/$W$9","v":8.3333333333333332E-3}]
[]
[null,null,null,null,"3.6.",null,null,null,"Se identificó y analizó la ruta critica del proyecto",null,null,null,null,null,1,{"$f":"+O100-1","v":0},1.6666666666666667,{"$f":"+P100*W100/5","v":0},{"$f":"IF(W100=0,0,R100/W100)","v":0},null,{"$f":"+DEFINICIÓN!$I$19*W100/5","v":4.166666666666667},null,{"$f":"+$W$67/12","v":4.166666666666667},{"$f":"+W100/$W$9","v":8.3333333333333332E-3}]
[]
[null,null,null,null,"3.7.",null,null,null,"Se establecieron los hitos del proyecto (puntos de control de la terminación de actividades importantes)",null,null,null,null,null,1,{"$f":"+O102-1","v":0},1.6666666666666667,{"$f":"+P102*W102/5","v":0},{"$f":"IF(W102=0,0,R102/W102)","v":0},null,{"$f":"+DEFINICIÓN!$I$19*W102/5","v":4.166666666666667},null,{"$f":"+$W$67/12","v":4.166666666666667},{"$f":"+W102/$W$9","v":8.3333333333333332E-3}]
[]
[null,null,null,null,"3.8.",null,null,null,"Se estimaron los recursos necesarios para llevar a cabo cada actividad del proyecto.",null,null,null,null,null,1,{"$f":"+O104-1","v":0},1.6666666666666667,{"$f":"+P104*W104/5","v":0},{"$f":"IF(W104=0,0,R104/W104)","v":0},null,{"$f":"+DEFINICIÓN!$I$19*W104/5","v":4.166666666666667},null,{"$f":"+$W$67/12","v":4.166666666666667},{"$f":"+W104/$W$9","v":8.3333333333333332E-3}]
[]
[null,null,null,null,"3.9.",null,null,null,"Se estimó la duración de cada una de las actividades del proyecto.",null,null,null,null,null,1,{"$f":"+O106-1","v":0},1.6666666666666667,{"$f":"+P106*W106/5","v":0},{"$f":"IF(W106=0,0,R106/W106)","v":0},null,{"$f":"+DEFINICIÓN!$I$19*W106/5","v":4.166666666666667},null,{"$f":"+$W$67/12","v":4.166666666666667},{"$f":"+W106/$W$9","v":8.3333333333333332E-3}]
[]
[null,null,null,null,"3.10.",null,null,null,"Se definió la línea base del cronograma que permite hacer seguimiento y control al proyecto.",null,null,null,null,null,1,{"$f":"+O108-1","v":0},1.6666666666666667,{"$f":"+P108*W108/5","v":0},{"$f":"IF(W108=0,0,R108/W108)","v":0},null,{"$f":"+DEFINICIÓN!$I$19*W108/5","v":4.166666666666667},null,{"$f":"+$W$67/12","v":4.166666666666667},{"$f":"+W108/$W$9","v":8.3333333333333332E-3}]
[]
[null,null,null,null,"3.11.",null,null,null,"Se definieron los recursos necesarios para la gestión del cronograma del proyecto.",null,null,null,null,null,1,{"$f":"+O110-1","v":0},1.6666666666666667,{"$f":"+P110*W110/5","v":0},{"$f":"IF(W110=0,0,R110/W110)","v":0},null,{"$f":"+DEFINICIÓN!$I$19*W110/5","v":4.166666666666667},null,{"$f":"+$W$67/12","v":4.166666666666667},{"$f":"+W110/$W$9","v":8.3333333333333332E-3}]
[]
[null,null,null,"4.",null,null,"DEFINICIÓN DE LOS COSTOS",null,null,null,null,null,null,null,null,null,null,{"$f":"+SUBTOTAL(9,R114:R136)","v":0},{"$f":"IF(W112=0,0,R112/W112)","v":0},null,{"$f":"SUBTOTAL(9,U114:U136)","v":49.999999999999993},null,{"$f":"+$W$9*X112","v":50},{"$f":"+DEFINICIÓN!G21","v":0.1}]
[null,null,null,null,null,null,null,null,null,null,null,null,null,null,null,null,null,null,null,null,null,""]
[null,null,null,null,"4.1.",null,null,null,"Se definió el plan de gestión de costos del proyecto.",null,null,null,null,null,1,{"$f":"+O114-1","v":0},0,{"$f":"+P114*W114/5","v":0},{"$f":"IF(W114=0,0,R114/W114)","v":0},null,{"$f":"+DEFINICIÓN!$I$21*W114/5","v":4.166666666666667},null,{"$f":"+$W$112/12","v":4.166666666666667},{"$f":"+W114/$W$9","v":8.3333333333333332E-3}]
[]
[null,null,null,null,"4.2.",null,null,null,"Se estimaron los recursos necesarios para la realización de las actividades",null,null,null,null,null,1,{"$f":"+O116-1","v":0},0,{"$f":"+P116*W116/5","v":0},{"$f":"IF(W116=0,0,R116/W116)","v":0},null,{"$f":"+DEFINICIÓN!$I$21*W116/5","v":4.166666666666667},null,{"$f":"+$W$112/12","v":4.166666666666667},{"$f":"+W116/$W$9","v":8.3333333333333332E-3}]
[]
[null,null,null,null,"4.3.",null,null,null,"Las estimaciones de costos se realizaron con el nivel de exactitud y precisión definido por la organización.",null,null,null,null,null,1,{"$f":"+O118-1","v":0},0,{"$f":"+P118*W118/5","v":0},{"$f":"IF(W118=0,0,R118/W118)","v":0},null,{"$f":"+DEFINICIÓN!$I$21*W118/5","v":4.166666666666667},null,{"$f":"+$W$112/12","v":4.166666666666667},{"$f":"+W118/$W$9","v":8.3333333333333332E-3}]
[]
[null,null,null,null,"4.4.",null,null,null,"Se cuenta en la compañía con una base documental de referencia para la estimación de costos.",null,null,null,null,null,1,{"$f":"+O120-1","v":0},0,{"$f":"+P120*W120/5","v":0},{"$f":"IF(W120=0,0,R120/W120)","v":0},null,{"$f":"+DEFINICIÓN!$I$21*W120/5","v":4.166666666666667},null,{"$f":"+$W$112/12","v":4.166666666666667},{"$f":"+W120/$W$9","v":8.3333333333333332E-3}]
[]
[null,null,null,null,"4.5.",null,null,null,"Se definieron los procedimientos para la medición del desempeño de los costos..",null,null,null,null,null,1,{"$f":"+O122-1","v":0},0,{"$f":"+P122*W122/5","v":0},{"$f":"IF(W122=0,0,R122/W122)","v":0},null,{"$f":"+DEFINICIÓN!$I$21*W122/5","v":4.166666666666667},null,{"$f":"+$W$112/12","v":4.166666666666667},{"$f":"+W122/$W$9","v":8.3333333333333332E-3}]
[]
[null,null,null,null,"4.6.",null,null,null,"Se elaboraron los formatos de los informes de gestión de costos del proyecto",null,null,null,null,null,1,{"$f":"+O124-1","v":0},0,{"$f":"+P124*W124/5","v":0},{"$f":"IF(W124=0,0,R124/W124)","v":0},null,{"$f":"+DEFINICIÓN!$I$21*W124/5","v":4.166666666666667},null,{"$f":"+$W$112/12","v":4.166666666666667},{"$f":"+W124/$W$9","v":8.3333333333333332E-3}]
[]
[null,null,null,null,"4.7.",null,null,null,"El plan de gestión de costos incluye el procedimiento para  el registro de los costos del proyecto.",null,null,null,null,null,1,{"$f":"+O126-1","v":0},0,{"$f":"+P126*W126/5","v":0},{"$f":"IF(W126=0,0,R126/W126)","v":0},null,{"$f":"+DEFINICIÓN!$I$21*W126/5","v":4.166666666666667},null,{"$f":"+$W$112/12","v":4.166666666666667},{"$f":"+W126/$W$9","v":8.3333333333333332E-3}]
[]
[null,null,null,null,"4.8.",null,null,null,"Se cuenta con un presupuesto para el proyecto definido por actividades y enlazado al cronograma.",null,null,null,null,null,1,{"$f":"+O128-1","v":0},0,{"$f":"+P128*W128/5","v":0},{"$f":"IF(W128=0,0,R128/W128)","v":0},null,{"$f":"+DEFINICIÓN!$I$21*W128/5","v":4.166666666666667},null,{"$f":"+$W$112/12","v":4.166666666666667},{"$f":"+W128/$W$9","v":8.3333333333333332E-3}]
[]
[null,null,null,null,"4.9.",null,null,null,"Dentro del presupuesto estimado para el proyecto se cuenta con una reserva de gerencia establecida con aprobación del sponsor del proyecto.",null,null,null,null,null,1,{"$f":"+O130-1","v":0},0,{"$f":"+P130*W130/5","v":0},{"$f":"IF(W130=0,0,R130/W130)","v":0},null,{"$f":"+DEFINICIÓN!$I$21*W130/5","v":4.166666666666667},null,{"$f":"+$W$112/12","v":4.166666666666667},{"$f":"+W130/$W$9","v":8.3333333333333332E-3}]
[]
[null,null,null,null,"4.10.",null,null,null,"Dentro del presupuesto estimado para el proyecto se cuenta con una reserva de contingencia establecida con aprobación del sponsor del proyecto para gestionar la ocurrencia de riesgos.",null,null,null,null,null,1,{"$f":"+O132-1","v":0},0,{"$f":"+P132*W132/5","v":0},{"$f":"IF(W132=0,0,R132/W132)","v":0},null,{"$f":"+DEFINICIÓN!$I$21*W132/5","v":4.166666666666667},null,{"$f":"+$W$112/12","v":4.166666666666667},{"$f":"+W132/$W$9","v":8.3333333333333332E-3}]
[]
[null,null,null,null,"4.11.",null,null,null,"Se estableció el uso de métricas de Valor ganado (Earned Value) para la gestión de los costos con una periodicidad claramente definida.",null,null,null,null,null,1,{"$f":"+O134-1","v":0},0,{"$f":"+P134*W134/5","v":0},{"$f":"IF(W134=0,0,R134/W134)","v":0},null,{"$f":"+DEFINICIÓN!$I$21*W134/5","v":4.166666666666667},null,{"$f":"+$W$112/12","v":4.166666666666667},{"$f":"+W134/$W$9","v":8.3333333333333332E-3}]
[]
[null,null,null,null,"4.12.",null,null,null,"Se definieron los recursos necesarios para la gestión de costos del proyecto.",null,null,null,null,null,1,{"$f":"+O136-1","v":0},0,{"$f":"+P136*W136/5","v":0},{"$f":"IF(W136=0,0,R136/W136)","v":0},null,{"$f":"+DEFINICIÓN!$I$21*W136/5","v":4.166666666666667},null,{"$f":"+$W$112/12","v":4.166666666666667},{"$f":"+W136/$W$9","v":8.3333333333333332E-3}]
[]
[null,null,null,"5.",null,null,"DEFINICIÓN DE CALIDAD",null,null,null,null,null,null,null,null,null,null,{"$f":"+SUBTOTAL(9,R140:R158)","v":0},{"$f":"IF(W138=0,0,R138/W138)","v":0},null,{"$f":"SUBTOTAL(9,U140:U158)","v":50},null,{"$f":"+$W$9*X138","v":50},{"$f":"+DEFINICIÓN!G23","v":0.1}]
[null,null,null,null,null,null,null,null,null,null,null,null,null,null,null,null,null,"",null,null,null,""]
[null,null,null,null,"5.1.",null,null,null,"Se identificaron los requisitos y/o estándares de calidad para el proyecto y sus entregables.",null,null,null,null,null,1,{"$f":"+O140-1","v":0},1.5,{"$f":"+P140*W140/5","v":0},{"$f":"IF(W140=0,0,R140/W140)","v":0},null,{"$f":"+DEFINICIÓN!$I$23*W140/5","v":5},null,{"$f":"+$W$138/10","v":5},{"$f":"+W140/$W$9","v":0.01}]
[]
[null,null,null,null,"5.2.",null,null,null,"Se elaboró el plan de gestión de calidad  del proyecto para los procesos de dirección del proyecto y el producto.",null,null,null,null,null,1,{"$f":"+O142-1","v":0},1.5,{"$f":"+P142*W142/5","v":0},{"$f":"IF(W142=0,0,R142/W142)","v":0},null,{"$f":"+DEFINICIÓN!$I$23*W142/5","v":5},null,{"$f":"+$W$138/10","v":5},{"$f":"+W142/$W$9","v":0.01}]
[]
[null,null,null,null,"5.3.",null,null,null,"El plan de gestión de calidad incluye los procedimientos para asegurar la calidad del proyecto.",null,null,null,null,null,1,{"$f":"+O144-1","v":0},1.5,{"$f":"+P144*W144/5","v":0},{"$f":"IF(W144=0,0,R144/W144)","v":0},null,{"$f":"+DEFINICIÓN!$I$23*W144/5","v":5},null,{"$f":"+$W$138/10","v":5},{"$f":"+W144/$W$9","v":0.01}]
[]
[null,null,null,null,"5.4.",null,null,null,"El plan de gestión de calidad incluye los procedimientos para controlar la calidad del proyecto.",null,null,null,null,null,1,{"$f":"+O146-1","v":0},1.5,{"$f":"+P146*W146/5","v":0},{"$f":"IF(W146=0,0,R146/W146)","v":0},null,{"$f":"+DEFINICIÓN!$I$23*W146/5","v":5},null,{"$f":"+$W$138/10","v":5},{"$f":"+W146/$W$9","v":0.01}]
[]
[null,null,null,null,"5.5.",null,null,null,"Se definieron las herramientas de gestión y control de calidad a utilizar en el proyecto.",null,null,null,null,null,1,{"$f":"+O148-1","v":0},1.5,{"$f":"+P148*W148/5","v":0},{"$f":"IF(W148=0,0,R148/W148)","v":0},null,{"$f":"+DEFINICIÓN!$I$23*W148/5","v":5},null,{"$f":"+$W$138/10","v":5},{"$f":"+W148/$W$9","v":0.01}]
[]
[null,null,null,null,"5.6.",null,null,null,"Se definió el propósito y la frecuencia de aplicación de auditorias internas de calidad.",null,null,null,null,null,1,{"$f":"+O150-1","v":0},1.5,{"$f":"+P150*W150/5","v":0},{"$f":"IF(W150=0,0,R150/W150)","v":0},null,{"$f":"+DEFINICIÓN!$I$23*W150/5","v":5},null,{"$f":"+$W$138/10","v":5},{"$f":"+W150/$W$9","v":0.01}]
[]
[null,null,null,null,"5.7.",null,null,null,"Se estableció el plan de mejoras del proceso, el cual incluye los pasos para analizar los procesos e identificar las actividades que generan valor para el proyecto.",null,null,null,null,null,1,{"$f":"+O152-1","v":0},1.5,{"$f":"+P152*W152/5","v":0},{"$f":"IF(W152=0,0,R152/W152)","v":0},null,{"$f":"+DEFINICIÓN!$I$23*W152/5","v":5},null,{"$f":"+$W$138/10","v":5},{"$f":"+W152/$W$9","v":0.01}]
[]
[null,null,null,null,"5.8.",null,null,null,"Se definieron las métricas de calidad a ser utilizadas en el proyecto.",null,null,null,null,null,1,{"$f":"+O154-1","v":0},1.5,{"$f":"+P154*W154/5","v":0},{"$f":"IF(W154=0,0,R154/W154)","v":0},null,{"$f":"+DEFINICIÓN!$I$23*W154/5","v":5},null,{"$f":"+$W$138/10","v":5},{"$f":"+W154/$W$9","v":0.01}]
[]
[null,null,null,null,"5.9.",null,null,null,"Se definieron las listas de verificación ( o listas de control de calidad) que incorporan los criterios de aceptación incluidos en la línea base de alcance.",null,null,null,null,null,1,{"$f":"+O156-1","v":0},1.5,{"$f":"+P156*W156/5","v":0},{"$f":"IF(W156=0,0,R156/W156)","v":0},null,{"$f":"+DEFINICIÓN!$I$23*W156/5","v":5},null,{"$f":"+$W$138/10","v":5},{"$f":"+W156/$W$9","v":0.01}]
[]
[null,null,null,null,"5.10.",null,null,null,"Se definieron los recursos necesarios para gestionar la calidad del proyecto.",null,null,null,null,null,1,{"$f":"+O158-1","v":0},1.5,{"$f":"+P158*W158/5","v":0},{"$f":"IF(W158=0,0,R158/W158)","v":0},null,{"$f":"+DEFINICIÓN!$I$23*W158/5","v":5},null,{"$f":"+$W$138/10","v":5},{"$f":"+W158/$W$9","v":0.01}]
[]
[null,null,null,"6.",null,null,"DEFINICIÓN DE RIESGOS",null,null,null,null,null,null,null,null,null,null,{"$f":"+SUBTOTAL(9,R162:R178)","v":0},{"$f":"IF(W160=0,0,R160/W160)","v":0},null,{"$f":"SUBTOTAL(9,U162:U178)","v":50.000000000000007},null,{"$f":"+$W$9*X160","v":50},{"$f":"+DEFINICIÓN!G25","v":0.1}]
[]
[null,null,null,null,"6.1.",null,null,null,"Se realizó un proceso de identificación de riesgos para el desarrollo del proyecto.",null,null,null,null,null,1,{"$f":"+O162-1","v":0},1.6666666666666667,{"$f":"+P162*W162/5","v":0},{"$f":"IF(W162=0,0,R162/W162)","v":0},null,{"$f":"+DEFINICIÓN!$I$25*W162/5","v":5.5555555555555554},null,{"$f":"+$W$160/9","v":5.5555555555555554},{"$f":"+W162/$W$9","v":1.1111111111111112E-2}]
[]
[null,null,null,null,"6.2.",null,null,null,"Se realizó un proceso de medición de impacto y probabilidad de los riesgos identificados, de forma cualitativa o cuantitativa según la complejidad del proyecto lo amerite.",null,null,null,null,null,1,{"$f":"+O164-1","v":0},1.6666666666666667,{"$f":"+P164*W164/5","v":0},{"$f":"IF(W164=0,0,R164/W164)","v":0},null,{"$f":"+DEFINICIÓN!$I$25*W164/5","v":5.5555555555555554},null,{"$f":"+$W$160/9","v":5.5555555555555554},{"$f":"+W164/$W$9","v":1.1111111111111112E-2}]
[]
[null,null,null,null,"6.3.",null,null,null,"Se plantearon estrategias y acciones claras para responder ante la ocurrencia de un riesgo identificado.",null,null,null,null,null,1,{"$f":"+O166-1","v":0},1.6666666666666667,{"$f":"+P166*W166/5","v":0},{"$f":"IF(W166=0,0,R166/W166)","v":0},null,{"$f":"+DEFINICIÓN!$I$25*W166/5","v":5.5555555555555554},null,{"$f":"+$W$160/9","v":5.5555555555555554},{"$f":"+W166/$W$9","v":1.1111111111111112E-2}]
[]
[null,null,null,null,"6.4.",null,null,null,"Se tiene una estrategia de respuesta ante riesgos desconocidos (imprevistos), como la constitución de una reserva de contingencias.",null,null,null,null,null,1,{"$f":"+O168-1","v":0},1.6666666666666667,{"$f":"+P168*W168/5","v":0},{"$f":"IF(W168=0,0,R168/W168)","v":0},null,{"$f":"+DEFINICIÓN!$I$25*W168/5","v":5.5555555555555554},null,{"$f":"+$W$160/9","v":5.5555555555555554},{"$f":"+W168/$W$9","v":1.1111111111111112E-2}]
[]
[null,null,null,null,"6.5.",null,null,null,"Se definió un plan de gestión de los riesgos formal para el proyecto que incluye los aspectos arriba definidos.",null,null,null,null,null,1,{"$f":"+O170-1","v":0},1.6666666666666667,{"$f":"+P170*W170/5","v":0},{"$f":"IF(W170=0,0,R170/W170)","v":0},null,{"$f":"+DEFINICIÓN!$I$25*W170/5","v":5.5555555555555554},null,{"$f":"+$W$160/9","v":5.5555555555555554},{"$f":"+W170/$W$9","v":1.1111111111111112E-2}]
[]
[null,null,null,null,"6.6.",null,null,null,"Los niveles de tolerancia al riesgo del proyecto se establecieron mediante información proveniente de los stakeholders afectados ante la ocurrencia de los riesgos definidos.",null,null,null,null,null,1,{"$f":"+O172-1","v":0},1.6666666666666667,{"$f":"+P172*W172/5","v":0},{"$f":"IF(W172=0,0,R172/W172)","v":0},null,{"$f":"+DEFINICIÓN!$I$25*W172/5","v":5.5555555555555554},null,{"$f":"+$W$160/9","v":5.5555555555555554},{"$f":"+W172/$W$9","v":1.1111111111111112E-2}]
[]
[null,null,null,null,"6.7.",null,null,null,"Se realizó una estructura de desglose del riesgo definiendo en detalle la exposición del proyecto a cada uno de los riesgos y las fuentes de los mismos.",null,null,null,null,null,1,{"$f":"+O174-1","v":0},1.6666666666666667,{"$f":"+P174*W174/5","v":0},{"$f":"IF(W174=0,0,R174/W174)","v":0},null,{"$f":"+DEFINICIÓN!$I$25*W174/5","v":5.5555555555555554},null,{"$f":"+$W$160/9","v":5.5555555555555554},{"$f":"+W174/$W$9","v":1.1111111111111112E-2}]
[]
[null,null,null,null,"6.8.",null,null,null,"Se incluyeron en las líneas base de costos y tiempo las acciones de mitigación de los riesgos identificadas.",null,null,null,null,null,1,{"$f":"+O176-1","v":0},1.6666666666666667,{"$f":"+P176*W176/5","v":0},{"$f":"IF(W176=0,0,R176/W176)","v":0},null,{"$f":"+DEFINICIÓN!$I$25*W176/5","v":5.5555555555555554},null,{"$f":"+$W$160/9","v":5.5555555555555554},{"$f":"+W176/$W$9","v":1.1111111111111112E-2}]
[]
[null,null,null,null,"6.9.",null,null,null,"Se constituyó una reserva de contingencia dentro del presupuesto del proyecto para la gestión de los riesgos y un procedimiento para la gestión de dicha reserva.",null,null,null,null,null,1,{"$f":"+O178-1","v":0},1.6666666666666667,{"$f":"+P178*W178/5","v":0},{"$f":"IF(W178=0,0,R178/W178)","v":0},null,{"$f":"+DEFINICIÓN!$I$25*W178/5","v":5.5555555555555554},null,{"$f":"+$W$160/9","v":5.5555555555555554},{"$f":"+W178/$W$9","v":1.1111111111111112E-2}]
[]
[null,null,null,"7.",null,null,"DEFINICIÓN DE STAKEHOLDERS",null,null,null,null,null,null,null,null,null,null,{"$f":"+SUBTOTAL(9,R182:R196)","v":0},{"$f":"IF(W180=0,0,R180/W180)","v":0},null,{"$f":"SUBTOTAL(9,U182:U196)","v":50},null,{"$f":"+$W$9*X180","v":50},{"$f":"+DEFINICIÓN!G27","v":0.1}]
[]
[null,null,null,null,"7.1.",null,null,null,"Se llevó a cabo la identificación de los interesados del proyecto, que incluye sus expectativas y requerimientos del proyecto.",null,null,null,null,null,1,{"$f":"+O182-1","v":0},0.625,{"$f":"+P182*W182/5","v":0},{"$f":"IF(W182=0,0,R182/W182)","v":0},null,{"$f":"+DEFINICIÓN!$I$27*W182/5","v":6.25},null,{"$f":"+$W$180/8","v":6.25},{"$f":"+W182/$W$9","v":1.2500000000000001E-2}]
[]
[null,null,null,null,"7.2.",null,null,null,"Se realizó el plan de gestión de stakeholders del proyecto.",null,null,null,null,null,1,{"$f":"+O184-1","v":0},0.625,{"$f":"+P184*W184/5","v":0},{"$f":"IF(W184=0,0,R184/W184)","v":0},null,{"$f":"+DEFINICIÓN!$I$27*W184/5","v":6.25},null,{"$f":"+$W$180/8","v":6.25},{"$f":"+W184/$W$9","v":1.2500000000000001E-2}]
[]
[null,null,null,null,"7.3.",null,null,null,"Se definieron los niveles de participación actual y deseado de los interesados clave.",null,null,null,null,null,1,{"$f":"+O186-1","v":0},0.625,{"$f":"+P186*W186/5","v":0},{"$f":"IF(W186=0,0,R186/W186)","v":0},null,{"$f":"+DEFINICIÓN!$I$27*W186/5","v":6.25},null,{"$f":"+$W$180/8","v":6.25},{"$f":"+W186/$W$9","v":1.2500000000000001E-2}]
[]
[null,null,null,null,"7.4.",null,null,null,"Se definió el alcance e impacto del cambio para los interesados.",null,null,null,null,null,1,{"$f":"+O188-1","v":0},0.625,{"$f":"+P188*W188/5","v":0},{"$f":"IF(W188=0,0,R188/W188)","v":0},null,{"$f":"+DEFINICIÓN!$I$27*W188/5","v":6.25},null,{"$f":"+$W$180/8","v":6.25},{"$f":"+W188/$W$9","v":1.2500000000000001E-2}]
[]
[null,null,null,null,"7.5.",null,null,null,"Se definieron  las interrelaciones y posible superposición entre interesados que se hayan identificado.",null,null,null,null,null,1,{"$f":"+O190-1","v":0},0.625,{"$f":"+P190*W190/5","v":0},{"$f":"IF(W190=0,0,R190/W190)","v":0},null,{"$f":"+DEFINICIÓN!$I$27*W190/5","v":6.25},null,{"$f":"+$W$180/8","v":6.25},{"$f":"+W190/$W$9","v":1.2500000000000001E-2}]
[]
[null,null,null,null,"7.6.",null,null,null,"Se definió el impacto esperado en la participación de los interesados de acuerdo al plan de comunicaciones.",null,null,null,null,null,1,{"$f":"+O192-1","v":0},0.625,{"$f":"+P192*W192/5","v":0},{"$f":"IF(W192=0,0,R192/W192)","v":0},null,{"$f":"+DEFINICIÓN!$I$27*W192/5","v":6.25},null,{"$f":"+$W$180/8","v":6.25},{"$f":"+W192/$W$9","v":1.2500000000000001E-2}]
[]
[null,null,null,null,"7.7.",null,null,null,"Se definió el método para actualizar y refinar el plan de gestión de los interesados.",null,null,null,null,null,1,{"$f":"+O194-1","v":0},0.625,{"$f":"+P194*W194/5","v":0},{"$f":"IF(W194=0,0,R194/W194)","v":0},null,{"$f":"+DEFINICIÓN!$I$27*W194/5","v":6.25},null,{"$f":"+$W$180/8","v":6.25},{"$f":"+W194/$W$9","v":1.2500000000000001E-2}]
[]
[null,null,null,null,"7.8.",null,null,null,"Se definieron los recursos necesarios para la gestión de interesados del proyecto.",null,null,null,null,null,1,{"$f":"+O196-1","v":0},0.625,{"$f":"+P196*W196/5","v":0},{"$f":"IF(W196=0,0,R196/W196)","v":0},null,{"$f":"+DEFINICIÓN!$I$27*W196/5","v":6.25},null,{"$f":"+$W$180/8","v":6.25},{"$f":"+W196/$W$9","v":1.2500000000000001E-2}]
[]
[null,null,null,"8.",null,null,"DEFINICIÓN DE COMUNICACIONES",null,null,null,null,null,null,null,null,null,null,{"$f":"+SUBTOTAL(9,R200:R224)","v":0},{"$f":"IF(W198=0,0,R198/W198)","v":0},null,{"$f":"SUBTOTAL(9,U200:U224)","v":50},null,{"$f":"+$W$9*X198","v":50},{"$f":"+DEFINICIÓN!G29","v":0.1}]
[]
[null,null,null,null,"8.1.",null,null,null,"Se definió el plan de gestión de las comunicaciones.",null,null,null,null,null,1,{"$f":"+O200-1","v":0},0.38461538461538475,{"$f":"+P200*W200/5","v":0},{"$f":"IF(W200=0,0,R200/W200)","v":0},null,{"$f":"+DEFINICIÓN!$I$29*W200/5","v":3.8461538461538458},null,{"$f":"+$W$198/13","v":3.8461538461538463},{"$f":"+W200/$W$9","v":7.6923076923076927E-3}]
[]
[null,null,null,null,"8.2.",null,null,null,"Se realizó la identificación de requerimientos de comunicación entre los diferentes stakeholders del proyecto.",null,null,null,null,null,1,{"$f":"+O202-1","v":0},0.38461538461538475,{"$f":"+P202*W202/5","v":0},{"$f":"IF(W202=0,0,R202/W202)","v":0},null,{"$f":"+DEFINICIÓN!$I$29*W202/5","v":3.8461538461538458},null,{"$f":"+$W$198/13","v":3.8461538461538463},{"$f":"+W202/$W$9","v":7.6923076923076927E-3}]
[]
[null,null,null,null,"8.3.",null,null,null,"Se definió la información que debe ser comunicada a cada stakeholder.",null,null,null,null,null,1,{"$f":"+O204-1","v":0},0.38461538461538475,{"$f":"+P204*W204/5","v":0},{"$f":"IF(W204=0,0,R204/W204)","v":0},null,{"$f":"+DEFINICIÓN!$I$29*W204/5","v":3.8461538461538458},null,{"$f":"+$W$198/13","v":3.8461538461538463},{"$f":"+W204/$W$9","v":7.6923076923076927E-3}]
[]
[null,null,null,null,"8.4.",null,null,null,"Se definió el plazo y la frecuencia para la distribución de la información requerida y para la recepción de la respuesta correspondiente.",null,null,null,null,null,1,{"$f":"+O206-1","v":0},0.38461538461538475,{"$f":"+P206*W206/5","v":0},{"$f":"IF(W206=0,0,R206/W206)","v":0},null,{"$f":"+DEFINICIÓN!$I$29*W206/5","v":3.8461538461538458},null,{"$f":"+$W$198/13","v":3.8461538461538463},{"$f":"+W206/$W$9","v":7.6923076923076927E-3}]
[]
[null,null,null,null,"8.5.",null,null,null,"Se definieron los responsables de comunicar la información.",null,null,null,null,null,1,{"$f":"+O208-1","v":0},0.38461538461538475,{"$f":"+P208*W208/5","v":0},{"$f":"IF(W208=0,0,R208/W208)","v":0},null,{"$f":"+DEFINICIÓN!$I$29*W208/5","v":3.8461538461538458},null,{"$f":"+$W$198/13","v":3.8461538461538463},{"$f":"+W208/$W$9","v":7.6923076923076927E-3}]
[]
[null,null,null,null,"8.6.",null,null,null,"Se definió la persona responsable de autorizar la divulgación de información confidencial.",null,null,null,null,null,1,{"$f":"+O210-1","v":0},0.38461538461538475,{"$f":"+P210*W210/5","v":0},{"$f":"IF(W210=0,0,R210/W210)","v":0},null,{"$f":"+DEFINICIÓN!$I$29*W210/5","v":3.8461538461538458},null,{"$f":"+$W$198/13","v":3.8461538461538463},{"$f":"+W210/$W$9","v":7.6923076923076927E-3}]
[]
[null,null,null,null,"8.7.",null,null,null,"Se definieron las personas o grupos que recibirán la información.",null,null,null,null,null,1,{"$f":"+O212-1","v":0},0.38461538461538475,{"$f":"+P212*W212/5","v":0},{"$f":"IF(W212=0,0,R212/W212)","v":0},null,{"$f":"+DEFINICIÓN!$I$29*W212/5","v":3.8461538461538458},null,{"$f":"+$W$198/13","v":3.8461538461538463},{"$f":"+W212/$W$9","v":7.6923076923076927E-3}]
[]
[null,null,null,null,"8.8.",null,null,null,"Se definieron los métodos o tecnologías utilizados para transmitir la información.",null,null,null,null,null,1,{"$f":"+O214-1","v":0},0.38461538461538475,{"$f":"+P214*W214/5","v":0},{"$f":"IF(W214=0,0,R214/W214)","v":0},null,{"$f":"+DEFINICIÓN!$I$29*W214/5","v":3.8461538461538458},null,{"$f":"+$W$198/13","v":3.8461538461538463},{"$f":"+W214/$W$9","v":7.6923076923076927E-3}]
[]
[null,null,null,null,"8.9.",null,null,null,"Se definieron los recursos necesarios para la gestión de comunicaciones del proyecto.",null,null,null,null,null,1,{"$f":"+O216-1","v":0},0.38461538461538475,{"$f":"+P216*W216/5","v":0},{"$f":"IF(W216=0,0,R216/W216)","v":0},null,{"$f":"+DEFINICIÓN!$I$29*W216/5","v":3.8461538461538458},null,{"$f":"+$W$198/13","v":3.8461538461538463},{"$f":"+W216/$W$9","v":7.6923076923076927E-3}]
[]
[null,null,null,null,"8.10.",null,null,null,"Se definió  el método para actualizar y refinar el plan de gestión de las comunicaciones.",null,null,null,null,null,1,{"$f":"+O218-1","v":0},0.38461538461538475,{"$f":"+P218*W218/5","v":0},{"$f":"IF(W218=0,0,R218/W218)","v":0},null,{"$f":"+DEFINICIÓN!$I$29*W218/5","v":3.8461538461538458},null,{"$f":"+$W$198/13","v":3.8461538461538463},{"$f":"+W218/$W$9","v":7.6923076923076927E-3}]
[]
[null,null,null,null,"8.11.",null,null,null,"Se elaboraron diagramas de flujo de la información que circula dentro del proyecto y los flujos de trabajo con la posible secuencia de autorizaciones.",null,null,null,null,null,1,{"$f":"+O220-1","v":0},0.38461538461538475,{"$f":"+P220*W220/5","v":0},{"$f":"IF(W220=0,0,R220/W220)","v":0},null,{"$f":"+DEFINICIÓN!$I$29*W220/5","v":3.8461538461538458},null,{"$f":"+$W$198/13","v":3.8461538461538463},{"$f":"+W220/$W$9","v":7.6923076923076927E-3}]
[]
[null,null,null,null,"8.12.",null,null,null,"Se definieron las restricciones de comunicación del proyecto.",null,null,null,null,null,1,{"$f":"+O222-1","v":0},0.38461538461538475,{"$f":"+P222*W222/5","v":0},{"$f":"IF(W222=0,0,R222/W222)","v":0},null,{"$f":"+DEFINICIÓN!$I$29*W222/5","v":3.8461538461538458},null,{"$f":"+$W$198/13","v":3.8461538461538463},{"$f":"+W222/$W$9","v":7.6923076923076927E-3}]
[]
[null,null,null,null,"8.13.",null,null,null,"Se elaboraron las plantillas para las reuniones y los mensajes de correo electrónico.",null,null,null,null,null,1,{"$f":"+O224-1","v":0},0.38461538461538475,{"$f":"+P224*W224/5","v":0},{"$f":"IF(W224=0,0,R224/W224)","v":0},null,{"$f":"+DEFINICIÓN!$I$29*W224/5","v":3.8461538461538458},null,{"$f":"+$W$198/13","v":3.8461538461538463},{"$f":"+W224/$W$9","v":7.6923076923076927E-3}]
[]
[null,null,null,"9.",null,null,"DEFINICIÓN DE ADQUISICIONES",null,null,null,null,null,null,null,null,null,null,{"$f":"+SUBTOTAL(9,R228:R250)","v":0},{"$f":"IF(W226=0,0,R226/W226)","v":0},null,{"$f":"SUBTOTAL(9,U228:U250)","v":49.999999999999993},null,{"$f":"+$W$9*X226","v":50},{"$f":"+DEFINICIÓN!G31","v":0.1}]
[]
[null,null,null,null,"9.1.",null,null,null,"Se identificaron las necesidades del proyecto que pueden ser suplidas mediante la adquisición de bienes o servicios. ",null,null,null,null,null,1,{"$f":"+O228-1","v":0},0.41666666666666669,{"$f":"+P228*W228/5","v":0},{"$f":"IF(W228=0,0,R228/W228)","v":0},null,{"$f":"+DEFINICIÓN!$I$31*W228/5","v":4.166666666666667},null,{"$f":"+$W$226/12","v":4.166666666666667},{"$f":"+W228/$W$9","v":8.3333333333333332E-3}]
[]
[null,null,null,null,"9.2.",null,null,null,"Se definió el plan de gestión de adquisiciones del proyecto.",null,null,null,null,null,1,{"$f":"+O230-1","v":0},0.41666666666666669,{"$f":"+P230*W230/5","v":0},{"$f":"IF(W230=0,0,R230/W230)","v":0},null,{"$f":"+DEFINICIÓN!$I$31*W230/5","v":4.166666666666667},null,{"$f":"+$W$226/12","v":4.166666666666667},{"$f":"+W230/$W$9","v":8.3333333333333332E-3}]
[]
[null,null,null,null,"9.3.",null,null,null,"Se realizó el análisis \"Hacer o Comprar\" con el fin de establecer la mejor alternativa entre hacerlo en casa vs contratarlo y administrar el contrato. ",null,null,null,null,null,1,{"$f":"+O232-1","v":0},0.41666666666666669,{"$f":"+P232*W232/5","v":0},{"$f":"IF(W232=0,0,R232/W232)","v":0},null,{"$f":"+DEFINICIÓN!$I$31*W232/5","v":4.166666666666667},null,{"$f":"+$W$226/12","v":4.166666666666667},{"$f":"+W232/$W$9","v":8.3333333333333332E-3}]
[]
[null,null,null,null,"9.4.",null,null,null,"Se definieron los criterios de selección o  caracteristicas que deben tener los proveedores para cubrir las necesidades del proyecto.",null,null,null,null,null,1,{"$f":"+O234-1","v":0},0.41666666666666669,{"$f":"+P234*W234/5","v":0},{"$f":"IF(W234=0,0,R234/W234)","v":0},null,{"$f":"+DEFINICIÓN!$I$31*W234/5","v":4.166666666666667},null,{"$f":"+$W$226/12","v":4.166666666666667},{"$f":"+W234/$W$9","v":8.3333333333333332E-3}]
[]
[null,null,null,null,"9.5.",null,null,null,"Se definieron y socializaron los tipos de contrato para cada tipo de compra necesaria para el desarrollo del proyecto.",null,null,null,null,null,1,{"$f":"+O236-1","v":0},0.41666666666666669,{"$f":"+P236*W236/5","v":0},{"$f":"IF(W236=0,0,R236/W236)","v":0},null,{"$f":"+DEFINICIÓN!$I$31*W236/5","v":4.166666666666667},null,{"$f":"+$W$226/12","v":4.166666666666667},{"$f":"+W236/$W$9","v":8.3333333333333332E-3}]
[]
[null,null,null,null,"9.6.",null,null,null,"Se definieron los documentos a usar durante la solicitud de propuestas y selección de proveedores.",null,null,null,null,null,1,{"$f":"+O238-1","v":0},0.41666666666666669,{"$f":"+P238*W238/5","v":0},{"$f":"IF(W238=0,0,R238/W238)","v":0},null,{"$f":"+DEFINICIÓN!$I$31*W238/5","v":4.166666666666667},null,{"$f":"+$W$226/12","v":4.166666666666667},{"$f":"+W238/$W$9","v":8.3333333333333332E-3}]
[]
[null,null,null,null,"9.7.",null,null,null,"Se establecieron los procedimientos y políticas de la organización para la gestión de adquisiciones.",null,null,null,null,null,1,{"$f":"+O240-1","v":0},0.41666666666666669,{"$f":"+P240*W240/5","v":0},{"$f":"IF(W240=0,0,R240/W240)","v":0},null,{"$f":"+DEFINICIÓN!$I$31*W240/5","v":4.166666666666667},null,{"$f":"+$W$226/12","v":4.166666666666667},{"$f":"+W240/$W$9","v":8.3333333333333332E-3}]
[]
[null,null,null,null,"9.8.",null,null,null,"Se elaboró el cronograma de adquisiciones para cada entregable del proyecto.",null,null,null,null,null,1,{"$f":"+O242-1","v":0},0.41666666666666669,{"$f":"+P242*W242/5","v":0},{"$f":"IF(W242=0,0,R242/W242)","v":0},null,{"$f":"+DEFINICIÓN!$I$31*W242/5","v":4.166666666666667},null,{"$f":"+$W$226/12","v":4.166666666666667},{"$f":"+W242/$W$9","v":8.3333333333333332E-3}]
[]
[null,null,null,null,"9.9.",null,null,null,"Se definieron las características y las cantidades de lo que se va adquirir para el desarrollo de cada entregable.",null,null,null,null,null,1,{"$f":"+O244-1","v":0},0.41666666666666669,{"$f":"+P244*W244/5","v":0},{"$f":"IF(W244=0,0,R244/W244)","v":0},null,{"$f":"+DEFINICIÓN!$I$31*W244/5","v":4.166666666666667},null,{"$f":"+$W$226/12","v":4.166666666666667},{"$f":"+W244/$W$9","v":8.3333333333333332E-3}]
[]
[null,null,null,null,"9.10.",null,null,null,"Se definieron las garantías a exigir como parte del plan de gestión de adquisiciones.",null,null,null,null,null,1,{"$f":"+O246-1","v":0},0.41666666666666669,{"$f":"+P246*W246/5","v":0},{"$f":"IF(W246=0,0,R246/W246)","v":0},null,{"$f":"+DEFINICIÓN!$I$31*W246/5","v":4.166666666666667},null,{"$f":"+$W$226/12","v":4.166666666666667},{"$f":"+W246/$W$9","v":8.3333333333333332E-3}]
[]
[null,null,null,null,"9.11.",null,null,null,"Se establecieron las métricas a utilizar para gestionar los contratos y evaluar los proveedores.",null,null,null,null,null,1,{"$f":"+O248-1","v":0},0.41666666666666669,{"$f":"+P248*W248/5","v":0},{"$f":"IF(W248=0,0,R248/W248)","v":0},null,{"$f":"+DEFINICIÓN!$I$31*W248/5","v":4.166666666666667},null,{"$f":"+$W$226/12","v":4.166666666666667},{"$f":"+W248/$W$9","v":8.3333333333333332E-3}]
[]
[null,null,null,null,"9.12.",null,null,null,"Se definieron los recursos necesarios para la gestión de adquisiciones del proyecto.",null,null,null,null,null,1,{"$f":"+O250-1","v":0},0.41666666666666669,{"$f":"+P250*W250/5","v":0},{"$f":"IF(W250=0,0,R250/W250)","v":0},null,{"$f":"+DEFINICIÓN!$I$31*W250/5","v":4.166666666666667},null,{"$f":"+$W$226/12","v":4.166666666666667},{"$f":"+W250/$W$9","v":8.3333333333333332E-3}]
[]
[null,null,null,"10.",null,null,"DEFINICIÓN DE RECURSOS HUMANOS",null,null,null,null,null,null,null,null,null,null,{"$f":"+SUBTOTAL(9,R254:R276)","v":0},{"$f":"IF(W252=0,0,R252/W252)","v":0},null,{"$f":"SUBTOTAL(9,U254:U276)","v":49.999999999999993},null,{"$f":"+$W$9*X252","v":50},{"$f":"+DEFINICIÓN!G33","v":0.1}]
[]
[null,null,null,null,"10.1.",null,null,null,"Se desarrolló el plan de recursos humanos para el proyecto.",null,null,null,null,null,1,{"$f":"+O254-1","v":0},0.83333333333333337,{"$f":"+P254*W254/5","v":0},{"$f":"IF(W254=0,0,R254/W254)","v":0},null,{"$f":"+DEFINICIÓN!$I$33*W254/5","v":4.166666666666667},null,{"$f":"+$W$252/12","v":4.166666666666667},{"$f":"+W254/$W$9","v":8.3333333333333332E-3}]
[]
[null,null,null,null,"10.2.",null,null,null,"Los roles y responsabilidades requeridos por el proyecto fueron identificados y documentados (Matriz RAM).",null,null,null,null,null,1,{"$f":"+O256-1","v":0},0.83333333333333337,{"$f":"+P256*W256/5","v":0},{"$f":"IF(W256=0,0,R256/W256)","v":0},null,{"$f":"+DEFINICIÓN!$I$33*W256/5","v":4.166666666666667},null,{"$f":"+$W$252/12","v":4.166666666666667},{"$f":"+W256/$W$9","v":8.3333333333333332E-3}]
[]
[null,null,null,null,"10.3.",null,null,null,"La habilidades que deben poseer los integrantes del equipo de trabajo del proyecto fueron definidas",null,null,null,null,null,1,{"$f":"+O258-1","v":0},0.83333333333333337,{"$f":"+P258*W258/5","v":0},{"$f":"IF(W258=0,0,R258/W258)","v":0},null,{"$f":"+DEFINICIÓN!$I$33*W258/5","v":4.166666666666667},null,{"$f":"+$W$252/12","v":4.166666666666667},{"$f":"+W258/$W$9","v":8.3333333333333332E-3}]
[]
[null,null,null,null,"10.4.",null,null,null,"Se desarrollaron el organigrama y la descripción de cargos del proyecto.",null,null,null,null,null,1,{"$f":"+O260-1","v":0},0.83333333333333337,{"$f":"+P260*W260/5","v":0},{"$f":"IF(W260=0,0,R260/W260)","v":0},null,{"$f":"+DEFINICIÓN!$I$33*W260/5","v":4.166666666666667},null,{"$f":"+$W$252/12","v":4.166666666666667},{"$f":"+W260/$W$9","v":8.3333333333333332E-3}]
[]
[null,null,null,null,"10.5.",null,null,null,"Las relaciones de comunicación entre el personal del proyecto fueron definidas y documentadas.",null,null,null,null,null,1,{"$f":"+O262-1","v":0},0.83333333333333337,{"$f":"+P262*W262/5","v":0},{"$f":"IF(W262=0,0,R262/W262)","v":0},null,{"$f":"+DEFINICIÓN!$I$33*W262/5","v":4.166666666666667},null,{"$f":"+$W$252/12","v":4.166666666666667},{"$f":"+W262/$W$9","v":8.3333333333333332E-3}]
[]
[null,null,null,null,"10.6.",null,null,null,"Cada actividad del proyecto tiene un único responsable, de manera que no hay actividades sin responsable asignado.",null,null,null,null,null,1,{"$f":"+O264-1","v":0},0.83333333333333337,{"$f":"+P264*W264/5","v":0},{"$f":"IF(W264=0,0,R264/W264)","v":0},null,{"$f":"+DEFINICIÓN!$I$33*W264/5","v":4.166666666666667},null,{"$f":"+$W$252/12","v":4.166666666666667},{"$f":"+W264/$W$9","v":8.3333333333333332E-3}]
[]
[null,null,null,null,"10.7.",null,null,null,"El plan de gestión de recursos humanos incluye un plan detallado de adquisición de personal.",null,null,null,null,null,1,{"$f":"+O266-1","v":0},0.83333333333333337,{"$f":"+P266*W266/5","v":0},{"$f":"IF(W266=0,0,R266/W266)","v":0},null,{"$f":"+DEFINICIÓN!$I$33*W266/5","v":4.166666666666667},null,{"$f":"+$W$252/12","v":4.166666666666667},{"$f":"+W266/$W$9","v":8.3333333333333332E-3}]
[]
[null,null,null,null,"10.8.",null,null,null,"Se definió y documentó un plan de capacitación para los recursos humanos del proyecto.",null,null,null,null,null,1,{"$f":"+O268-1","v":0},0.83333333333333337,{"$f":"+P268*W268/5","v":0},{"$f":"IF(W268=0,0,R268/W268)","v":0},null,{"$f":"+DEFINICIÓN!$I$33*W268/5","v":4.166666666666667},null,{"$f":"+$W$252/12","v":4.166666666666667},{"$f":"+W268/$W$9","v":8.3333333333333332E-3}]
[]
[null,null,null,null,"10.9.",null,null,null,"Se definió y socializó un programa de reconocimiento y recompensas destinado a motivar a los integrantes del equipo de trabajo del proyecto.",null,null,null,null,null,1,{"$f":"+O270-1","v":0},0.83333333333333337,{"$f":"+P270*W270/5","v":0},{"$f":"IF(W270=0,0,R270/W270)","v":0},null,{"$f":"+DEFINICIÓN!$I$33*W270/5","v":4.166666666666667},null,{"$f":"+$W$252/12","v":4.166666666666667},{"$f":"+W270/$W$9","v":8.3333333333333332E-3}]
[]
[null,null,null,null,"10.10.",null,null,null,"Las herramientas para la evaluación del personal fueron definidas inicialmente.",null,null,null,null,null,1,{"$f":"+O272-1","v":0},0.83333333333333337,{"$f":"+P272*W272/5","v":0},{"$f":"IF(W272=0,0,R272/W272)","v":0},null,{"$f":"+DEFINICIÓN!$I$33*W272/5","v":4.166666666666667},null,{"$f":"+$W$252/12","v":4.166666666666667},{"$f":"+W272/$W$9","v":8.3333333333333332E-3}]
[]
[null,null,null,null,"10.11.",null,null,null,"El plan de gestión de recursos humanos incluye el cronograma de contratación y liberación de recursos humanos del proyecto.",null,null,null,null,null,1,{"$f":"+O274-1","v":0},0.83333333333333337,{"$f":"+P274*W274/5","v":0},{"$f":"IF(W274=0,0,R274/W274)","v":0},null,{"$f":"+DEFINICIÓN!$I$33*W274/5","v":4.166666666666667},null,{"$f":"+$W$252/12","v":4.166666666666667},{"$f":"+W274/$W$9","v":8.3333333333333332E-3}]
[]
[null,null,null,null,"10.12.",null,null,null,"Se definieron los recursos necesarios para la gestión de recursos humanos del proyecto.",null,null,null,null,null,1,{"$f":"+O276-1","v":0},0.83333333333333337,{"$f":"+P276*W276/5","v":0},{"$f":"IF(W276=0,0,R276/W276)","v":0},null,{"$f":"+DEFINICIÓN!$I$33*W276/5","v":4.166666666666667},null,{"$f":"+$W$252/12","v":4.166666666666667},{"$f":"+W276/$W$9","v":8.3333333333333332E-3}]
[]
[]
[null,null,null,null,null,null,null,null,null,null,null,null,null,null,null,null,null,{"$f":"+R9","v":0},{"$f":"+S9","v":0}]

{"sheet":"RIESGOS","index":4,"n_rows":18,"n_cols":10,"rows_kept":18,"cut":false,"hidden":true,"merged":[[17,3,17,9],[5,2,7,10],[8,2,9,10],[16,3,16,5],[2,2,4,10],[16,7,16,8]]}
[]
[]
[]
[]
[]
[null,null,"Seleccione de la siguiente tabla el caso que se acomoda a las condiciones de su proyecto, en términos de las dimensiones de la matriz de riesgos y de la cantidad de niveles de tolerancia de riesgos."]
[]
[]
[null,null,"A continuación diligencie el registro de riesgos que se encuentra debajo de la matriz de riesgos. Abajo encontrará el acceso a la hoja de instrucciones."]
[]
[]
[]
[null,null,null,"Matriz de riesgos","5 x 5","5 x 5","5 x 5","4 x 4","4 x 4","3 x 3"]
[null,null,null,"Niveles de tolerancia",5,4,3,4,3,3]
[]
[]
[null,null,null,"NIVEL DE RIESGO GLOBAL",null,null,{"$f":"'Caso 1'!F50","v":"No definido"},{"$f":"'Caso 1'!G50","v":"   "},null,"CASO 1"]
[null,null,null,"NOTA: Se mostrará el resultado del último caso seleccionado. Debe ser muy cuidadoso con la selección de este únicamente por el caso que aplique."]

{"sheet":"INSTRUCCIONES RIESGOS","index":5,"n_rows":23,"n_cols":12,"rows_kept":23,"cut":false,"hidden":true,"merged":[[20,4,20,10],[20,12,20,13],[21,3,22,3],[21,4,21,10],[22,4,22,10],[18,4,18,10],[19,4,19,10],[2,2,5,14],[6,2,8,14],[10,11,10,12],[12,11,12,12],[13,11,13,12]]}
[]
[]
[]
[]
[]
[]
[null,null,"La presente herramienta contempla las combinaciones típicas entre matrices de riesgos y los diferentes niveles de tolerancia que tienen las organizaciones, así:"]
[]
[]
[]
[null,null,null,null,null,null,"CASO 1","CASO 2","CASO 3","CASO 4","CASO 5","CASO 6"]
[]
[null,null,null,null,"Matriz de riesgos",null,"5 x 5","5 x 5","5 x 5","4 x 4","4 x 4","3 x 3"]
[null,null,null,null,"Niveles de tolerancia",null,5,4,3,4,3,3]
[]
[]
[]
[null,null,null,"Instrucciones:"]
[null,null,null,"1.","Seleccionar, de la tabla anterior, el caso que aplica para la organización. "]
[null,null,null,"2.","Diligenciar los valores de probabilidad y de impacto determinados por la organización/proyecto para calificar los riesgos, de menor a mayor en las casillas sombreadas de color azul de la tabla \"probabilidad e impacto\"."]
[null,null,null,"3.","Diligencie los valores de los rangos de la tolerancia del riesgo determinados por la organización/ proyecto, que en la tabla \"criterios de aceptación del riesgo\" se encuentran sombreados con color azul."]
[null,null,null,"4.","De acuerdo con el análisis cualitativo de los riesgos del proyecto, y comparando con la Grafica \"Matriz de Riesgos Base\", escribir dentro de la Gráfica \"Matriz Riesgo Proyecto\" cuántos riesgos se calificaron para cada una de las casillas que reprensentan un calificación de probabilidad x impacto. "]
[null,null,null,null,"Es decir, para cada una de la casillas sombreadas con color azul, diligencia cuantos riesgos fueron identificados en esa valoración del análisis cualitativo."]

{"sheet":"Caso 1","index":6,"n_rows":98,"n_cols":21,"rows_kept":98,"cut":false,"hidden":true,"merged":[[2,2,4,14],[26,6,26,10],[28,11,32,11],[33,4,36,4],[49,3,49,4],[52,5,52,7],[97,6,97,7],[5,2,7,14],[9,6,9,10],[14,7,14,9],[15,7,16,7],[15,8,15,9],[24,6,24,10],[52,10,52,11]]}
[]
[]
[]
[]
[]
[null,null,"1. Diligencia en cada una de las casillas sombreadas los niveles definidos como escalas de probabilidad e impacto para el proyecto y los niveles de tolerancia del riesgo.\n2. Diligencie la definición de la escala de impacto para las diferentes categorías de riesgos que identifiquen el proyecto."]
[]
[]
[]
[null,null,null,null,null,null,"PROBABILIDAD E IMPACTO"]
[null,null,null,null,null,null,"Menor",null,null,null,"Mayor"]
[null,null,null,null,null,"Valores probabilidad"]
[null,null,null,null,null,"Valores Impacto"]
[]
[null,null,null,null,null,null,null,"CRITERIOS DE ACEPTACION DEL RIESGO"]
[null,null,null,null,null,null,null,"Nivel","Valor número"]
[null,null,null,null,null,null,null,null,"Minimo","Máximo"]
[null,null,null,null,null,null,null,"Aceptable",{"$f":"G12*G13","v":0}]
[null,null,null,null,null,null,null,"Tolerable"]
[null,null,null,null,null,null,null,"Moderado"]
[null,null,null,null,null,null,null,"Intolerable"]
[null,null,null,null,null,null,null,"Inadmisible",null,{"$f":"K12*K13","v":0}]
[]
[]
[null,null,null,null,null,null,"MATRIZ DE RIESGOS BASE"]
[]
[null,null,null,null,null,null,"IMPACTO"]
[null,null,null,null,null,null,{"$f":"G13","v":0},{"$f":"H13","v":0},{"$f":"I13","v":0},{"$f":"J13","v":0},{"$f":"K13","v":0}]
[null,null,null,null,null,{"$f":"K12","v":0},{"$f":"$G$28*F29","v":0},{"$f":"$H$28*F29","v":0},{"$f":"$I$28*F29","v":0},{"$f":"$J$28*F29","v":0},{"$f":"$K$28*F29","v":0},"PROBABILIDAD",null,null,null,null,16,32,64,128,256]
[null,null,null,null,null,{"$f":"J12","v":0},{"$f":"$G$28*F30","v":0},{"$f":"$H$28*F30","v":0},{"$f":"$I$28*F30","v":0},{"$f":"$J$28*F30","v":0},{"$f":"$K$28*F30","v":0},null,null,null,null,null,8,16,32,64,128]
[null,null,null,null,null,{"$f":"I12","v":0},{"$f":"$G$28*F31","v":0},{"$f":"$H$28*F31","v":0},{"$f":"$I$28*F31","v":0},{"$f":"$J$28*F31","v":0},{"$f":"$K$28*F31","v":0},null,null,null,null,null,4,8,16,32,64]
[null,null,null,null,null,{"$f":"H12","v":0},{"$f":"$G$28*F32","v":0},{"$f":"$H$28*F32","v":0},{"$f":"$I$28*F32","v":0},{"$f":"$J$28*F32","v":0},{"$f":"$K$28*F32","v":0},null,null,null,null,null,2,4,8,16,32]
[null,null,null,null,null,{"$f":"G12","v":0},{"$f":"$G$28*F33","v":0},{"$f":"$H$28*F33","v":0},{"$f":"$I$28*F33","v":0},{"$f":"$J$28*F33","v":0},{"$f":"$K$28*F33","v":0},null,null,null,null,null,1,2,4,8,16]
[null,null,null,null,"CATERGORIAS DE RIESGO","COSTO","Incremento < 1 mill USD ","Incremento entre\n1  y 3 MILL USD","Incremento entre\n3 y 7 MILL USD","Incremento entre\n7  y 10 MILL USD","Incremento > 10 mill USD "]
[null,null,null,null,null,"TIEMPO (retraso)","Inferior a __ meses sin ejecución \nde garantía","Entre __ y   meses sin ejecución de garantía\n","Entre __ y __ meses sin ejecución de garantía","Entre __  y __ meses sin ejecución de garantía o retraso menor con ejecución de garantía","> a ___  meses sin ejecución de\ngarantía o retraso menor con\nejecución de garantía"]
[null,null,null,null,null,"PERSONAS","___ Lesiones sin incapacidad","Incapacidad temporal para menos del __% de los trabajadores","Incapacidad permanente parcial en menos del __%  de los trabajadores.  \nIncapacidad temporal para el __% al __% de los  trabajadores","Incapacidad permanente parcial para el __% al __% de los trabajadores.  \nIncapacidad temporal para el __% al __% de los  trabajadores","Muerte o invalidez total de una (__) personas\nIncapacidad permanente parcial en más del __% de los trabajadores.  \nIncapacidad temporal en más del __% de los  trabajadores"]
[null,null,null,null,null,"AMBIENTE","Alteración del factor ambiental menor o igual al ___","La alteración del factor ambiental está entre ___ y ____","La alteración del factor ambiental está entre ___ y ____","La alteración del factor ambiental está entre ___ y ___","La alteración del factor ambiental es mayor al ___"]
[]
[]
[]
[]
[]
[]
[]
[]
[]
[]
[]
[]
[null,null,null,"NIVEL DE RIESGO GLOBAL",null,{"$f":"IF(K50=0,\"No definido\", J50/K50)","v":"No definido"},{"$f":"J98","v":"   "},null,null,{"$f":"SUM(K58:K94)","v":0},{"$f":"COUNT(K58:K94)","v":0}]
[]
[]
[null,null,null,null,"COD.","DESCRIPCIÓN",null,null,"PROBABILIDAD","IMPACTO","NIVEL DE RIESGO",null,"ESTADO ","ESTRATEGIA DE RESPUESTA"]
[]
[]
[null,null,null,null,null,"Causa","Evento","Consecuencia"]
[]
[null,null,null,null,"R1","Causa del Riesgo ","Evento del Riesgo ","Consecuencia del Riesgo",null,null,{"$f":"IF(I58=0, \" \",I58*J58)","v":" "},{"$f":"IF(K58=\" \", \"   \",IF(K58<$I$19,$H$18,IF(K58<$I$20,$H$19,IF(K58<$I$21,$H$20,IF(K58<$I$22,$H$21,$H$22)))))","v":"   "}]
[null,null,null,null,"R2","Causa del Riesgo ","Evento del Riesgo ","Consecuencia del Riesgo",null,null,{"$f":"IF(I59=0, \" \",I59*J59)","v":" "},"   "]
[null,null,null,null,"R3","Causa del Riesgo ","Evento del Riesgo ","Consecuencia del Riesgo",null,null," ","   "]
[null,null,null,null,"R4","Causa del Riesgo ","Evento del Riesgo ","Consecuencia del Riesgo",null,null," ","   "]
[null,null,null,null,"R5","Causa del Riesgo ","Evento del Riesgo ","Consecuencia del Riesgo",null,null," ","   "]
[null,null,null,null,"R6","Causa del Riesgo ","Evento del Riesgo ","Consecuencia del Riesgo",null,null," ","   "]
[null,null,null,null,"R7","Causa del Riesgo ","Evento del Riesgo ","Consecuencia del Riesgo",null,null,{"$f":"IF(I64=0, \" \",I64*J64)","v":" "},"   "]
[null,null,null,null,"R8","Causa del Riesgo ","Evento del Riesgo ","Consecuencia del Riesgo",null,null," ","   "]
[null,null,null,null,"R9","Causa del Riesgo ","Evento del Riesgo ","Consecuencia del Riesgo",null,null," ","   "]
[null,null,null,null,"R10","Causa del Riesgo ","Evento del Riesgo ","Consecuencia del Riesgo",null,null," ","   "]
[null,null,null,null,"R11","Causa del Riesgo ","Evento del Riesgo ","Consecuencia del Riesgo",null,null," ","   "]
[null,null,null,null,"R12","Causa del Riesgo ","Evento del Riesgo ","Consecuencia del Riesgo",null,null,{"$f":"IF(I69=0, \" \",I69*J69)","v":" "},{"$f":"IF(K69=\" \", \"   \",IF(K69<$I$19,$H$18,IF(K69<$I$20,$H$19,IF(K69<$I$21,$H$20,IF(K69<$I$22,$H$21,$H$22)))))","v":"   "}]
[null,null,null,null,null,null,null,null,null,null," ","   "]
[null,null,null,null,null,null,null,null,null,null," ","   "]
[null,null,null,null,null,null,null,null,null,null," ","   "]
[null,null,null,null,null,null,null,null,null,null," ","   "]
[null,null,null,null,null,null,null,null,null,null," ","   "]
[null,null,null,null,null,null,null,null,null,null," ","   "]
[null,null,null,null,null,null,null,null,null,null," ","   "]
[null,null,null,null,null,null,null,null,null,null," ","   "]
[null,null,null,null,null,null,null,null,null,null," ","   "]
[null,null,null,null,null,null,null,null,null,null," ","   "]
[null,null,null,null,null,null,null,null,null,null," ","   "]
[null,null,null,null,null,null,null,null,null,null," ","   "]
[null,null,null,null,null,null,null,null,null,null," ","   "]
[null,null,null,null,null,null,null,null,null,null," ","   "]
[null,null,null,null,null,null,null,null,null,null," ","   "]
[null,null,null,null,null,null,null,null,null,null," ","   "]
[null,null,null,null,null,null,null,null,null,null," ","   "]
[null,null,null,null,null,null,null,null,null,null," ","   "]
[null,null,null,null,null,null,null,null,null,null," ","   "]
[null,null,null,null,null,null,null,null,null,null," ","   "]
[null,null,null,null,null,null,null,null,null,null," ","   "]
[null,null,null,null,null,null,null,null,null,null," ","   "]
[null,null,null,null,null,null,null,null,null,null," ","   "]
[null,null,null,null,null,null,null,null,null,null," ","   "]
[null,null,null,null,null,null,null,null,null,null," ","   "]
[]
[]
[]
[null,null,null,null,null,null,"NIVEL DE RIESGO GLOBAL",null,{"$f":"F50","v":"No definido"},{"$f":"IF(I98=\"No definido\", \"   \",IF(I98<I19,H18,IF(I98<I20,H19,IF(I98<I21,H20,IF(I98<I22,H21,H22)))))","v":"   "}]

{"sheet":"Caso 2","index":7,"n_rows":101,"n_cols":21,"rows_kept":101,"cut":false,"hidden":true,"merged":[[2,2,4,14],[25,6,25,10],[27,11,31,11],[32,4,35,4],[48,3,48,4],[51,5,51,7],[100,6,100,7],[5,2,7,14],[9,6,9,10],[14,7,14,9],[15,7,16,7],[15,8,15,9],[23,6,23,10],[51,10,51,11]]}
[]
[]
[]
[]
[]
[null,null,"1. Diligencia en cada una de las casillas sombreadas los niveles definidos como escalas de probabilidad e impacto para el proyecto y los niveles de tolerancia del riesgo.\n2. Diligencie la definición de la escala de impacto para las diferentes categorías de riesgos que identifiquen el proyecto."]
[]
[]
[]
[null,null,null,null,null,null,"PROBABILIDAD E IMPACTO"]
[null,null,null,null,null,null,"Menor",null,null,null,"Mayor"]
[null,null,null,null,null,"Valores probabilidad"]
[null,null,null,null,null,"Valores Impacto"]
[]
[null,null,null,null,null,null,null,"CRITERIOS DE ACEPTACION DEL RIESGO"]
[null,null,null,null,null,null,null,"Nivel","Valor número"]
[null,null,null,null,null,null,null,null,"Minimo","Máximo"]
[null,null,null,null,null,null,null,"Aceptable",{"$f":"G12*G13","v":0}]
[null,null,null,null,null,null,null,"Tolerable"]
[null,null,null,null,null,null,null,"Inaceptable"]
[null,null,null,null,null,null,null,"Inadmisible",null,{"$f":"K13*K12","v":0}]
[]
[]
[null,null,null,null,null,null,"MATRIZ DE RIESGOS BASE"]
[]
[null,null,null,null,null,null,"IMPACTO"]
[null,null,null,null,null,null,{"$f":"G13","v":0},{"$f":"H13","v":0},{"$f":"I13","v":0},{"$f":"J13","v":0},{"$f":"K13","v":0}]
[null,null,null,null,null,{"$f":"K12","v":0},{"$f":"$G$27*F28","v":0},{"$f":"$H$27*F28","v":0},{"$f":"$I$27*F28","v":0},{"$f":"$J$27*F28","v":0},{"$f":"$K$27*F28","v":0},"PROBABILIDAD",null,null,null,null,16,32,64,128,256]
[null,null,null,null,null,{"$f":"J12","v":0},{"$f":"$G$27*F29","v":0},{"$f":"$H$27*F29","v":0},{"$f":"$I$27*F29","v":0},{"$f":"$J$27*F29","v":0},{"$f":"$K$27*F29","v":0},null,null,null,null,null,8,16,32,64,128]
[null,null,null,null,null,{"$f":"I12","v":0},{"$f":"$G$27*F30","v":0},{"$f":"$H$27*F30","v":0},{"$f":"$I$27*F30","v":0},{"$f":"$J$27*F30","v":0},{"$f":"$K$27*F30","v":0},null,null,null,null,null,4,8,16,32,64]
[null,null,null,null,null,{"$f":"H12","v":0},{"$f":"$G$27*F31","v":0},{"$f":"$H$27*F31","v":0},{"$f":"$I$27*F31","v":0},{"$f":"$J$27*F31","v":0},{"$f":"$K$27*F31","v":0},null,null,null,null,null,2,4,8,16,32]
[null,null,null,null,null,{"$f":"G12","v":0},{"$f":"$G$27*F32","v":0},{"$f":"$H$27*F32","v":0},{"$f":"$I$27*F32","v":0},{"$f":"$J$27*F32","v":0},{"$f":"$K$27*F32","v":0},null,null,null,null,null,1,2,4,8,16]
[null,null,null,null,"CATERGORIAS DE RIESGO","TIEMPO","Inferior a __ meses sin ejecución \nde garantía","Entre __ y   meses sin ejecución de garantía\n","Entre __ y __ meses sin ejecución de garantía","Entre __  y __ meses sin ejecución de garantía o retraso menor con ejecución de garantía","> a ___  meses sin ejecución de\ngarantía o retraso menor con\nejecución de garantía"]
[null,null,null,null,null,"PERSONAS","___ Lesiones sin incapacidad","Incapacidad temporal para menos del __% de los trabajadores","Incapacidad permanente parcial en menos del __%  de los trabajadores.  \nIncapacidad temporal para el __% al __% de los  trabajadores","Incapacidad permanente parcial para el __% al __% de los trabajadores.  \nIncapacidad temporal para el __% al __% de los  trabajadores","Muerte o invalidez total de una (__) personas\nIncapacidad permanente parcial en más del __% de los trabajadores.  \nIncapacidad temporal en más del __% de los  trabajadores"]
[null,null,null,null,null,"AMBIENTE","Alteración del factor ambiental menor o igual al ___","La alteración del factor ambiental está entre ___ y ____","La alteración del factor ambiental está entre ___ y ____","La alteración del factor ambiental está entre ___ y ___","La alteración del factor ambiental es mayor al ___"]
[]
[]
[]
[]
[]
[]
[]
[]
[]
[]
[]
[]
[]
[null,null,null,"NIVEL DE RIESGO GLOBAL",null,{"$f":"IF(K49=0,\"No definido\", J49/K49)","v":"No definido"},{"$f":"J101","v":"   "},null,null,{"$f":"SUM(K57:K97)","v":0},{"$f":"COUNT(K57:K97)","v":0}]
[]
[]
[null,null,null,null,"COD.","DESCRIPCIÓN",null,null,"PROBABILIDAD","IMPACTO","NIVEL DE RIESGO",null,"ESTADO ","ESTRATEGIA DE RESPUESTA"]
[]
[]
[null,null,null,null,null,"Causa","Evento","Impacto",null,null,null,null,null,"estrategia"]
[]
[null,null,null,null,"R1","Causa del Riesgo ","Evento del Riesgo ","Consecuencia del Riesgo",null,null,{"$f":"IF(I57=0, \" \",I57*J57)","v":" "},{"$f":"IF(K57=\" \", \"   \",IF(K57<$I$19,$H$18,IF(K57<$I$20,$H$19,IF(K57<$I$21,$H$20,$H$21))))","v":"   "}]
[null,null,null,null,"R2","Causa del Riesgo ","Evento del Riesgo ","Consecuencia del Riesgo",null,null,{"$f":"IF(I58=0, \" \",I58*J58)","v":" "},"   "]
[null,null,null,null,"R3","Causa del Riesgo ","Evento del Riesgo ","Consecuencia del Riesgo",null,null,{"$f":"IF(I59=0, \" \",I59*J59)","v":" "},"   "]
[null,null,null,null,"R4","Causa del Riesgo ","Evento del Riesgo ","Consecuencia del Riesgo",null,null,{"$f":"IF(I60=0, \" \",I60*J60)","v":" "},"   "]
[null,null,null,null,"R5","Causa del Riesgo ","Evento del Riesgo ","Consecuencia del Riesgo",null,null,{"$f":"IF(I61=0, \" \",I61*J61)","v":" "},"   "]
[null,null,null,null,"R6","Causa del Riesgo ","Evento del Riesgo ","Consecuencia del Riesgo",null,null,{"$f":"IF(I62=0, \" \",I62*J62)","v":" "},"   "]
[null,null,null,null,"R7","Causa del Riesgo ","Evento del Riesgo ","Consecuencia del Riesgo",null,null,{"$f":"IF(I63=0, \" \",I63*J63)","v":" "},"   "]
[null,null,null,null,"R8","Causa del Riesgo ","Evento del Riesgo ","Consecuencia del Riesgo",null,null,{"$f":"IF(I64=0, \" \",I64*J64)","v":" "},"   "]
[null,null,null,null,"R9","Causa del Riesgo ","Evento del Riesgo ","Consecuencia del Riesgo",null,null,{"$f":"IF(I65=0, \" \",I65*J65)","v":" "},"   "]
[null,null,null,null,"R10","Causa del Riesgo ","Evento del Riesgo ","Consecuencia del Riesgo",null,null,{"$f":"IF(I66=0, \" \",I66*J66)","v":" "},"   "]
[null,null,null,null,"R11","Causa del Riesgo ","Evento del Riesgo ","Consecuencia del Riesgo",null,null,{"$f":"IF(I67=0, \" \",I67*J67)","v":" "},"   "]
[null,null,null,null,"R12","Causa del Riesgo ","Evento del Riesgo ","Consecuencia del Riesgo",null,null,{"$f":"IF(I68=0, \" \",I68*J68)","v":" "},"   "]
[null,null,null,null,"R13","Causa del Riesgo ","Evento del Riesgo ","Consecuencia del Riesgo",null,null,{"$f":"IF(I69=0, \" \",I69*J69)","v":" "},"   "]
[null,null,null,null,"R14","Causa del Riesgo ","Evento del Riesgo ","Consecuencia del Riesgo",null,null,{"$f":"IF(I70=0, \" \",I70*J70)","v":" "},"   "]
[null,null,null,null,"R15","Causa del Riesgo ","Evento del Riesgo ","Consecuencia del Riesgo",null,null,{"$f":"IF(I71=0, \" \",I71*J71)","v":" "},"   "]
[null,null,null,null,"R16","Causa del Riesgo ","Evento del Riesgo ","Consecuencia del Riesgo",null,null,{"$f":"IF(I72=0, \" \",I72*J72)","v":" "},"   "]
[null,null,null,null,"R17","Causa del Riesgo ","Evento del Riesgo ","Consecuencia del Riesgo",null,null,{"$f":"IF(I73=0, \" \",I73*J73)","v":" "},"   "]
[null,null,null,null,"R18","Causa del Riesgo ","Evento del Riesgo ","Consecuencia del Riesgo",null,null,{"$f":"IF(I74=0, \" \",I74*J74)","v":" "},"   "]
[null,null,null,null,"R19","Causa del Riesgo ","Evento del Riesgo ","Consecuencia del Riesgo",null,null,{"$f":"IF(I75=0, \" \",I75*J75)","v":" "},"   "]
[null,null,null,null,"R20","Causa del Riesgo ","Evento del Riesgo ","Consecuencia del Riesgo",null,null,{"$f":"IF(I76=0, \" \",I76*J76)","v":" "},"   "]
[null,null,null,null,null,null,null,null,null,null,{"$f":"IF(I77=0, \" \",I77*J77)","v":" "},"   "]
[null,null,null,null,null,null,null,null,null,null,{"$f":"IF(I78=0, \" \",I78*J78)","v":" "},"   "]
[null,null,null,null,null,null,null,null,null,null,{"$f":"IF(I79=0, \" \",I79*J79)","v":" "},"   "]
[null,null,null,null,null,null,null,null,null,null,{"$f":"IF(I80=0, \" \",I80*J80)","v":" "},"   "]
[null,null,null,null,null,null,null,null,null,null,{"$f":"IF(I81=0, \" \",I81*J81)","v":" "},"   "]
[null,null,null,null,null,null,null,null,null,null,{"$f":"IF(I82=0, \" \",I82*J82)","v":" "},"   "]
[null,null,null,null,null,null,null,null,null,null," ",{"$f":"IF(K83=\" \", \"   \",IF(K83<$I$19,$H$18,IF(K83<$I$20,$H$19,IF(K83<$I$21,$H$20,$H$21))))","v":"   "}]
[null,null,null,null,null,null,null,null,null,null," ","   "]
[null,null,null,null,null,null,null,null,null,null," ","   "]
[null,null,null,null,null,null,null,null,null,null," ","   "]
[null,null,null,null,null,null,null,null,null,null," ","   "]
[null,null,null,null,null,null,null,null,null,null," ","   "]
[null,null,null,null,null,null,null,null,null,null," ","   "]
[null,null,null,null,null,null,null,null,null,null," ","   "]
[null,null,null,null,null,null,null,null,null,null," ","   "]
[null,null,null,null,null,null,null,null,null,null," ","   "]
[null,null,null,null,null,null,null,null,null,null," ","   "]
[null,null,null,null,null,null,null,null,null,null," ","   "]
[null,null,null,null,null,null,null,null,null,null," ","   "]
[null,null,null,null,null,null,null,null,null,null," ","   "]
[]
[]
[]
[]
[null,null,null,null,null,null,"NIVEL DE RIESGO GLOBAL",null,{"$f":"F49","v":"No definido"},{"$f":"IF(I101=\"No definido\", \"   \",IF(I101<I19,H19,IF(I101<I20,H19,IF(I101<I21,H20,H21))))","v":"   "}]

{"sheet":"Caso 3","index":8,"n_rows":91,"n_cols":21,"rows_kept":91,"cut":false,"hidden":true,"merged":[[2,2,4,13],[24,6,24,10],[26,11,30,11],[31,4,34,4],[47,3,47,4],[50,5,50,7],[90,6,90,7],[5,2,7,14],[9,6,9,10],[14,7,14,9],[15,7,16,7],[15,8,15,9],[22,6,22,10],[50,10,50,11]]}
[]
[]
[]
[]
[]
[null,null,"1. Diligencia en cada una de las casillas sombreadas los niveles definidos como escalas de probabilidad e impacto para el proyecto y los niveles de tolerancia del riesgo.\n2. Diligencie la definición de la escala de impacto para las diferentes categorías de riesgos que identifiquen el proyecto."]
[]
[]
[]
[null,null,null,null,null,null,"PROBABILIDAD E IMPACTO"]
[null,null,null,null,null,null,"Menor",null,null,null,"Mayor"]
[null,null,null,null,null,"Valores probabilidad"]
[null,null,null,null,null,"Valores Impacto"]
[]
[null,null,null,null,null,null,null,"CRITERIOS DE ACEPTACION DEL RIESGO"]
[null,null,null,null,null,null,null,"Nivel","Valor número"]
[null,null,null,null,null,null,null,null,"Minimo","Máximo"]
[null,null,null,null,null,null,null,"Aceptable",{"$f":"G12*G13","v":0}]
[null,null,null,null,null,null,null,"Tolerable"]
[null,null,null,null,null,null,null,"Inadmisible",null,{"$f":"K12*K13","v":0}]
[]
[]
[null,null,null,null,null,null,"MATRIZ DE RIESGOS BASE"]
[]
[null,null,null,null,null,null,"IMPACTO"]
[null,null,null,null,null,null,{"$f":"G13","v":0},{"$f":"H13","v":0},{"$f":"I13","v":0},{"$f":"J13","v":0},{"$f":"K13","v":0}]
[null,null,null,null,null,{"$f":"K12","v":0},{"$f":"$G$26*F27","v":0},{"$f":"$H$26*F27","v":0},{"$f":"$I$26*F27","v":0},{"$f":"$J$26*F27","v":0},{"$f":"$K$26*F27","v":0},"PROBABILIDAD",null,null,null,null,16,32,64,128,256]
[null,null,null,null,null,{"$f":"J12","v":0},{"$f":"$G$26*F28","v":0},{"$f":"$H$26*F28","v":0},{"$f":"$I$26*F28","v":0},{"$f":"$J$26*F28","v":0},{"$f":"$K$26*F28","v":0},null,null,null,null,null,8,16,32,64,128]
[null,null,null,null,null,{"$f":"I12","v":0},{"$f":"$G$26*F29","v":0},{"$f":"$H$26*F29","v":0},{"$f":"$I$26*F29","v":0},{"$f":"$J$26*F29","v":0},{"$f":"$K$26*F29","v":0},null,null,null,null,null,4,8,16,32,64]
[null,null,null,null,null,{"$f":"H12","v":0},{"$f":"$G$26*F30","v":0},{"$f":"$H$26*F30","v":0},{"$f":"$I$26*F30","v":0},{"$f":"$J$26*F30","v":0},{"$f":"$K$26*F30","v":0},null,null,null,null,null,2,4,8,16,32]
[null,null,null,null,null,{"$f":"G12","v":0},{"$f":"$G$26*F31","v":0},{"$f":"$H$26*F31","v":0},{"$f":"$I$26*F31","v":0},{"$f":"$J$26*F31","v":0},{"$f":"$K$26*F31","v":0},null,null,null,null,null,1,2,4,8,16]
[null,null,null,null,"CATERGORIAS DE RIESGO","COSTO","Variación < __%","Variac. entre ___ y _____","Variac. entre ___ y _____","Variac. entre ___ y _____","Variación > __%"]
[null,null,null,null,null,"TIEMPO","Variación < __%","Variac. entre ___ y _____","Variac. entre ___ y _____","Variac. entre ___ y _____","Variación > __%"]
[null,null,null,null,null,"PERSONAS","__Lesiones sin incapacidad","Incapacidad temporal para menos del __% de los trabajadores","Incapacidad permanente parcial en menos del __%  de los trabajadores.  \nIncapacidad temporal para el __% al __% de los  trabajadores","Incapacidad permanente parcial para el __% al __% de los trabajadores.  \nIncapacidad temporal para el __% al __% de los  trabajadores","Muerte o invalidez total de una (__) persona\nIncapacidad permanente parcial en más del __% de los trabajadores.  \nIncapacidad temporal en más del __% de los  trabajadores"]
[null,null,null,null,null,"AMBIENTE","Alteración del factor ambiental menor o igual al __%.","La alteración del factor ambiental está entre ___ y ____","La alteración del factor ambiental está entre ___ y ____","La alteración del factor ambiental está entre __% y __%","La alteración del factor ambiental es mayor al __%. "]
[]
[]
[]
[]
[]
[]
[]
[]
[]
[]
[]
[]
[null,null,null,"NIVEL DE RIESGO GLOBAL",null,{"$f":"IF(K48=0,\"No definido\", J48/K48)","v":"No definido"},{"$f":"J91","v":"   "},null,null,{"$f":"SUM(K56:K87)","v":0},{"$f":"COUNT(K56:K87)","v":0}]
[]
[]
[null,null,null,null,"COD.","DESCRIPCIÓN",null,null,"PROBABILIDAD","IMPACTO","NIVEL DE RIESGO",null,"ESTADO ","ESTRATEGIA DE RESPUESTA"]
[]
[]
[null,null,null,null,null,"Causa","Evento","Consecuencia"]
[]
[null,null,null,null,"R1","Causa del Riesgo ","Evento del Riesgo ","Consecuencia del Riesgo",null,null,{"$f":"IF(I56=0, \" \",I56*J56)","v":" "},{"$f":"IF(K56=\" \",\"   \",IF(K56<$I$19,$H$18,IF(K56<$I$20,$H$19,$H$20)))","v":"   "}]
[null,null,null,null,"R2","Causa del Riesgo ","Evento del Riesgo ","Consecuencia del Riesgo",null,null,{"$f":"IF(I57=0, \" \",I57*J57)","v":" "},{"$f":"IF(K57=\" \",\"   \",IF(K57<$I$19,$H$18,IF(K57<$I$20,$H$19,$H$20)))","v":"   "}]
[null,null,null,null,"R3","Causa del Riesgo ","Evento del Riesgo ","Consecuencia del Riesgo",null,null," ",{"$f":"IF(K58=\" \",\"   \",IF(K58<$I$19,$H$18,IF(K58<$I$20,$H$19,$H$20)))","v":"   "}]
[null,null,null,null,"R4","Causa del Riesgo ","Evento del Riesgo ","Consecuencia del Riesgo",null,null,{"$f":"IF(I59=0, \" \",I59*J59)","v":" "},{"$f":"IF(K59=\" \",\"   \",IF(K59<$I$19,$H$18,IF(K59<$I$20,$H$19,$H$20)))","v":"   "}]
[null,null,null,null,"R5","Causa del Riesgo ","Evento del Riesgo ","Consecuencia del Riesgo",null,null," ","   "]
[null,null,null,null,"R6","Causa del Riesgo ","Evento del Riesgo ","Consecuencia del Riesgo",null,null," ","   "]
[null,null,null,null,"R7","Causa del Riesgo ","Evento del Riesgo ","Consecuencia del Riesgo",null,null," ","   "]
[null,null,null,null,"R8","Causa del Riesgo ","Evento del Riesgo ","Consecuencia del Riesgo",null,null," ","   "]
[null,null,null,null,"R9","Causa del Riesgo ","Evento del Riesgo ","Consecuencia del Riesgo",null,null," ","   "]
[null,null,null,null,"R10","Causa del Riesgo ","Evento del Riesgo ","Consecuencia del Riesgo",null,null," ","   "]
[null,null,null,null,"R11","Causa del Riesgo ","Evento del Riesgo ","Consecuencia del Riesgo",null,null," ","   "]
[null,null,null,null,"R12","Causa del Riesgo ","Evento del Riesgo ","Consecuencia del Riesgo",null,null," ","   "]
[null,null,null,null,null,null,null,null,null,null," ","   "]
[null,null,null,null,null,null,null,null,null,null," ","   "]
[null,null,null,null,null,null,null,null,null,null," ","   "]
[null,null,null,null,null,null,null,null,null,null," ","   "]
[null,null,null,null,null,null,null,null,null,null," ","   "]
[null,null,null,null,null,null,null,null,null,null," ","   "]
[null,null,null,null,null,null,null,null,null,null," ","   "]
[null,null,null,null,null,null,null,null,null,null," ","   "]
[null,null,null,null,null,null,null,null,null,null," ","   "]
[null,null,null,null,null,null,null,null,null,null," ","   "]
[null,null,null,null,null,null,null,null,null,null," ","   "]
[null,null,null,null,null,null,null,null,null,null," ","   "]
[null,null,null,null,null,null,null,null,null,null," ","   "]
[null,null,null,null,null,null,null,null,null,null," ","   "]
[null,null,null,null,null,null,null,null,null,null," ","   "]
[null,null,null,null,null,null,null,null,null,null," ","   "]
[null,null,null,null,null,null,null,null,null,null," ","   "]
[null,null,null,null,null,null,null,null,null,null," ","   "]
[null,null,null,null,null,null,null,null,null,null," ","   "]
[null,null,null,null,null,null,null,null,null,null," ","   "]
[]
[]
[]
[null,null,null,null,null,null,"NIVEL DE RIESGO GLOBAL",null,{"$f":"F48","v":"No definido"},{"$f":"IF(I91=\"No definido\", \"   \",IF(I91<I19,H18,IF(I91<I20,H19,H20)))","v":"   "}]

{"sheet":"Caso 4","index":9,"n_rows":89,"n_cols":20,"rows_kept":89,"cut":false,"hidden":true,"merged":[[27,11,30,11],[47,3,47,4],[50,5,50,7],[88,6,88,7],[2,2,4,14],[5,2,7,14],[14,7,14,9],[15,7,16,7],[15,8,15,9],[23,7,23,10],[25,7,25,10],[31,5,40,5]]}
[]
[]
[]
[]
[]
[null,null,"1. Diligencia en cada una de las casillas sombreadas los niveles definidos como escalas de probabilidad e impacto para el proyecto y los niveles de tolerancia del riesgo.\n2. Diligencie la definición de la escala de impacto para las diferentes categorías de riesgos que identifiquen el proyecto."]
[]
[]
[]
[null,null,null,null,null,null,null,"PROBABILIDAD E IMPACTO"]
[null,null,null,null,null,null,null,"Menor",null,null,"Mayor"]
[null,null,null,null,null,null,"Valores probabilidad"]
[null,null,null,null,null,null,"Valores Impacto"]
[]
[null,null,null,null,null,null,null,"CRITERIOS DE ACEPTACION DEL RIESGO"]
[null,null,null,null,null,null,null,"Nivel","Valor número"]
[null,null,null,null,null,null,null,null,"Minimo","Máximo"]
[null,null,null,null,null,null,null,"Aceptable",{"$f":"H12*H13","v":0}]
[null,null,null,null,null,null,null,"Tolerable"]
[null,null,null,null,null,null,null,"Moderado"]
[null,null,null,null,null,null,null,"Inadmisible",null,{"$f":"K12*K13","v":0}]
[]
[]
[null,null,null,null,null,null,null,"MATRIZ DE RIESGOS BASE"]
[]
[null,null,null,null,null,null,null,"IMPACTO"]
[null,null,null,null,null,null,null,{"$f":"H13","v":0},{"$f":"I13","v":0},{"$f":"J13","v":0},{"$f":"K13","v":0}]
[null,null,null,null,null,null,{"$f":"K12","v":0},{"$f":"$H$27*G28","v":0},{"$f":"$I$27*G28","v":0},{"$f":"$J$27*G28","v":0},{"$f":"$K$27*G28","v":0},"PROBABILIDAD",null,null,null,null,32,64,128,256]
[null,null,null,null,null,null,{"$f":"J12","v":0},{"$f":"$H$27*G29","v":0},{"$f":"$I$27*G29","v":0},{"$f":"$J$27*G29","v":0},{"$f":"$K$27*G29","v":0},null,null,null,null,null,8,16,32,64]
[null,null,null,null,null,null,{"$f":"I12","v":0},{"$f":"$H$27*G30","v":0},{"$f":"$I$27*G30","v":0},{"$f":"$J$27*G30","v":0},{"$f":"$K$27*G30","v":0},null,null,null,null,null,4,8,16,32]
[null,null,null,null,null,null,{"$f":"H12","v":0},{"$f":"$H$27*G31","v":0},{"$f":"$I$27*G31","v":0},{"$f":"$J$27*G31","v":0},{"$f":"$K$27*G31","v":0},null,null,null,null,null,2,4,8,16]
[null,null,null,null,null,"CATERGORIAS DE RIESGO","COSTO","Variación < __%","Variac. entre ___ y _____","Variac. entre ___ y _____","Variación > __%"]
[null,null,null,null,null,null,"TIEMPO","Variación < __%","Variac. entre ___ y _____","Variac. entre ___ y _____","Variación > __%"]
[null,null,null,null,null,null,"PERSONAS","__ Lesiones sin incapacidad","Incapacidad temporal para menos del __% de los trabajadores","Incapacidad permanente parcial en menos del __%  de los trabajadores.  \nIncapacidad temporal para el __% al __% de los  trabajadores","Muerte o invalidez total de una (__) personas\nIncapacidad permanente parcial en más del__% de los trabajadores.  \nIncapacidad temporal en más del __% de los  trabajadores"]
[null,null,null,null,null,null,"AMBIENTE","Alteración del factor ambiental menor o igual al __%.","La alteración del factor ambiental está entre ___ y ____","La alteración del factor ambiental está entre ___ y ____","La alteración del factor ambiental es mayor al __%. "]
[]
[]
[]
[]
[]
[]
[]
[]
[]
[]
[]
[]
[null,null,null,"NIVEL DE RIESGO GLOBAL",null,{"$f":"IF(K48=0,\"No definido\", J48/K48)","v":"No definido"},{"$f":"J89","v":"   "},null,null,{"$f":"SUM(K56:K85)","v":0},{"$f":"COUNT(K56:K85)","v":0}]
[]
[]
[null,null,null,null,"COD.","DESCRIPCIÓN",null,null,"PROBABILIDAD","IMPACTO","NIVEL DE RIESGO",null,"ESTADO ","ESTRATEGIA DE RESPUESTA"]
[]
[]
[null,null,null,null,null,"Causa","Evento","Consecuencia"]
[]
[null,null,null,null,"R1","Causa del Riesgo ","Evento del Riesgo ","Consecuencia del Riesgo",null,null,{"$f":"IF(I56=0, \" \",I56*J56)","v":" "},{"$f":"IF(K56=\" \", \"   \",IF(K56<$I$19,$H$18,IF(K56<$I$20,$H$19,IF(K56<$I$21,$H$20,$H$21))))","v":"   "}]
[null,null,null,null,"R2","Causa del Riesgo ","Evento del Riesgo ","Consecuencia del Riesgo",null,null,{"$f":"IF(I57=0, \" \",I57*J57)","v":" "},"   "]
[null,null,null,null,"R3","Causa del Riesgo ","Evento del Riesgo ","Consecuencia del Riesgo",null,null," ","   "]
[null,null,null,null,"R4","Causa del Riesgo ","Evento del Riesgo ","Consecuencia del Riesgo",null,null," ","   "]
[null,null,null,null,"R5","Causa del Riesgo ","Evento del Riesgo ","Consecuencia del Riesgo",null,null," ","   "]
[null,null,null,null,"R6","Causa del Riesgo ","Evento del Riesgo ","Consecuencia del Riesgo",null,null," ","   "]
[null,null,null,null,"R7","Causa del Riesgo ","Evento del Riesgo ","Consecuencia del Riesgo",null,null,{"$f":"IF(I62=0, \" \",I62*J62)","v":" "},"   "]
[null,null,null,null,"R8","Causa del Riesgo ","Evento del Riesgo ","Consecuencia del Riesgo",null,null," ","   "]
[null,null,null,null,"R9","Causa del Riesgo ","Evento del Riesgo ","Consecuencia del Riesgo",null,null," ","   "]
[null,null,null,null,"R10","Causa del Riesgo ","Evento del Riesgo ","Consecuencia del Riesgo",null,null," ","   "]
[null,null,null,null,"R11","Causa del Riesgo ","Evento del Riesgo ","Consecuencia del Riesgo",null,null," ","   "]
[null,null,null,null,"R12","Causa del Riesgo ","Evento del Riesgo ","Consecuencia del Riesgo",null,null,{"$f":"IF(I67=0, \" \",I67*J67)","v":" "},{"$f":"IF(K67=\" \", \"   \",IF(K67<$I$19,$H$18,IF(K67<$I$20,$H$19,IF(K67<$I$21,$H$20,$H$21))))","v":"   "}]
[null,null,null,null,null,null,null,null,null,null," ","   "]
[null,null,null,null,null,null,null,null,null,null,{"$f":"IF(I69=0, \" \",I69*J69)","v":" "},{"$f":"IF(K69=\" \", \"   \",IF(K69<$I$19,$H$18,IF(K69<$I$20,$H$19,IF(K69<$I$21,$H$20,$H$21))))","v":"   "}]
[null,null,null,null,null,null,null,null,null,null," ","   "]
[null,null,null,null,null,null,null,null,null,null," ","   "]
[null,null,null,null,null,null,null,null,null,null," ","   "]
[null,null,null,null,null,null,null,null,null,null," ","   "]
[null,null,null,null,null,null,null,null,null,null," ","   "]
[null,null,null,null,null,null,null,null,null,null," ","   "]
[null,null,null,null,null,null,null,null,null,null," ","   "]
[null,null,null,null,null,null,null,null,null,null," ","   "]
[null,null,null,null,null,null,null,null,null,null," ","   "]
[null,null,null,null,null,null,null,null,null,null," ","   "]
[null,null,null,null,null,null,null,null,null,null," ","   "]
[null,null,null,null,null,null,null,null,null,null," ","   "]
[null,null,null,null,null,null,null,null,null,null," ","   "]
[null,null,null,null,null,null,null,null,null,null," ","   "]
[null,null,null,null,null,null,null,null,null,null," ","   "]
[null,null,null,null,null,null,null,null,null,null," ","   "]
[]
[]
[]
[null,null,null,null,null,null,"NIVEL DE RIESGO GLOBAL",null,{"$f":"F48","v":"No definido"},{"$f":"IF(I89=\"No definido\", \"   \",IF(I89<I19,H18,IF(I89<I20,H19,IF(I89<I21,H20,H21))))","v":"   "}]

{"sheet":"Caso 5","index":10,"n_rows":88,"n_cols":20,"rows_kept":88,"cut":false,"hidden":true,"merged":[[26,11,29,11],[46,3,46,4],[49,5,49,7],[87,6,87,7],[2,2,4,14],[5,2,7,14],[14,7,14,9],[15,7,16,7],[15,8,15,9],[22,7,22,10],[24,7,24,10],[49,10,49,11],[30,5,39,5]]}
[]
[]
[]
[]
[]
[null,null,"1. Diligencia en cada una de las casillas sombreadas los niveles definidos como escalas de probabilidad e impacto para el proyecto y los niveles de tolerancia del riesgo.\n2. Diligencie la definición de la escala de impacto para las diferentes categorías de riesgos que identifiquen el proyecto."]
[]
[]
[]
[null,null,null,null,null,null,null,"PROBABILIDAD E IMPACTO"]
[null,null,null,null,null,null,null,"Menor",null,null,"Mayor"]
[null,null,null,null,null,null,"Valores probabilidad"]
[null,null,null,null,null,null,"Valores Impacto"]
[]
[null,null,null,null,null,null,null,"CRITERIOS DE ACEPTACION DEL RIESGO"]
[null,null,null,null,null,null,null,"Nivel","Valor número"]
[null,null,null,null,null,null,null,null,"Minimo","Máximo"]
[null,null,null,null,null,null,null,"Aceptable",{"$f":"+H12*H13","v":0}]
[null,null,null,null,null,null,null,"Tolerable"]
[null,null,null,null,null,null,null,"Inadmisible",null,{"$f":"+K12*K13","v":0}]
[]
[]
[null,null,null,null,null,null,null,"MATRIZ DE RIESGOS BASE"]
[]
[null,null,null,null,null,null,null,"IMPACTO"]
[null,null,null,null,null,null,null,{"$f":"H13","v":0},{"$f":"I13","v":0},{"$f":"J13","v":0},{"$f":"K13","v":0}]
[null,null,null,null,null,null,{"$f":"K12","v":0},{"$f":"$H$26*G27","v":0},{"$f":"$I$26*G27","v":0},{"$f":"$J$26*G27","v":0},{"$f":"$K$26*G27","v":0},"PROBABILIDAD",null,null,null,null,32,64,128,256]
[null,null,null,null,null,null,{"$f":"J12","v":0},{"$f":"$H$26*G28","v":0},{"$f":"$I$26*G28","v":0},{"$f":"$J$26*G28","v":0},{"$f":"$K$26*G28","v":0},null,null,null,null,null,8,16,32,64]
[null,null,null,null,null,null,{"$f":"I12","v":0},{"$f":"$H$26*G29","v":0},{"$f":"$I$26*G29","v":0},{"$f":"$J$26*G29","v":0},{"$f":"$K$26*G29","v":0},null,null,null,null,null,4,8,16,32]
[null,null,null,null,null,null,{"$f":"H12","v":0},{"$f":"$H$26*G30","v":0},{"$f":"$I$26*G30","v":0},{"$f":"$J$26*G30","v":0},{"$f":"$K$26*G30","v":0},null,null,null,null,null,2,4,8,16]
[null,null,null,null,null,"CATERGORIAS DE RIESGO","COSTO","Variación <__%","Variac. entre __% y __%","Variac. Entre __%  y  __%","Variación >  __%"]
[null,null,null,null,null,null,"TIEMPO","Variación < __%","Variac. entre __%   y   __%","Variac. entre __%   y  __%","Variación > __%"]
[null,null,null,null,null,null,"PERSONAS","Lesiones sin incapacidad","Incapacidad temporal para menos del __% de los trabajadores","Incapacidad permanente en menos del __%  de los trabajadores.  \nIncapacidad temporal para el __% al __% de los trabajadores.","Muerte o invalidez total de una __persona\nIncapacidad permanente en más del __% de los trabajadores.  \nIncapacidad temporal en más del __% de los  trabajadores"]
[]
[]
[]
[]
[]
[]
[]
[]
[]
[]
[]
[]
[]
[null,null,null,"NIVEL DE RIESGO GLOBAL",null,{"$f":"IF(K47=0,\"No definido\", J47/K47)","v":"No definido"},{"$f":"J88","v":"   "},null,null,{"$f":"SUM(K55:K84)","v":0},{"$f":"COUNT(K55:K84)","v":0}]
[]
[]
[null,null,null,null,"COD.","DESCRIPCIÓN",null,null,"PROBABILIDAD","IMPACTO","NIVEL DE RIESGO",null,"ESTADO ","ESTRATEGIA DE RESPUESTA"]
[]
[]
[null,null,null,null,null,"Causa","Evento","Consecuencia"]
[]
[null,null,null,null,"R1","Causa del Riesgo ","Evento del Riesgo ","Consecuencia del Riesgo",null,null,{"$f":"IF(I55=0, \" \",I55*J55)","v":" "},{"$f":"IF(K55=\" \",\"   \",IF(K55<$I$19,$H$18,IF(K55<$I$20,$H$19,$H$20)))","v":"   "}]
[null,null,null,null,"R2","Causa del Riesgo ","Evento del Riesgo ","Consecuencia del Riesgo",null,null,{"$f":"IF(I56=0, \" \",I56*J56)","v":" "},{"$f":"IF(K56=\" \",\"   \",IF(K56<$I$19,$H$18,IF(K56<$I$20,$H$19,$H$20)))","v":"   "}]
[null,null,null,null,"R3","Causa del Riesgo ","Evento del Riesgo ","Consecuencia del Riesgo",null,null," ",{"$f":"IF(K57=\" \",\"   \",IF(K57<$I$19,$H$18,IF(K57<$I$20,$H$19,$H$20)))","v":"   "}]
[null,null,null,null,"R4","Causa del Riesgo ","Evento del Riesgo ","Consecuencia del Riesgo",null,null," ",{"$f":"IF(K58=\" \",\"   \",IF(K58<$I$19,$H$18,IF(K58<$I$20,$H$19,$H$20)))","v":"   "}]
[null,null,null,null,"R5","Causa del Riesgo ","Evento del Riesgo ","Consecuencia del Riesgo",null,null," ",{"$f":"IF(K59=\" \",\"   \",IF(K59<$I$19,$H$18,IF(K59<$I$20,$H$19,$H$20)))","v":"   "}]
[null,null,null,null,"R6","Causa del Riesgo ","Evento del Riesgo ","Consecuencia del Riesgo",null,null," ",{"$f":"IF(K60=\" \",\"   \",IF(K60<$I$19,$H$18,IF(K60<$I$20,$H$19,$H$20)))","v":"   "}]
[null,null,null,null,"R7","Causa del Riesgo ","Evento del Riesgo ","Consecuencia del Riesgo",null,null,{"$f":"IF(I61=0, \" \",I61*J61)","v":" "},{"$f":"IF(K61=\" \",\"   \",IF(K61<$I$19,$H$18,IF(K61<$I$20,$H$19,$H$20)))","v":"   "}]
[null,null,null,null,"R8","Causa del Riesgo ","Evento del Riesgo ","Consecuencia del Riesgo",null,null," ",{"$f":"IF(K62=\" \",\"   \",IF(K62<$I$19,$H$18,IF(K62<$I$20,$H$19,$H$20)))","v":"   "}]
[null,null,null,null,"R9","Causa del Riesgo ","Evento del Riesgo ","Consecuencia del Riesgo",null,null," ",{"$f":"IF(K63=\" \",\"   \",IF(K63<$I$19,$H$18,IF(K63<$I$20,$H$19,$H$20)))","v":"   "}]
[null,null,null,null,"R10","Causa del Riesgo ","Evento del Riesgo ","Consecuencia del Riesgo",null,null," ",{"$f":"IF(K64=\" \",\"   \",IF(K64<$I$19,$H$18,IF(K64<$I$20,$H$19,$H$20)))","v":"   "}]
[null,null,null,null,"R11","Causa del Riesgo ","Evento del Riesgo ","Consecuencia del Riesgo",null,null," ",{"$f":"IF(K65=\" \",\"   \",IF(K65<$I$19,$H$18,IF(K65<$I$20,$H$19,$H$20)))","v":"   "}]
[null,null,null,null,"R12","Causa del Riesgo ","Evento del Riesgo ","Consecuencia del Riesgo",null,null," ",{"$f":"IF(K66=\" \",\"   \",IF(K66<$I$19,$H$18,IF(K66<$I$20,$H$19,$H$20)))","v":"   "}]
[null,null,null,null,"R13","Causa del Riesgo ","Evento del Riesgo ","Consecuencia del Riesgo",null,null,{"$f":"IF(I67=0, \" \",I67*J67)","v":" "},"   "]
[null,null,null,null,null,null,null,null,null,null," ",{"$f":"IF(K68=\" \",\"   \",IF(K68<$I$19,$H$18,IF(K68<$I$20,$H$19,$H$20)))","v":"   "}]
[null,null,null,null,null,null,null,null,null,null," ","   "]
[null,null,null,null,null,null,null,null,null,null," ","   "]
[null,null,null,null,null,null,null,null,null,null," ","   "]
[null,null,null,null,null,null,null,null,null,null," ","   "]
[null,null,null,null,null,null,null,null,null,null," ","   "]
[null,null,null,null,null,null,null,null,null,null," ","   "]
[null,null,null,null,null,null,null,null,null,null," ","   "]
[null,null,null,null,null,null,null,null,null,null," ","   "]
[null,null,null,null,null,null,null,null,null,null," ","   "]
[null,null,null,null,null,null,null,null,null,null," ","   "]
[null,null,null,null,null,null,null,null,null,null," ","   "]
[null,null,null,null,null,null,null,null,null,null," ","   "]
[null,null,null,null,null,null,null,null,null,null," ","   "]
[null,null,null,null,null,null,null,null,null,null," ","   "]
[null,null,null,null,null,null,null,null,null,null," ","   "]
[null,null,null,null,null,null,null,null,null,null," ","   "]
[]
[]
[]
[null,null,null,null,null,null,"NIVEL DE RIESGO GLOBAL",null,{"$f":"F47","v":"No definido"},{"$f":"IF(I88=\"No definido\", \"   \",IF(I88<I19,H18,IF(I88<I20,H19,H20)))","v":"   "}]

{"sheet":"Caso 6","index":11,"n_rows":89,"n_cols":14,"rows_kept":89,"cut":false,"hidden":true,"merged":[[2,2,4,14],[24,7,24,10],[26,10,28,10],[45,3,45,4],[48,5,48,7],[88,6,88,7],[5,2,7,14],[9,7,9,9],[14,7,14,9],[15,7,16,7],[15,8,15,9],[22,7,22,10],[48,10,48,11],[29,5,38,5]]}
[]
[]
[]
[]
[]
[null,null,"1. Diligencia en cada una de las casillas sombreadas los niveles definidos como escalas de probabilidad e impacto para el proyecto y los niveles de tolerancia del riesgo.\n2. Diligencie la definición de la escala de impacto para las diferentes categorías de riesgos que identifiquen el proyecto."]
[]
[]
[]
[null,null,null,null,null,null,null,"PROBABILIDAD E IMPACTO"]
[null,null,null,null,null,null,null,"Menor",null,"Mayor"]
[null,null,null,null,null,null,"Valores probabilidad"]
[null,null,null,null,null,null,"Valores Impacto"]
[]
[null,null,null,null,null,null,null,"CRITERIOS DE ACEPTACION DEL RIESGO"]
[null,null,null,null,null,null,null,"Nivel","Valor número"]
[null,null,null,null,null,null,null,null,"Minimo","Máximo"]
[null,null,null,null,null,null,null,"Aceptable",{"$f":"H12*H13","v":0}]
[null,null,null,null,null,null,null,"Tolerable"]
[null,null,null,null,null,null,null,"Inadmisible",null,{"$f":"J12*J13","v":0}]
[]
[]
[null,null,null,null,null,null,null,"MATRIZ DE RIESGOS BASE"]
[]
[null,null,null,null,null,null,null,"IMPACTO"]
[null,null,null,null,null,null,null,{"$f":"H13","v":0},{"$f":"I13","v":0},{"$f":"J13","v":0}]
[null,null,null,null,null,null,{"$f":"J12","v":0},{"$f":"$H$26*G27","v":0},{"$f":"$I$26*G27","v":0},{"$f":"$J$26*G27","v":0},"PROBABILIDAD"]
[null,null,null,null,null,null,{"$f":"I12","v":0},{"$f":"$H$26*G28","v":0},{"$f":"$I$26*G28","v":0},{"$f":"$J$26*G28","v":0}]
[null,null,null,null,null,null,{"$f":"H12","v":0},{"$f":"$H$26*G29","v":0},{"$f":"$I$26*G29","v":0},{"$f":"$J$26*G29","v":0}]
[null,null,null,null,null,"CATERGORIAS DE RIESGO","COSTO","Variación < __%","Variac. entre ___ y _____","Variación > __%"]
[null,null,null,null,null,null,"TIEMPO","Variación < __%","Variac. entre ___ y _____","Variación > __%"]
[null,null,null,null,null,null,"PERSONAS","__ lesiones sin incapacidad","Incapacidad temporal para menos del __% de los trabajadores","Muerte o invalidez total de ______ (__) personas\nIncapacidad permanente parcial en más del __% de los trabajadores.  \nIncapacidad temporal en más del __% de los  trabajadores"]
[null,null,null,null,null,null,"AMBIENTE","Alteración del factor ambiental menor o igual al __%.","La alteración del factor ambiental está entre ___ y ____","La alteración del factor ambiental es mayor al __%. "]
[]
[]
[]
[]
[]
[]
[]
[]
[]
[]
[]
[]
[null,null,null,"NIVEL DE RIESGO GLOBAL",null,{"$f":"IF(K46=0,\"No definido\", J46/K46)","v":"No definido"},{"$f":"J89","v":"   "},null,null,{"$f":"SUM(K54:K85)","v":0},{"$f":"COUNT(K54:K85)","v":0}]
[]
[]
[null,null,null,null,"COD.","DESCRIPCIÓN",null,null,"PROBABILIDAD","IMPACTO","NIVEL DE RIESGO",null,"ESTADO ","ESTRATEGIA DE RESPUESTA"]
[]
[]
[null,null,null,null,null,"Causa","Evento","Consecuencia"]
[]
[null,null,null,null,"R1","Causa del Riesgo ","Evento del Riesgo ","Consecuencia del Riesgo",null,null,{"$f":"IF(I54=0, \" \",I54*J54)","v":" "},{"$f":"IF(K54=\" \",\"   \",IF(K54<$I$19,$H$18,IF(K54<$I$20,$H$19,$H$20)))","v":"   "}]
[null,null,null,null,"R2","Causa del Riesgo ","Evento del Riesgo ","Consecuencia del Riesgo",null,null,{"$f":"IF(I55=0, \" \",I55*J55)","v":" "},{"$f":"IF(K55=\" \",\"   \",IF(K55<$I$19,$H$18,IF(K55<$I$20,$H$19,$H$20)))","v":"   "}]
[null,null,null,null,"R3","Causa del Riesgo ","Evento del Riesgo ","Consecuencia del Riesgo",null,null," ",{"$f":"IF(K56=\" \",\"   \",IF(K56<$I$19,$H$18,IF(K56<$I$20,$H$19,$H$20)))","v":"   "}]
[null,null,null,null,"R4","Causa del Riesgo ","Evento del Riesgo ","Consecuencia del Riesgo",null,null," ",{"$f":"IF(K57=\" \",\"   \",IF(K57<$I$19,$H$18,IF(K57<$I$20,$H$19,$H$20)))","v":"   "}]
[null,null,null,null,"R5","Causa del Riesgo ","Evento del Riesgo ","Consecuencia del Riesgo",null,null," ",{"$f":"IF(K58=\" \",\"   \",IF(K58<$I$19,$H$18,IF(K58<$I$20,$H$19,$H$20)))","v":"   "}]
[null,null,null,null,"R6","Causa del Riesgo ","Evento del Riesgo ","Consecuencia del Riesgo",null,null," ",{"$f":"IF(K59=\" \",\"   \",IF(K59<$I$19,$H$18,IF(K59<$I$20,$H$19,$H$20)))","v":"   "}]
[null,null,null,null,"R7","Causa del Riesgo ","Evento del Riesgo ","Consecuencia del Riesgo",null,null,{"$f":"IF(I60=0, \" \",I60*J60)","v":" "},{"$f":"IF(K60=\" \",\"   \",IF(K60<$I$19,$H$18,IF(K60<$I$20,$H$19,$H$20)))","v":"   "}]
[null,null,null,null,"R8","Causa del Riesgo ","Evento del Riesgo ","Consecuencia del Riesgo",null,null," ",{"$f":"IF(K61=\" \",\"   \",IF(K61<$I$19,$H$18,IF(K61<$I$20,$H$19,$H$20)))","v":"   "}]
[null,null,null,null,"R9","Causa del Riesgo ","Evento del Riesgo ","Consecuencia del Riesgo",null,null," ",{"$f":"IF(K62=\" \",\"   \",IF(K62<$I$19,$H$18,IF(K62<$I$20,$H$19,$H$20)))","v":"   "}]
[null,null,null,null,"R10","Causa del Riesgo ","Evento del Riesgo ","Consecuencia del Riesgo",null,null," ",{"$f":"IF(K63=\" \",\"   \",IF(K63<$I$19,$H$18,IF(K63<$I$20,$H$19,$H$20)))","v":"   "}]
[null,null,null,null,"R11","Causa del Riesgo ","Evento del Riesgo ","Consecuencia del Riesgo",null,null," ",{"$f":"IF(K64=\" \",\"   \",IF(K64<$I$19,$H$18,IF(K64<$I$20,$H$19,$H$20)))","v":"   "}]
[null,null,null,null,"R12","Causa del Riesgo ","Evento del Riesgo ","Consecuencia del Riesgo",null,null," ",{"$f":"IF(K65=\" \",\"   \",IF(K65<$I$19,$H$18,IF(K65<$I$20,$H$19,$H$20)))","v":"   "}]
[null,null,null,null,null,null,null,null,null,null,{"$f":"IF(I66=0, \" \",I66*J66)","v":" "},"   "]
[null,null,null,null,null,null,null,null,null,null," ",{"$f":"IF(K67=\" \",\"   \",IF(K67<$I$19,$H$18,IF(K67<$I$20,$H$19,$H$20)))","v":"   "}]
[null,null,null,null,null,null,null,null,null,null," ","   "]
[null,null,null,null,null,null,null,null,null,null," ","   "]
[null,null,null,null,null,null,null,null,null,null," ","   "]
[null,null,null,null,null,null,null,null,null,null," ","   "]
[null,null,null,null,null,null,null,null,null,null," ","   "]
[null,null,null,null,null,null,null,null,null,null," ","   "]
[null,null,null,null,null,null,null,null,null,null," ","   "]
[null,null,null,null,null,null,null,null,null,null," ","   "]
[null,null,null,null,null,null,null,null,null,null," ","   "]
[null,null,null,null,null,null,null,null,null,null," ","   "]
[null,null,null,null,null,null,null,null,null,null," ","   "]
[null,null,null,null,null,null,null,null,null,null," ","   "]
[null,null,null,null,null,null,null,null,null,null," ","   "]
[null,null,null,null,null,null,null,null,null,null," ","   "]
[null,null,null,null,null,null,null,null,null,null," ","   "]
[null,null,null,null,null,null,null,null,null,null," ","   "]
[null,null,null,null,null,null,null,null,null,null," ","   "]
[null,null,null,null,null,null,null,null,null,null," ","   "]
[]
[]
[]
[null,null,null,null,null,null,"NIVEL DE RIESGO GLOBAL",null,{"$f":"F46","v":"No definido"},{"$f":"IF(I89=\"No definido\", \"   \",IF(I89<I19,H18,IF(I89<I20,H19,H20)))","v":"   "}]

{"sheet":"Hoja1","index":12,"n_rows":4,"n_cols":1,"rows_kept":4,"cut":false,"hidden":true,"merged":[]}
["ESTADO DE LOS RIESGOS"]
["Identificado"]
["Mitigado"]
["Materializado"]

{"sheet":"Valos Ganado","index":13,"n_rows":65,"n_cols":26,"rows_kept":65,"cut":false,"hidden":true,"merged":[[15,7,15,8],[16,7,16,8],[17,7,17,8]]}
[]
[]
[]
[]
[]
[]
[null,null,null,"BAC",{"$f":"DESEMPEÑO!G10","v":0}]
[null,null,null,"%avance Prog","Costo Programado (PV)","Avance real % (EV)","Avance real (EV)","Costo real (AC)","CV","CPI","SV","SPI"]
[null,null,null,{"$f":"DESEMPEÑO!I13","v":"%"},{"$f":"D9*E7","v":{"$error":"#VALUE!"}},{"$f":"DESEMPEÑO!I20","v":"%"},{"$f":"F9*$E$7","v":{"$error":"#VALUE!"}},{"$f":"DESEMPEÑO!I19","v":0},{"$f":"G9-H9","v":{"$error":"#VALUE!"}},{"$f":"ABS(G9/H9)","v":{"$error":"#VALUE!"}},{"$f":"G9-E9","v":{"$error":"#VALUE!"}},{"$f":"ABS(G9/E9)","v":{"$error":"#VALUE!"}}]
[null,null,null,null,null,null,null,{"$f":"H9/E7","v":{"$error":"#DIV/0!"}}]
[]
[]
[null,null,null,null,"PV",{"$f":"E9","v":{"$error":"#VALUE!"}},null,"CPI",{"$f":"J9","v":{"$error":"#VALUE!"}}]
[null,null,null,null,"AC",{"$f":"H9","v":0},null,"SPI",{"$f":"L9","v":{"$error":"#VALUE!"}}]
[null,null,null,null,"EV",{"$f":"G9","v":{"$error":"#VALUE!"}}]
[null,null,null,null,"CV",{"$f":"I9","v":{"$error":"#VALUE!"}},null,"Avance a la fecha (%)",null,{"$f":"F9","v":"%"}]
[null,null,null,null,"SV ($)",{"$f":"K9","v":{"$error":"#VALUE!"}},null,"Avance programado (%)",null,{"$f":"D9","v":"%"}]
[null,null,null,null,null,null,null,"Rendimiento (%)",null,{"$f":"J16/J17","v":{"$error":"#VALUE!"}}]
[]
[]
[]
[null,null,null,"Variable","Nombre completo","Descripción","Fuente Información"]
[null,null,null,"BAC","Budget At Completion (Presupuesto al Terminar)","Costo total presupuestado para realizar el Trabajo de grado","Línea base costo"]
[null,null,null,"PV","Planned Value (Valor planeado a la fecha)","Costo planeado del alcance a lograr a la fecha de corte","Cronograma en Project actualizado"]
[null,null,null,"AC","Actual Cost (Cost actual)","Costo real del alcance realizado","Cronograma en Project actualizado"]
[null,null,null,"AT","Actual Time (Tiempo actual)","Semana en la que se hace el corte","Cronograma en Project actualizado"]
[null,null,null,"EV","Earned Value (Valor ganado en alcance)","Costo presupuestado del trabajo realizado","Cronograma en Project actualizado"]
[null,null,null,"ES","Earned Schedule (Valor ganado en tiempo)","Semana de trabajo en la que se debería haber terminado el alcance realizado a la fecha","Calculadora en Excel"]
[null,null,null,"CV","Cost Variance (Variación del costo)","Desviación de costo de lo realizado respecto a lo realmente gastado","EV-AC",null,null,null,null,null,null,null,null,null,null,null,null,null,null,null,null,null,0,1]
[null,null,null,"SV","Schedule variance (Variación del tiempo respecto a la programación)","Desviación en semanas de lo realizado y la fecha de corte","ES-AT",null,null,null,null,null,null,null,null,null,null,null,null,null,null,null,null,null,1,1.2]
[null,null,null,"CPI","Cost Performance Index (índice de Rendimiento de Costos)","Relación de eficacia entre el costo presupuestado del alcance realizado y el costo real del mismo","EV/AC"]
[null,null,null,"SPI","Schedule Performance Index (índice de Rendimiento en Programación respecto a valor de alcance)","Eficacia entre el costo presupuestado del alcance realizado y el costo planeado al corte.","EV/PV"]
[]
[]
[null,null,null,"DATOS DEL GRAFICO"]
[null,null,null,"Nivel"]
[null,null,null,null,"Minimo","Máximo","Minimo","Máximo"]
[null,null,null,"Aceptable",{"$f":"DESEMPEÑO!K27","v":0},1.6,{"$f":"F38-F39","v":1.6},{"$f":"F38-F39","v":1.6},0,1]
[null,null,null,"Tolerable",{"$f":"DESEMPEÑO!J28","v":0},{"$f":"DESEMPEÑO!L28","v":0},{"$f":"F39-F40","v":0},{"$f":"F39-F40","v":0},0,1]
[null,null,null,"Inadmisible",0,{"$f":"DESEMPEÑO!K29","v":0},{"$f":"F40","v":0},{"$f":"F40","v":0},0,1]
[]
[]
[]
[]
[]
[]
[]
[]
[]
[]
[]
[]
[]
[]
[]
[]
[]
[]
[]
[]
[]
[null,null,null,null,"X","X","CPI","SPI",{"$f":"D40","v":"Inadmisible"},{"$f":"D39","v":"Tolerable"},{"$f":"D38","v":"Aceptable"}]
[null,null,null,null,0.49990000000000001,0,{"$f":"+I13","v":{"$error":"#VALUE!"}},{"$f":"+I14","v":{"$error":"#VALUE!"}},{"$f":"F40","v":0},{"$f":"F39","v":0},{"$f":"F38","v":1.6}]
[null,null,null,null,0.5,0.5,{"$f":"G63","v":{"$error":"#VALUE!"}},{"$error":"#VALUE!"},0,0,1.6]
[null,null,null,null,0.50000900000000004,1,{"$error":"#VALUE!"},{"$error":"#VALUE!"},0,0,1.6]

{"sheet":"DESEMPEÑO","index":14,"n_rows":29,"n_cols":14,"rows_kept":29,"cut":false,"hidden":true,"merged":[[28,8,28,9],[28,10,28,11],[19,4,19,6],[19,8,19,10],[21,3,23,14],[25,8,25,11],[26,8,26,9],[26,10,26,11],[18,4,18,6],[18,8,18,10],[2,2,4,15],[5,3,7,14],[12,4,12,6],[12,8,12,10],[14,3,16,14]]}
[]
[]
[]
[]
[]
[null,null,null,"Paso 1. Con base en la \"Linea Base\" ingrese los valores planeados para el proyecto solicitados en el siguiente formato"]
[]
[]
[]
[null,null,null,null,"BAC"]
[null,null,null,null,"Duración total",null,{"$f":"ROUND(IF(N11=3,INICIO!G11-INICIO!E11,IF(N11=2,(INICIO!G11-INICIO!E11)/30.4166667,IF(N11=1,(INICIO!G11-INICIO!E11)/365,0))),0)","v":12},null,null,null,null,null,null,2]
[]
[null,null,null,null,"Avance programado a la fecha",null,null,null,"%"]
[]
[null,null,null,"Paso 2. Ingrese el avance real del proyecto en el siguiente formato."]
[]
[]
[]
[null,null,null,null,"Costo real a la fecha ($)"]
[null,null,null,null,"Avance real a la fecha (%)",null,null,null,"%"]
[]
[null,null,null,"Paso 3. Ingrese los rangos de valores considerados como permisibles para las desviaciones del proyecto.\n(Casillas de color azul claro)"]
[]
[]
[]
[null,null,null,null,null,null,"Nivel",null,"Variación del CPI y SPI"]
[null,null,null,null,null,null,"Aceptable",null,">"]
[null,null,null,null,null,null,"Tolerable",null,">",{"$f":"K29","v":0},"<",{"$f":"K27","v":0}]
[null,null,null,null,null,null,"Inadmisible",null,"<"]

{"sheet":"RESULTADOS DESEMPEÑO","index":15,"n_rows":17,"n_cols":13,"rows_kept":17,"cut":false,"hidden":true,"merged":[[15,4,15,6],[15,8,15,10],[15,12,15,13],[16,4,16,6],[16,8,16,10],[16,12,16,13],[13,4,13,6],[13,8,13,10],[13,12,13,13],[14,4,14,6],[14,8,14,10],[14,12,14,13],[10,8,10,9],[10,10,10,11],[2,2,4,15],[5,3,5,14],[7,8,7,11],[8,8,8,9],[8,10,8,11]]}
[]
[]
[]
[]
[]
[]
[]
[null,null,null,null,null,null,"Nivel",null,"Variación del CPI y SPI"]
[null,null,null,null,null,null,"Aceptable",null,">",null,{"$f":"+DESEMPEÑO!$K$27:$L$27","v":0}]
[null,null,null,null,null,null,"Tolerable",null,">",{"$f":"K11","v":0},"<",{"$f":"K9","v":0}]
[null,null,null,null,null,null,"Inadmisible",null,"<",null,{"$f":"+DESEMPEÑO!$K$29:$L$29","v":0}]
[]
[]
[null,null,null,null,"Variación del costo",null,null,null,{"$f":"IFERROR('Valos Ganado'!F16,0)","v":0},null,null,null,"Medida de la diferencia entre el Valor Ganado y el Costo Real"]
[null,null,null,null,"Variación de la programación",null,null,null,{"$f":"IFERROR('Valos Ganado'!F17,0)","v":0},null,null,null,"medida de la diferencia entre el Valor Ganado y el Valor Planeado"]
[null,null,null,null,"Indice de Rendimiento de Costos",null,null,null,{"$f":"IFERROR('Valos Ganado'!I13,0)","v":0},null,null,null,"Relación de eficacia entre el costo presupuestado del alcance realizado y el costo real del mismo"]
[null,null,null,null,"Indice de Rendimiento en Programación",null,null,null,{"$f":"IFERROR('Valos Ganado'!I14,0)","v":0},null,null,null,"Eficacia entre el costo presupuestado del alcance realizado y el costo planeado al corte."]

{"sheet":"SATISFACCIÓN","index":16,"n_rows":26,"n_cols":17,"rows_kept":26,"cut":false,"hidden":true,"merged":[[2,2,4,11],[6,3,6,10],[9,4,9,5],[22,4,22,6],[25,5,25,7]]}
[]
[]
[]
[]
[]
[]
[null,null,null,"La métrica de Índice de Satisfacción del cliente requiere la aplicación de la encuesta de satisfacción del cliente a un representante del cliente.\nA continuación, se solicitará que según las políticas de su compañía, o para el tipo específico de proyecto que desee evaluar, diligencie el peso (en porcentaje) que cada uno de los aspectos debe tener dentro de la evaluación. Adicionalmente debe seleccionar de la lista desplegable el nivel aceptable para el proyecto (nivel a partir del cual el proyecto tiene un buen desempeño)."]
[]
[]
[null,null,null,null,"SATISFACCIÓN DEL CLIENTE",null,null,"PESO (100%)"]
[]
[null,null,null,null,"Gerencia del Proyecto",null,null,0.25]
[null,null,null,null,null,null,null,null,null,null,null,null,null,null,null,null,"Definición pobre e incompleta"]
[null,null,null,null,"Producto del Proyecto",null,null,0.25,null,null,null,null,null,null,null,null,"Definido con deficiencias serias"]
[null,null,null,null,null,null,null,null,null,null,null,null,null,null,null,null,"Definido con algunas deficiencias"]
[null,null,null,null,"Equipo de Trabajo",null,null,0.25,null,null,null,null,null,null,null,null,"Definido con deficiencias menores"]
[null,null,null,null,null,null,null,null,null,null,null,null,null,null,null,null,"Completamente definido"]
[null,null,null,null,"Gestión de la Información",null,null,0.25]
[]
[null,null,null,null,"TOTAL CLIENTE",null,null,{"$f":"SUM(H12,H14,H16,H18)","v":1}]
[]
[]
[null,null,null,null,"NIVEL ACEPTABLE",null,null,5]
[]
[]
[null,null,null,null,null,{"$f":"IF(SUM($H$12,$H$14,$H$16,$H$18)=100%,\"\",\"Por favor verifique que la suma sea 100%\")","v":""}]

{"sheet":"SATISFACCIÓN DEL CLIENTE","index":17,"n_rows":102,"n_cols":20,"rows_kept":102,"cut":false,"hidden":true,"merged":[[8,8,8,14],[8,18,8,20],[10,2,12,21],[15,19,15,20],[17,3,18,5],[17,6,18,14],[17,19,18,20],[18,15,18,17],[2,2,4,21],[5,11,5,20],[6,10,6,20],[7,10,7,14],[7,15,7,17],[7,18,7,20],[26,3,27,5],[26,6,27,13],[26,19,27,20],[27,15,27,17],[29,3,30,5],[29,6,30,13],[29,19,30,20],[30,15,30,17],[20,3,21,5],[20,6,21,14],[20,19,21,20],[21,15,21,17],[23,3,24,5],[23,6,24,14],[23,19,24,20],[24,15,24,17],[38,3,39,5],[38,6,39,13],[38,19,39,20],[39,15,39,17],[41,3,42,5],[41,6,42,13],[41,19,42,20],[42,15,42,17],[32,3,33,5],[32,6,33,13],[32,19,33,20],[33,15,33,17],[35,3,36,5],[35,6,36,13],[35,19,36,20],[36,15,36,17],[50,3,51,5],[50,6,51,13],[50,19,51,20],[51,15,51,17],[53,3,54,5],[53,6,54,14],[53,19,54,20],[54,15,54,17],[44,3,45,5],[44,6,45,14],[44,19,45,20],[45,15,45,17],[47,3,48,5],[47,6,48,14],[47,19,48,20],[48,15,48,17],[65,3,66,5],[65,6,66,13],[65,19,66,20],[66,15,66,17],[68,3,69,5],[68,6,69,13],[68,19,69,20],[69,15,69,17],[59,3,60,5],[59,6,60,14],[59,19,60,20],[60,15,60,17],[62,3,63,5],[62,6,63,13],[62,19,63,20],[63,15,63,17],[74,3,75,5],[74,6,75,13],[74,14,75,14],[74,19,75,20],[75,15,75,17],[77,3,78,5],[77,6,78,13],[77,14,78,14],[77,19,78,20],[78,15,78,17],[85,3,85,5],[86,3,87,5],[86,6,87,13],[86,14,87,14],[86,19,87,20],[87,15,87,17],[80,3,81,5],[80,6,81,13],[80,14,81,14],[80,19,81,20],[81,15,81,17],[83,3,84,5],[83,6,84,13],[83,14,84,14],[83,19,84,20],[84,15,84,17],[89,3,90,5],[89,6,90,13],[89,14,90,14],[89,19,90,20],[90,15,90,17],[95,3,96,5],[95,6,96,13],[95,14,96,14],[95,19,96,20],[96,15,96,17],[98,3,99,5],[98,6,99,13],[98,14,99,14],[98,19,99,20],[99,15,99,17],[101,3,102,5],[101,6,102,13],[101,14,102,14],[101,19,102,20],[102,15,102,17]]}
[]
[]
[]
[]
[]
[null,null,null,null,"Cliente (Compañía/Organización):",null,null,null,null,null,null,"XXXXXXX XXXXXXXXXXXXXXXXXX XXXXXXX"]
[null,null,null,null,"Tipo de empresa/Industria:",null,null,null,null,null,"XXXXXXXXXXXXXXX XXXXXXXXXXXXXX"]
[null,null,null,null,"Representante del cliente:",null,null,null,null,null,"XXXXX XXXXXXXXXXXX",null,null,null,null,"Cargo/posición:",null,null,"XXXXXXXXXXXXXXXX"]
[null,null,null,null,"Proyecto:",null,null,null,{"$f":"+INICIO!E7","v":"PROYECTO XXXXXXX XXXXXXXXXXXX"},null,null,null,null,null,null,null,"Contrato N°:",null,"0000000-000000000"]
[]
[null,null,"Creemos que su opinión es esencial para conocer el estado real del proyecto, por este motivo ponemos a su disposición la siguiente encuesta, mediante la cual usted como cliente puede transmitirnos su percepción relacionada con algunos temas que consideramos fundamentales para el proyecto. Para cada uno de los ítems a evaluar, por favor seleccione la opción que más se ajuste a su nivel de satisfacción."]
[]
[]
[]
[]
[null,null,null,1,null,null,"GERENCIA DE PROYECTO",null,null,null,null,null,null,null,null,null,"CALIFICACIÓN",null,null,"OBSERVACIONES"]
[]
[null,null,null,1.1000000000000001,null,null,"Presencia y participación del gerente de proyecto durante el ciclo de vida del mismo."]
[]
[]
[null,null,null,"1.2.",null,null,"Capacidad de respuesta ante las dificultades presentadas en la ejecución del proyecto."]
[]
[]
[null,null,null,"1.3.",null,null,"Disponibilidad del gerente y su equipo de trabajo para atender sus consultas, solicitudes o reclamos."]
[]
[]
[null,null,null,"1.4.",null,null,"Comunicación efectiva entre el gerente de proyectos y su equipo de trabajo."]
[]
[]
[null,null,null,"1.5.",null,null,"Comunicación efectiva  entre  el gerente del proyecto y el cliente. "]
[]
[]
[null,null,null,"1.6.",null,null,"Definición de los requerimientos del proyecto."]
[]
[]
[null,null,null,"1.7.",null,null,"Manejo y control de cambios de alcance. "]
[]
[]
[null,null,null,"1.8.",null,null,"Seguimiento y control de las variables tiempo y costo del proyecto."]
[]
[]
[null,null,null,"1.9.",null,null,"Cumplimiento de las fechas de entrega establecidas en el cronograma."]
[]
[]
[null,null,null,1.1000000000000001,null,null,"Costo del trabajo realizado de acuerdo al presupuesto inicial."]
[]
[]
[null,null,null,"1.11.",null,null,"Identificación y análisis de riesgos."]
[]
[]
[null,null,null,"1.12.",null,null,"Respuesta y manejo antes los riesgos materializados hasta el momento."]
[]
[]
[null,null,null,"1.13.",null,null,"Gestión de los interesados del proyecto."]
[]
[]
[]
[null,null,null,2,null,null,"PRODUCTO DEL PROYECTO",null,null,null,null,null,null,null,null,null,"CALIFICACIÓN"]
[]
[null,null,null,"2.1.",null,null,"Cumplimiento de los requerimientos establecidos."]
[]
[]
[null,null,null,"2.2.",null,null,"Calidad de los entregables."]
[]
[]
[null,null,null,"2.3.",null,null,"Cumplimiento de las normas técnicas y especificaciones."]
[]
[]
[null,null,null,"2.4.",null,null,"Uso de programas y herramientas requeridas para el desarrollo del producto."]
[]
[]
[]
[null,null,null,3,null,null,"EQUIPO DE TRABAJO"]
[]
[null,null,null,"3.1.",null,null,"Capacidad técnica de los integrantes del equipo de trabajo"]
[]
[]
[null,null,null,"3.2.",null,null,"Contribución para alcanzar los objetivos del proyecto"]
[]
[]
[null,null,null,"3.3.",null,null,"Ejecución del trabajo de forma planificada y coordinada"]
[]
[]
[null,null,null,"3.4.",null,null,"Presentación personal de los integrantes del equipo de trabajo"]
[]
[]
[null,null,null,"3.5.",null,null,"Cumplimiento de las funciones de acuerdo al rol establecido inicialmente"]
[]
[]
[null,null,null,"3.6.",null,null,"Amabilidad y buen trato de los integrantes del equipo de trabajo"]
[]
[]
[]
[null,null,null,4,null,null,"GESTIÓN DE LA INFORMACIÓN"]
[]
[null,null,null,"4.1.",null,null,"Uso de los canales de flujo de información establecidos inicialmente."]
[]
[]
[null,null,null,"4.2.",null,null,"Presentación de la documentación recibida."]
[]
[]
[null,null,null,"4.3.",null,null,"Personas asignadas como emisores y receptores oficiales de la información."]

{"sheet":"Hoja3","index":18,"n_rows":21,"n_cols":1,"rows_kept":21,"cut":false,"hidden":true,"merged":[]}
["Totalmente Insatisfecho"]
["Insatisfecho"]
["Ni Satisfecho ni Insatisfecho"]
["Satisfecho"]
["Totalmente Satisfecho"]
[]
[]
[]
["Total Desacuerdo"]
["No Estoy de Acuerdo"]
["Ni de Acuerdo ni en Desacuerdo"]
["Estoy de Acuerdo"]
["Totalmente de Acuerdo"]
[]
[]
[]
[1]
[2]
[3]
[4]
[5]

{"sheet":"RESULTADOS SATISFACCIÓN","index":19,"n_rows":67,"n_cols":10,"rows_kept":67,"cut":false,"hidden":true,"merged":[[24,4,24,6],[2,2,4,9],[5,2,5,7],[10,4,10,6],[7,4,7,6],[12,4,12,6],[14,4,14,6],[16,4,16,6],[18,4,18,6],[20,4,20,6],[22,4,22,6],[52,4,52,6],[26,4,26,6],[28,4,28,6],[30,4,30,6],[32,4,32,6],[34,4,34,6],[38,4,38,6],[40,4,40,6],[42,4,42,6],[44,4,44,6],[48,4,48,6],[50,4,50,6],[66,4,66,6],[54,4,54,6],[56,4,56,6],[58,4,58,6],[62,4,62,6],[64,4,64,6]]}
[]
[]
[]
[]
[]
[null,null,"TOTAL SATISFACCIÓN DEL CLIENTE",null,null,null,null,null,null,{"$f":"(H9*I9+H37*I37+H47*I47+H61*I61)","v":1.1866666666666668}]
[]
[null,null,"COD.","DESCRIPCIÓN","CALIFICACIÓN",null,null,"SUBTOTAL","FACTOR","PUNTAJE"]
[null,null,1,"GERENCIA DE PROYECTO",null,null,null,{"$f":"AVERAGE(E11,E13,E15,E17,E19,E21,E23,E25,E27,E29,E31,E33,E35)","v":1},0.2]
[]
[null,null,1.1000000000000001,"Presencia y participación del gerente de proyecto durante el ciclo de vida del mismo.",1]
[]
[null,null,1.2,"Capacidad de respuesta ante las dificultades presentadas en la ejecución del proyecto.",1]
[]
[null,null,1.3,"Disponibilidad del gerente y su equipo de trabajo para atender sus consultas, solicitudes o reclamos.",1]
[]
[null,null,1.4,"Comunicación efectiva entre el gerente de proyectos y su equipo de trabajo.",1]
[]
[null,null,1.5,"Comunicación efectiva  entre  el gerente del proyecto y el cliente. ",1]
[]
[null,null,1.6,"Definición de los requerimientos del proyecto.",1]
[]
[null,null,1.7,"Manejo y control de cambios de alcance. ",1]
[]
[null,null,1.8,"Seguimiento y control de las variables tiempo y costo del proyecto.",1]
[]
[null,null,1.9,"Cumplimiento de las fechas de entrega establecidas en el cronograma.",1]
[]
[null,null,"1.10.","Costo del trabajo realizado de acuerdo al presupuesto inicial.",1]
[]
[null,null,"1.11.","Identificación y análisis de riesgos.",1]
[]
[null,null,"1.12.","Respuesta y manejo antes los riesgos materializados hasta el momento.",1]
[]
[null,null,"1.13.","Gestión de los interesados del proyecto.",1]
[]
[null,null,2,"PRODUCTO DEL PROYECTO",null,null,null,{"$f":"AVERAGE(E39,E41,E43,E45,)","v":0.8},0.4]
[]
[null,null,"2.1.","Cumplimiento de los requerimientos establecidos.",1]
[]
[null,null,"2.2.","Calidad de los entregables.",1]
[]
[null,null,"2.3.","Cumplimiento de las normas técnicas y especificaciones.",1]
[]
[null,null,"2.4.","Uso de programas y herramientas requeridas para el desarrollo del producto.",1]
[]
[null,null,3,"EQUIPO DE TRABAJO",null,null,null,{"$f":"AVERAGE(E49,E51,E53,E55,E57,E59)","v":1},0.2]
[]
[null,null,"3.1.","Capacidad técnica de los integrantes del equipo de trabajo",1]
[]
[null,null,"3.2.","Contribución para alcanzar los objetivos del proyecto",1]
[]
[null,null,"3.3.","Ejecución del trabajo de forma planificada y coordinada",1]
[]
[null,null,"3.4.","Presentación personal de los integrantes del equipo de trabajo",1]
[]
[null,null,"3.5.","Cumplimiento de las funciones de acuerdo al rol establecido inicialmente",1]
[]
[null,null,"3.6.","Amabilidad y buen trato de los integrantes del equipo de trabajo",1]
[]
[null,null,4,"GESTIÓN DE LA INFORMACIÓN",null,null,null,{"$f":"AVERAGE(E63,E65,E67)","v":2.3333333333333335},0.2]
[]
[null,null,"4.1.","Uso de los canales de flujo de información establecidos inicialmente.",1]
[]
[null,null,"4.2.","Presentación de la documentación recibida.",1]
[]
[null,null,"4.3.","Personas asignadas como emisores y receptores oficiales de la información.",5]

{"sheet":"MOTIVACIÓN","index":20,"n_rows":26,"n_cols":8,"rows_kept":26,"cut":false,"hidden":true,"merged":[[2,2,4,11],[6,3,6,10],[22,4,22,6],[25,5,25,7]]}
[]
[]
[]
[]
[]
[]
[null,null,null,"La métrica de Motivación del equipo de trabajo requiere la aplicación de la encuesta de motivación del equipo de trabajo a tres (3) integrantes del equipo seleccionados por el encargado de la evaluación.\nA continuación, se solicitará que según las políticas de su compañía, o para el tipo específico de proyecto que desee evaluar, diligencie el peso (en porcentaje) que cada uno de los aspectos debe tener dentro de la evaluación. Adicionalmente debe seleccionar de la lista desplegable el nivel aceptable para el proyecto (nivel a partir del cual el proyecto tiene un buen desempeño)."]
[]
[]
[null,null,null,null,"MOTIVACIÓN DEL EQUIPO DE TRABAJO",null,null,"PESO (100%)"]
[]
[null,null,null,null,"Situación Laboral",null,null,0.25]
[]
[null,null,null,null,"Ambiente",null,null,0.25]
[]
[null,null,null,null,"Comunicación",null,null,0.25]
[]
[null,null,null,null,"Sistema de Incentivos",null,null,0.25]
[]
[null,null,null,null,"TOTAL EQUIPO DE TRABAJO",null,null,{"$f":"SUM(H12,H14,H16,H18)","v":1}]
[]
[]
[null,null,null,null,"NIVEL ACEPTABLE",null,null,3]
[]
[]
[null,null,null,null,null,{"$f":"IF(SUM($H$12,$H$14,$H$16,$H$18)=100%,\"\",\"Por favor verifique que la suma sea 100%\")","v":""}]

{"sheet":"MOTIVACIÓN DEL EQUIPO","index":21,"n_rows":16,"n_cols":15,"rows_kept":16,"cut":false,"hidden":true,"merged":[[2,2,4,9],[6,3,6,8]]}
[]
[]
[]
[]
[]
[]
[null,null,null,"La parte de la métrica que contempla la motivación del equipo de trabajo, requiere la aplicación de la encuesta de motivación a tres (3) integrantes del equipo seleccionados al azar.\nA continuación, seleccione y diligencie cada una de las encuestas."]
[]
[]
[]
[]
[null,null,null,null,null,null,null,null,null,null,null,null,null,null,"Definición pobre e incompleta"]
[null,null,null,null,null,null,null,null,null,null,null,null,null,null,"Definido con deficiencias serias"]
[null,null,null,null,null,null,null,null,null,null,null,null,null,null,"Definido con algunas deficiencias"]
[null,null,null,null,null,null,null,null,null,null,null,null,null,null,"Definido con deficiencias menores"]
[null,null,null,null,null,null,null,null,null,null,null,null,null,null,"Completamente definido"]

{"sheet":"MOTIVACIÓN 1","index":22,"n_rows":80,"n_cols":20,"rows_kept":80,"cut":false,"hidden":true,"merged":[[2,2,4,21],[6,3,8,20],[11,15,11,17],[11,19,11,20],[13,3,14,5],[13,6,14,14],[13,19,14,20],[14,15,14,17],[16,3,17,5],[16,6,17,14],[16,19,17,20],[17,15,17,17],[19,3,20,5],[19,6,20,14],[19,19,20,20],[20,15,20,17],[22,3,23,5],[22,6,23,13],[22,19,23,20],[23,15,23,17],[25,3,26,5],[25,6,26,13],[25,19,26,20],[26,15,26,17],[28,3,29,5],[28,6,29,13],[28,19,29,20],[29,15,29,17],[31,3,32,5],[31,6,32,13],[31,19,32,20],[32,15,32,17],[34,3,35,5],[34,6,35,13],[34,19,35,20],[35,15,35,17],[41,3,42,5],[41,6,42,14],[41,19,42,20],[42,15,42,17],[44,3,45,5],[44,6,45,13],[44,19,45,20],[45,15,45,17],[47,3,48,5],[47,6,48,13],[47,19,48,20],[48,15,48,17],[50,3,51,5],[50,6,51,13],[50,19,51,20],[51,15,51,17],[53,3,54,5],[53,6,54,13],[53,19,54,20],[54,15,54,17],[62,3,63,5],[62,6,63,13],[62,14,63,14],[62,19,63,20],[63,15,63,17],[59,3,60,5],[59,6,60,13],[59,14,60,14],[59,19,60,20],[60,15,60,17],[68,3,69,5],[68,6,69,13],[68,14,69,14],[68,19,69,20],[69,15,69,17],[65,3,66,5],[65,6,66,13],[65,14,66,14],[65,19,66,20],[66,15,66,17],[76,3,77,5],[76,6,77,13],[76,14,77,14],[76,19,77,20],[77,15,77,17],[73,3,74,5],[73,6,74,13],[73,14,74,14],[73,19,74,20],[74,15,74,17],[79,3,80,5],[79,6,80,13],[79,14,80,14],[79,19,80,20],[80,15,80,17]]}
[]
[]
[]
[]
[]
[]
[null,null,null,"Creemos que su opinión es esencial para conocer el estado real del proyecto, por este motivo ponemos a su disposición la siguiente encuesta, mediante la cual usted como integrante del equipo del proyecto puede transmitirnos información sobre su compromiso con el mismo, valoración relacionada con las condiciones de trabajo, el ambiente laboral, y por lo tanto con su motivación para desarrollar las funciones que le son asignadas."]
[]
[]
[]
[]
[null,null,null,1,null,null,"SITUACIÓN LABORAL",null,null,null,null,null,null,null,null,"CALIFICACIÓN",null,null,null,"OBSERVACIONES"]
[]
[null,null,null,1.1000000000000001,null,null,"¿Sus funciones y responsabilidades están bien definidas?"]
[]
[]
[null,null,null,"1.2.",null,null,"¿Recibe retroalimentación sobre el desarrollo de su trabajo?"]
[]
[]
[null,null,null,"1.3.",null,null,"¿Conoce las tareas que desempeñan las otras áreas que participan en el proyecto?"]
[]
[]
[null,null,null,"1.4.",null,null,"¿Conoce y entiende los objetivos del proyecto?"]
[]
[]
[null,null,null,"1.5.",null,null,"¿Conoce los procedimientos internos establecidos para el desarrollo del proyecto?"]
[]
[]
[null,null,null,"1.6.",null,null,"¿La gerencia le proporciona las herramientas necesarias para realizar su trabajo?"]
[]
[]
[null,null,null,"1.7.",null,null,"¿Considera que tiene autonomía para desarrollar sus funciones y tomar decisiones?"]
[]
[]
[null,null,null,"1.8.",null,null,"¿Considera que su líder cumple las funciones correspondientes a su cargo?"]
[]
[]
[]
[]
[null,null,null,2,null,null,"AMBIENTE",null,null,null,null,null,null,null,null,null,"CALIFICACIÓN"]
[]
[null,null,null,"2.1.",null,null,"¿Es gratificante para usted trabajar en un proyecto reconocido en la organización?"]
[]
[]
[null,null,null,"2.2.",null,null,"¿La relación con sus compañeros de trabajo es buena?"]
[]
[]
[null,null,null,"2.3.",null,null,"¿Se siente parte de un equipo de trabajo?"]
[]
[]
[null,null,null,"2.4.",null,null,"¿Se siente participe de los éxitos y fracasos del proyecto?"]
[]
[]
[null,null,null,"2.5.",null,null,"¿Le resulta fácil expresar su opinión en su grupo de trabajo?"]
[]
[]
[]
[null,null,null,3,null,null,"COMUNICACIÓN"]
[]
[null,null,null,"3.1.",null,null,"¿El gerente del proyecto se comunica constantemente con el equipo de trabajo?"]
[]
[]
[null,null,null,"3.2.",null,null,"¿La comunicación interna dentro de su área de trabajo funciona correctamente?"]
[]
[]
[null,null,null,"3.3.",null,null,"¿El gerente se encuentra generalmente disponible para atender a los integrantes del equipo?"]
[]
[]
[null,null,null,"3.4.",null,null,"¿Es usted invitado a reuniones periódicas con el fin de conocer el estado del proyecto?"]
[]
[]
[null,null,null,4,null,null,"SISTEMA DE INCENTIVOS"]
[]
[null,null,null,"4.1.",null,null,"¿La gerencia posee un programa de incentivos para el personal del proyecto?"]
[]
[]
[null,null,null,"4.2.",null,null,"¿Recibe la formación necesaria para desempeñar correctamente su trabajo?"]
[]
[]
[null,null,null,"4.3.",null,null,"¿Su jefe esta satisfecho con su labor y lo expresa a través de reconocimiento público? "]

{"sheet":"MOTIVACIÓN 2","index":23,"n_rows":80,"n_cols":20,"rows_kept":80,"cut":false,"hidden":true,"merged":[[2,2,4,21],[6,3,8,20],[11,15,11,17],[11,19,11,20],[13,3,14,5],[13,6,14,14],[13,19,14,20],[14,15,14,17],[16,3,17,5],[16,6,17,14],[16,19,17,20],[17,15,17,17],[19,3,20,5],[19,6,20,14],[19,19,20,20],[20,15,20,17],[22,3,23,5],[22,6,23,13],[22,19,23,20],[23,15,23,17],[25,3,26,5],[25,6,26,13],[25,19,26,20],[26,15,26,17],[28,3,29,5],[28,6,29,13],[28,19,29,20],[29,15,29,17],[31,3,32,5],[31,6,32,13],[31,19,32,20],[32,15,32,17],[34,3,35,5],[34,6,35,13],[34,19,35,20],[35,15,35,17],[41,3,42,5],[41,6,42,14],[41,19,42,20],[42,15,42,17],[44,3,45,5],[44,6,45,13],[44,19,45,20],[45,15,45,17],[47,3,48,5],[47,6,48,13],[47,19,48,20],[48,15,48,17],[50,3,51,5],[50,6,51,13],[50,19,51,20],[51,15,51,17],[53,3,54,5],[53,6,54,13],[53,19,54,20],[54,15,54,17],[62,3,63,5],[62,6,63,13],[62,14,63,14],[62,19,63,20],[63,15,63,17],[59,3,60,5],[59,6,60,13],[59,14,60,14],[59,19,60,20],[60,15,60,17],[68,3,69,5],[68,6,69,13],[68,14,69,14],[68,19,69,20],[69,15,69,17],[65,3,66,5],[65,6,66,13],[65,14,66,14],[65,19,66,20],[66,15,66,17],[76,3,77,5],[76,6,77,13],[76,14,77,14],[76,19,77,20],[77,15,77,17],[73,3,74,5],[73,6,74,13],[73,14,74,14],[73,19,74,20],[74,15,74,17],[79,3,80,5],[79,6,80,13],[79,14,80,14],[79,19,80,20],[80,15,80,17]]}
[]
[]
[]
[]
[]
[]
[null,null,null,"Creemos que su opinión es esencial para conocer el estado real del proyecto, por este motivo ponemos a su disposición la siguiente encuesta, mediante la cual usted como integrante del equipo del proyecto puede transmitirnos información sobre su compromiso con el mismo, valoración relacionada con las condiciones de trabajo, el ambiente laboral, y por lo tanto con su motivación para desarrollar las funciones que le son asignadas."]
[]
[]
[]
[]
[null,null,null,1,null,null,"SITUACIÓN LABORAL",null,null,null,null,null,null,null,null,"CALIFICACIÓN",null,null,null,"OBSERVACIONES"]
[]
[null,null,null,1.1000000000000001,null,null,"¿Sus funciones y responsabilidades están bien definidas?"]
[]
[]
[null,null,null,"1.2.",null,null,"¿Recibe retroalimentación sobre el desarrollo de su trabajo?"]
[]
[]
[null,null,null,"1.3.",null,null,"¿Conoce las tareas que desempeñan las otras áreas que participan en el proyecto?"]
[]
[]
[null,null,null,"1.4.",null,null,"¿Conoce y entiende los objetivos del proyecto?"]
[]
[]
[null,null,null,"1.5.",null,null,"¿Conoce los procedimientos internos establecidos para el desarrollo del proyecto?"]
[]
[]
[null,null,null,"1.6.",null,null,"¿La gerencia le proporciona las herramientas necesarias para realizar su trabajo?"]
[]
[]
[null,null,null,"1.7.",null,null,"¿Considera que tiene autonomía para desarrollar sus funciones y tomar decisiones?"]
[]
[]
[null,null,null,"1.8.",null,null,"¿Considera que su líder cumple las funciones correspondientes a su cargo?"]
[]
[]
[]
[]
[null,null,null,2,null,null,"AMBIENTE",null,null,null,null,null,null,null,null,null,"CALIFICACIÓN"]
[]
[null,null,null,"2.1.",null,null,"¿Es gratificante para usted trabajar en un proyecto reconocido en la organización?"]
[]
[]
[null,null,null,"2.2.",null,null,"¿La relación con sus compañeros de trabajo es buena?"]
[]
[]
[null,null,null,"2.3.",null,null,"¿Se siente parte de un equipo de trabajo?"]
[]
[]
[null,null,null,"2.4.",null,null,"¿Se siente participe de los éxitos y fracasos del proyecto?"]
[]
[]
[null,null,null,"2.5.",null,null,"¿Le resulta fácil expresar su opinión en su grupo de trabajo?"]
[]
[]
[]
[null,null,null,3,null,null,"COMUNICACIÓN"]
[]
[null,null,null,"3.1.",null,null,"¿El gerente del proyecto se comunica constantemente con el equipo de trabajo?"]
[]
[]
[null,null,null,"3.2.",null,null,"¿La comunicación interna dentro de su área de trabajo funciona correctamente?"]
[]
[]
[null,null,null,"3.3.",null,null,"¿El gerente se encuentra generalmente disponible para atender a los integrantes del equipo?"]
[]
[]
[null,null,null,"3.4.",null,null,"¿Es usted invitado a reuniones periódicas con el fin de conocer el estado del proyecto?"]
[]
[]
[null,null,null,4,null,null,"SISTEMA DE INCENTIVOS"]
[]
[null,null,null,"4.1.",null,null,"¿La gerencia posee un programa de incentivos para el personal del proyecto?"]
[]
[]
[null,null,null,"4.2.",null,null,"¿Recibe la formación necesaria para desempeñar correctamente su trabajo?"]
[]
[]
[null,null,null,"4.3.",null,null,"¿Su jefe esta satisfecho con su labor y lo expresa a través de reconocimiento público? "]

{"sheet":"MOTIVACIÓN 3","index":24,"n_rows":80,"n_cols":20,"rows_kept":80,"cut":false,"hidden":true,"merged":[[2,2,4,21],[6,3,8,20],[11,15,11,17],[11,19,11,20],[13,3,14,5],[13,6,14,14],[13,19,14,20],[14,15,14,17],[16,3,17,5],[16,6,17,14],[16,19,17,20],[17,15,17,17],[19,3,20,5],[19,6,20,14],[19,19,20,20],[20,15,20,17],[22,3,23,5],[22,6,23,13],[22,19,23,20],[23,15,23,17],[25,3,26,5],[25,6,26,13],[25,19,26,20],[26,15,26,17],[28,3,29,5],[28,6,29,13],[28,19,29,20],[29,15,29,17],[31,3,32,5],[31,6,32,13],[31,19,32,20],[32,15,32,17],[34,3,35,5],[34,6,35,13],[34,19,35,20],[35,15,35,17],[41,3,42,5],[41,6,42,14],[41,19,42,20],[42,15,42,17],[44,3,45,5],[44,6,45,13],[44,19,45,20],[45,15,45,17],[47,3,48,5],[47,6,48,13],[47,19,48,20],[48,15,48,17],[50,3,51,5],[50,6,51,13],[50,19,51,20],[51,15,51,17],[53,3,54,5],[53,6,54,13],[53,19,54,20],[54,15,54,17],[62,3,63,5],[62,6,63,13],[62,14,63,14],[62,19,63,20],[63,15,63,17],[59,3,60,5],[59,6,60,13],[59,14,60,14],[59,19,60,20],[60,15,60,17],[68,3,69,5],[68,6,69,13],[68,14,69,14],[68,19,69,20],[69,15,69,17],[65,3,66,5],[65,6,66,13],[65,14,66,14],[65,19,66,20],[66,15,66,17],[76,3,77,5],[76,6,77,13],[76,14,77,14],[76,19,77,20],[77,15,77,17],[73,3,74,5],[73,6,74,13],[73,14,74,14],[73,19,74,20],[74,15,74,17],[79,3,80,5],[79,6,80,13],[79,14,80,14],[79,19,80,20],[80,15,80,17]]}
[]
[]
[]
[]
[]
[]
[null,null,null,"Creemos que su opinión es esencial para conocer el estado real del proyecto, por este motivo ponemos a su disposición la siguiente encuesta, mediante la cual usted como integrante del equipo del proyecto puede transmitirnos información sobre su compromiso con el mismo, valoración relacionada con las condiciones de trabajo, el ambiente laboral, y por lo tanto con su motivación para desarrollar las funciones que le son asignadas."]
[]
[]
[]
[]
[null,null,null,1,null,null,"SITUACIÓN LABORAL",null,null,null,null,null,null,null,null,"CALIFICACIÓN",null,null,null,"OBSERVACIONES"]
[]
[null,null,null,1.1000000000000001,null,null,"¿Sus funciones y responsabilidades están bien definidas?"]
[]
[]
[null,null,null,"1.2.",null,null,"¿Recibe retroalimentación sobre el desarrollo de su trabajo?"]
[]
[]
[null,null,null,"1.3.",null,null,"¿Conoce las tareas que desempeñan las otras áreas que participan en el proyecto?"]
[]
[]
[null,null,null,"1.4.",null,null,"¿Conoce y entiende los objetivos del proyecto?"]
[]
[]
[null,null,null,"1.5.",null,null,"¿Conoce los procedimientos internos establecidos para el desarrollo del proyecto?"]
[]
[]
[null,null,null,"1.6.",null,null,"¿La gerencia le proporciona las herramientas necesarias para realizar su trabajo?"]
[]
[]
[null,null,null,"1.7.",null,null,"¿Considera que tiene autonomía para desarrollar sus funciones y tomar decisiones?"]
[]
[]
[null,null,null,"1.8.",null,null,"¿Considera que su líder cumple las funciones correspondientes a su cargo?"]
[]
[]
[]
[]
[null,null,null,2,null,null,"AMBIENTE",null,null,null,null,null,null,null,null,null,"CALIFICACIÓN"]
[]
[null,null,null,"2.1.",null,null,"¿Es gratificante para usted trabajar en un proyecto reconocido en la organización?"]
[]
[]
[null,null,null,"2.2.",null,null,"¿La relación con sus compañeros de trabajo es buena?"]
[]
[]
[null,null,null,"2.3.",null,null,"¿Se siente parte de un equipo de trabajo?"]
[]
[]
[null,null,null,"2.4.",null,null,"¿Se siente participe de los éxitos y fracasos del proyecto?"]
[]
[]
[null,null,null,"2.5.",null,null,"¿Le resulta fácil expresar su opinión en su grupo de trabajo?"]
[]
[]
[]
[null,null,null,3,null,null,"COMUNICACIÓN"]
[]
[null,null,null,"3.1.",null,null,"¿El gerente del proyecto se comunica constantemente con el equipo de trabajo?"]
[]
[]
[null,null,null,"3.2.",null,null,"¿La comunicación interna dentro de su área de trabajo funciona correctamente?"]
[]
[]
[null,null,null,"3.3.",null,null,"¿El gerente se encuentra generalmente disponible para atender a los integrantes del equipo?"]
[]
[]
[null,null,null,"3.4.",null,null,"¿Es usted invitado a reuniones periódicas con el fin de conocer el estado del proyecto?"]
[]
[]
[null,null,null,4,null,null,"SISTEMA DE INCENTIVOS"]
[]
[null,null,null,"4.1.",null,null,"¿La gerencia posee un programa de incentivos para el personal del proyecto?"]
[]
[]
[null,null,null,"4.2.",null,null,"¿Recibe la formación necesaria para desempeñar correctamente su trabajo?"]
[]
[]
[null,null,null,"4.3.",null,null,"¿Su jefe esta satisfecho con su labor y lo expresa a través de reconocimiento público? "]

{"sheet":"RESULTADOS MOTIVACIÓN","index":25,"n_rows":55,"n_cols":10,"rows_kept":55,"cut":false,"hidden":true,"merged":[[2,2,4,9],[5,2,5,7]]}
[]
[]
[]
[]
[]
[null,null,"TOTAL MOTIVACIÓN EQUIPO DE TRABAJO",null,null,null,null,null,null,{"$f":"(H9*I9+H27*I27+H39*I39+H49*I49)","v":3.1022222222222227}]
[]
[null,null,"COD.","DESCRIPCIÓN","C1","C2","C3","SUBTOTAL","FACTOR","PUNTAJE"]
[null,null,1,"SITUACIÓN LABORAL",null,null,null,{"$f":"AVERAGE(H11,H13,H15,H17,H19,H21,H23,H25)","v":3.4999999999999996},0.4]
[]
[null,null,1.1000000000000001,"¿Sus funciones y responsabilidades están bien definidas?",1,5,5,{"$f":"AVERAGE(E11:G11)","v":3.6666666666666665}]
[]
[null,null,"1.2.","¿Recibe retroalimentación sobre el desarrollo de su trabajo?",5,5,5,{"$f":"AVERAGE(E13:G13)","v":5}]
[]
[null,null,"1.3.","¿Conoce las tareas que desempeñan las otras áreas que participan en el proyecto?",5,5,5,{"$f":"AVERAGE(E15:G15)","v":5}]
[]
[null,null,"1.4.","¿Conoce y entiende los objetivos del proyecto?",1,5,5,{"$f":"AVERAGE(E17:G17)","v":3.6666666666666665}]
[]
[null,null,"1.5.","¿Conoce los procedimientos internos establecidos para el desarrollo del proyecto?",5,1,5,{"$f":"AVERAGE(E19:G19)","v":3.6666666666666665}]
[]
[null,null,"1.6.","¿La gerencia le proporciona las herramientas necesarias para realizar su trabajo?",1,1,5,{"$f":"AVERAGE(E21:G21)","v":2.3333333333333335}]
[]
[null,null,"1.7.","¿Considera que tiene autonomía para desarrollar sus funciones y tomar decisiones?",1,1,5,{"$f":"AVERAGE(E23:G23)","v":2.3333333333333335}]
[]
[null,null,"1.8.","¿Considera que su líder cumple las funciones correspondientes a su cargo?",1,1,5,{"$f":"AVERAGE(E25:G25)","v":2.3333333333333335}]
[]
[null,null,2,"AMBIENTE",null,null,null,{"$f":"AVERAGE(H29,H31,H33,H35,H37)","v":2.0666666666666669},0.2]
[]
[null,null,"2.1.","¿Es gratificante para usted trabajar en un proyecto reconocido en la organización?",1,1,5,{"$f":"AVERAGE(E29:G29)","v":2.3333333333333335}]
[]
[null,null,"2.2.","¿La relación con sus compañeros de trabajo es buena?",1,1,5,{"$f":"AVERAGE(E31:G31)","v":2.3333333333333335}]
[]
[null,null,"2.3.","¿Se siente parte de un equipo de trabajo?",1,1,1,{"$f":"AVERAGE(E33:G33)","v":1}]
[]
[null,null,"2.4.","¿Se siente participe de los éxitos y fracasos del proyecto?",1,5,1,{"$f":"AVERAGE(E35:G35)","v":2.3333333333333335}]
[]
[null,null,"2.5.","¿Le resulta fácil expresar su opinión en su grupo de trabajo?",1,5,1,{"$f":"AVERAGE(E37:G37)","v":2.3333333333333335}]
[]
[null,null,3,"COMUNICACIÓN",null,null,null,{"$f":"AVERAGE(H41,H43,H45,H47)","v":3.6666666666666665},0.2]
[]
[null,null,"3.1.","¿El gerente del proyecto se comunica constantemente con el equipo de trabajo?",1,5,5,{"$f":"AVERAGE(E41:G41)","v":3.6666666666666665}]
[]
[null,null,"3.2.","¿La comunicación interna dentro de su área de trabajo funciona correctamente?",1,5,5,{"$f":"AVERAGE(E43:G43)","v":3.6666666666666665}]
[]
[null,null,"3.3.","¿El gerente se encuentra generalmente disponible para atender a los integrantes del equipo?",5,1,5,{"$f":"AVERAGE(E45:G45)","v":3.6666666666666665}]
[]
[null,null,"3.4.","¿Es usted invitado a reuniones periódicas con el fin de conocer el estado del proyecto?",5,1,5,{"$f":"AVERAGE(E47:G47)","v":3.6666666666666665}]
[]
[null,null,4,"SISTEMA DE INCENTIVOS",null,null,null,{"$f":"AVERAGE(H51,H53,H55)","v":2.7777777777777781},0.2]
[]
[null,null,"4.1.","¿La gerencia posee un programa de incentivos para el personal del proyecto?",5,5,1,{"$f":"AVERAGE(E51:G51)","v":3.6666666666666665}]
[]
[null,null,"4.2.","¿Recibe la formación necesaria para desempeñar correctamente su trabajo?",5,1,1,{"$f":"AVERAGE(E53:G53)","v":2.3333333333333335}]
[]
[null,null,"4.3.","¿Su jefe esta satisfecho con su labor y lo expresa a través de reconocimiento público? ",1,1,5,{"$f":"AVERAGE(E55:G55)","v":2.3333333333333335}]

{"sheet":"RESULTADOS GLOBALES","index":26,"n_rows":137,"n_cols":23,"rows_kept":137,"cut":false,"hidden":true,"merged":[[133,4,133,5],[136,4,136,5],[111,4,111,5],[122,4,122,5],[124,4,124,5],[127,4,127,5],[130,4,130,5],[116,2,116,17],[108,4,108,5],[105,4,105,5],[102,4,102,5],[99,4,99,5],[97,4,97,5],[70,12,70,15],[69,12,69,15],[68,12,68,15],[67,12,67,15],[24,12,24,13],[57,5,57,7],[90,2,90,17],[8,2,8,17],[48,2,48,17],[64,2,64,17],[20,4,20,5],[19,4,19,5],[18,4,18,5],[17,4,17,5],[16,4,16,5],[15,4,15,5],[14,4,14,5],[13,4,13,5],[12,4,12,5],[11,4,11,5],[10,4,10,5],[10,12,10,13],[61,5,61,7],[22,4,22,5],[26,4,26,15],[51,4,51,7],[51,9,51,11],[51,13,51,14],[61,10,61,11],[61,8,61,9],[60,10,60,11],[60,8,60,9],[59,10,59,11],[59,8,59,9],[60,5,60,7],[59,5,59,7],[58,5,58,7],[24,5,24,8],[24,9,24,11],[54,5,54,11],[55,5,56,7],[55,8,55,11],[58,10,58,11],[58,8,58,9],[57,10,57,11],[57,8,57,9],[56,10,56,11],[56,8,56,9],[70,5,70,7],[70,8,70,10],[69,8,69,10],[67,5,67,7],[68,5,68,7],[68,8,68,10],[67,8,67,10],[69,5,69,7],[2,2,2,17],[7,3,7,16],[3,4,3,16],[4,4,4,16],[6,5,6,7],[5,5,5,7],[5,10,5,11]]}
[]
[]
[]
[null,null,null,"Proyecto:",{"$f":"+INICIO!E7","v":"PROYECTO XXXXXXX XXXXXXXXXXXX"}]
[null,null,null,"Empresa:",{"$f":"+INICIO!E9","v":"EMPRESA XXXXXXXXXXX XXXXXXXXXXX"}]
[null,null,null,"Fecha inicio:",null,{"$f":"+INICIO!E11","v":"1900-01-01"},null,null,"Fecha estimada de fin:",null,{"$f":"+INICIO!G11","v":"1901-01-01"}]
[null,null,null,"Fecha aplicación diagnóstico:",null,{"$f":"+INICIO!E13","v":"XX/XX/XXXX"}]
[null,null,null,"A continuación se presenta el resumen de los resultados de la herramienta de diagnóstico de proyectos.\nSe presentan los resultados de cada una de las cuatro partes y algunas gráficas al respecto para facilitar el análisis de los mismos."]
[null,null,"NIVEL DE DEFINICIÓN DEL PROYECTO"]
[]
[null,null,null,null,"DESCRIPCIÓN",null,null,"RESULTADO",null,"ACEPTABLE",null,"MÁXIMO","ESTADO"]
[null,null,null,null,"1.   Integración",null,null,{"$f":"+'RESULTADOS DEFINICIÓN'!R11","v":0},null,{"$f":"+'RESULTADOS DEFINICIÓN'!U11","v":50},{"$f":"+J12*2/3","v":33.333333333333336},{"$f":"+'RESULTADOS DEFINICIÓN'!W11","v":50},null,{"$f":"+H12","v":0}]
[null,null,null,null,"2.   Alcance",null,null,{"$f":"+'RESULTADOS DEFINICIÓN'!R33","v":0},null,{"$f":"+'RESULTADOS DEFINICIÓN'!U33","v":49.999999999999993},{"$f":"+J13*2/3","v":33.333333333333329},{"$f":"+'RESULTADOS DEFINICIÓN'!W33","v":50},null,{"$f":"+H13","v":0}]
[null,null,null,null,"3.   Tiempo",null,null,{"$f":"+'RESULTADOS DEFINICIÓN'!R67","v":0},null,{"$f":"+'RESULTADOS DEFINICIÓN'!U67","v":49.999999999999993},33.333333333333329,{"$f":"+'RESULTADOS DEFINICIÓN'!W67","v":50},null,0]
[null,null,null,null,"4.   Costos",null,null,{"$f":"+'RESULTADOS DEFINICIÓN'!R112","v":0},null,{"$f":"+'RESULTADOS DEFINICIÓN'!U112","v":49.999999999999993},33.333333333333329,{"$f":"+'RESULTADOS DEFINICIÓN'!W112","v":50},null,0]
[null,null,null,null,"5.   Calidad",null,null,{"$f":"+'RESULTADOS DEFINICIÓN'!R138","v":0},null,{"$f":"+'RESULTADOS DEFINICIÓN'!U138","v":50},33.333333333333336,{"$f":"+'RESULTADOS DEFINICIÓN'!W138","v":50},null,0]
[null,null,null,null,"6.   Riesgos",null,null,{"$f":"+'RESULTADOS DEFINICIÓN'!R160","v":0},null,{"$f":"+'RESULTADOS DEFINICIÓN'!U160","v":50.000000000000007},33.333333333333336,{"$f":"+'RESULTADOS DEFINICIÓN'!W160","v":50},null,0]
[null,null,null,null,"7.   Stakeholders",null,null,{"$f":"+'RESULTADOS DEFINICIÓN'!R180","v":0},null,{"$f":"+'RESULTADOS DEFINICIÓN'!U180","v":50},33.333333333333336,{"$f":"+'RESULTADOS DEFINICIÓN'!W180","v":50},null,0]
[null,null,null,null,"8.   Comunicaciones",null,null,{"$f":"+'RESULTADOS DEFINICIÓN'!R198","v":0},null,{"$f":"+'RESULTADOS DEFINICIÓN'!U198","v":50},33.333333333333336,{"$f":"+'RESULTADOS DEFINICIÓN'!W198","v":50},null,0]
[null,null,null,null,"9.   Adquisiciones",null,null,{"$f":"+'RESULTADOS DEFINICIÓN'!R226","v":0},null,{"$f":"+'RESULTADOS DEFINICIÓN'!U226","v":49.999999999999993},33.333333333333329,{"$f":"+'RESULTADOS DEFINICIÓN'!W226","v":50},null,0]
[null,null,null,null,"10. Recursos Humanos",null,null,{"$f":"+'RESULTADOS DEFINICIÓN'!R252","v":0},null,{"$f":"+'RESULTADOS DEFINICIÓN'!U252","v":49.999999999999993},33.333333333333329,{"$f":"+'RESULTADOS DEFINICIÓN'!W252","v":50},null,0]
[]
[null,null,null,null,"TOTAL",null,null,{"$f":"SUM(H12:H21)","v":0},null,{"$f":"SUM(J12:J21)","v":500},333.33333333333331,{"$f":"SUM(L12:L21)","v":500},null,{"$f":"+H23","v":0}]
[]
[null,null,null,null,null,"NIVEL DE DEFINICIÓN",null,null,null,{"$f":"+H23","v":0},null,null,{"$f":"+J25","v":0}]
[]
[null,null,null,null,"REPRESENTACIÓN GRÁFICA DE LOS RESULTADOS POR ÁREA"]
[]
[]
[]
[]
[]
[]
[]
[]
[]
[]
[]
[]
[]
[]
[]
[]
[]
[]
[]
[]
[]
[null,null,"NIVEL GLOBAL DE RIESGO DEL PROYECTO"]
[]
[]
[null,null,null,null,"NIVEL DE RIESGO GLOBAL",null,null,null,null,{"$f":"'Caso 1'!F50","v":"No definido"},null,null,null,{"$f":"'Caso 1'!G50","v":"   "}]
[]
[null,null,null,null,"*Valor tomado del último caso de matriz de riesgo seleccionado.",null,null,null,null,"Último caso seleccionado: CASO 1"]
[null,null,null,null,null,"CRITERIOS DE ACEPTACION DEL RIESGO",null,null,null,null,null,null,null,null,null,null,null,null,null,null,"Aceptable",0]
[null,null,null,null,null,"Nivel",null,null,"Valor número",null,null,null,null,null,null,null,null,null,null,null,"Tolerable"]
[null,null,null,null,null,null,null,null,"Minimo",null,"Máximo",null,null,null,null,null,null,null,null,null,"Moderado"]
[null,null,null,null,null,{"$f":"+U55","v":"Aceptable"},null,null,{"$f":"+V55","v":0},null,{"$f":"+W55","v":0},null,null,null,null,null,null,null,null,null,"Intolerable"]
[null,null,null,null,null,{"$f":"+U56","v":"Tolerable"},null,null,{"$f":"+V56","v":0},null,{"$f":"+W56","v":0},null,null,null,null,null,null,null,null,null,"Inadmisible",null,0]
[null,null,null,null,null,{"$f":"+U57","v":"Moderado"},null,null,{"$f":"+V57","v":0},null,{"$f":"+W57","v":0}]
[null,null,null,null,null,{"$f":"+U58","v":"Intolerable"},null,null,0,null,{"$f":"+W58","v":0}]
[null,null,null,null,null,{"$f":"+U59","v":"Inadmisible"},null,null,{"$f":"+V59","v":0},null,{"$f":"+W59","v":0}]
[]
[]
[null,null,"INDICE DE DESEMPEÑO DEL PROYECTO"]
[]
[]
[null,null,null,null,null,"Variación del costo",null,null,{"$f":"IFERROR('Valos Ganado'!F16,\"No definido\")","v":"No definido"},null,null,null,"Medida de la diferencia entre el Valor Ganado y el Costo Real"]
[null,null,null,null,null,"Variación de la programación",null,null,{"$f":"IFERROR('Valos Ganado'!F17,\"No definido\")","v":"No definido"},null,null,null,"medida de la diferencia entre el Valor Ganado y el Valor Planeado"]
[null,null,null,null,null,"Indice de Rendimiento de Costos",null,null,{"$f":"IFERROR('Valos Ganado'!I13,\"0\")","v":"0"},null,null,null,"Relación de eficacia entre el costo presupuestado del alcance realizado y el costo real del mismo",null,null,null,null,null,null,null,{"$f":"+DESEMPEÑO!K27","v":0}]
[null,null,null,null,null,"Indice de Rendimiento en Programación",null,null,{"$f":"IFERROR('Valos Ganado'!I14,\"0\")","v":"0"},null,null,null,"Eficacia entre el costo presupuestado del alcance realizado y el costo planeado al corte.",null,null,null,null,null,null,null,{"$f":"+DESEMPEÑO!K29","v":0}]
[]
[]
[]
[]
[]
[]
[]
[]
[]
[]
[]
[]
[]
[]
[]
[]
[]
[]
[]
[null,null,"NIVEL DE SATISFACCIÓN DEL CLIENTE"]
[]
[]
[]
[]
[null,null,null,null,"NIVEL DE SATISFACCIÓN DEL CLIENTE"]
[]
[null,null,null,null,"DESCRIPCIÓN",null,null,"PUNTAJE","ACEPTABLE","ESTADO"]
[]
[null,null,null,null,{"$f":"PROPER('RESULTADOS SATISFACCIÓN'!D9)","v":"Gerencia De Proyecto"},null,null,{"$f":"+'RESULTADOS SATISFACCIÓN'!H9","v":1},{"$f":"+SATISFACCIÓN!$H$23","v":5},{"$f":"+H100","v":1}]
[]
[]
[null,null,null,null,{"$f":"PROPER('RESULTADOS SATISFACCIÓN'!D37)","v":"Producto Del Proyecto"},null,null,{"$f":"+'RESULTADOS SATISFACCIÓN'!H37","v":0.8},{"$f":"+SATISFACCIÓN!$H$23","v":5},{"$f":"+H103","v":0.8},null,{"$f":"+E100","v":"Gerencia De Proyecto"},{"$f":"+H100","v":1},{"$f":"+I100","v":5},{"$f":"+N103*2/3","v":3.3333333333333335}]
[null,null,null,null,null,null,null,null,null,null,null,{"$f":"+E103","v":"Producto Del Proyecto"},{"$f":"+H103","v":0.8},{"$f":"+I103","v":5},{"$f":"+N104*2/3","v":3.3333333333333335}]
[null,null,null,null,null,null,null,null,null,null,null,{"$f":"+E106","v":"Equipo De Trabajo"},{"$f":"+H106","v":1},{"$f":"+I106","v":5},{"$f":"+N105*2/3","v":3.3333333333333335}]
[null,null,null,null,{"$f":"PROPER('RESULTADOS SATISFACCIÓN'!D47)","v":"Equipo De Trabajo"},null,null,{"$f":"+'RESULTADOS SATISFACCIÓN'!H47","v":1},{"$f":"+SATISFACCIÓN!$H$23","v":5},{"$f":"+H106","v":1},null,{"$f":"+E109","v":"Gestión De La Información"},{"$f":"+H109","v":2.3333333333333335},{"$f":"+I109","v":5},{"$f":"+N106*2/3","v":3.3333333333333335}]
[]
[]
[null,null,null,null,{"$f":"PROPER('RESULTADOS SATISFACCIÓN'!D61)","v":"Gestión De La Información"},null,null,{"$f":"+'RESULTADOS SATISFACCIÓN'!H61","v":2.3333333333333335},{"$f":"+SATISFACCIÓN!$H$23","v":5},{"$f":"+H109","v":2.3333333333333335}]
[]
[]
[null,null,null,null,"TOTAL",null,null,{"$f":"'RESULTADOS SATISFACCIÓN'!$J$6","v":1.1866666666666668},{"$f":"+SATISFACCIÓN!$H$23","v":5},{"$f":"+H112","v":1.1866666666666668}]
[]
[]
[]
[]
[null,null,"NIVEL DE MOTIVACIÓN DEL EQUIPO DE TRABAJO"]
[]
[]
[]
[null,null,null,null,"NIVEL DE MOTIVACIÓN DEL EQUIPO DE TRABAJO"]
[]
[null,null,null,null,"DESCRIPCIÓN",null,null,"PUNTAJE","ACEPTABLE","ESTADO"]
[]
[null,null,null,null,{"$f":"PROPER('RESULTADOS MOTIVACIÓN'!D9)","v":"Situación Laboral"},null,null,{"$f":"+'RESULTADOS MOTIVACIÓN'!H9","v":3.4999999999999996},{"$f":"+MOTIVACIÓN!H23","v":3},{"$f":"+H125","v":3.4999999999999996}]
[]
[null,null,null,null,null,null,null,null,null,null,null,{"$f":"+E125","v":"Situación Laboral"},{"$f":"+H125","v":3.4999999999999996},{"$f":"+I125","v":3},{"$f":"+N127*2/3","v":2}]
[null,null,null,null,{"$f":"+PROPER('RESULTADOS MOTIVACIÓN'!D27)","v":"Ambiente"},null,null,{"$f":"+'RESULTADOS MOTIVACIÓN'!H27","v":2.0666666666666669},{"$f":"+MOTIVACIÓN!H23","v":3},{"$f":"+H128","v":2.0666666666666669},null,{"$f":"+E128","v":"Ambiente"},{"$f":"+H128","v":2.0666666666666669},{"$f":"+I128","v":3},{"$f":"+N128*2/3","v":2}]
[null,null,null,null,null,null,null,null,null,null,null,{"$f":"+E131","v":"Comunicación"},{"$f":"+H131","v":3.6666666666666665},{"$f":"+I131","v":3},{"$f":"+N129*2/3","v":2}]
[null,null,null,null,null,null,null,null,null,null,null,{"$f":"+E134","v":"Sistema De Incentivos"},{"$f":"+H134","v":2.7777777777777781},{"$f":"+I134","v":3},{"$f":"+N130*2/3","v":2}]
[null,null,null,null,{"$f":"PROPER('RESULTADOS MOTIVACIÓN'!D39)","v":"Comunicación"},null,null,{"$f":"+'RESULTADOS MOTIVACIÓN'!H39","v":3.6666666666666665},{"$f":"+MOTIVACIÓN!H23","v":3},{"$f":"+H131","v":3.6666666666666665}]
[]
[]
[null,null,null,null,{"$f":"+PROPER('RESULTADOS MOTIVACIÓN'!D49)","v":"Sistema De Incentivos"},null,null,{"$f":"+'RESULTADOS MOTIVACIÓN'!H49","v":2.7777777777777781},{"$f":"+MOTIVACIÓN!H23","v":3},{"$f":"+H134","v":2.7777777777777781}]
[]
[]
[null,null,null,null,"TOTAL",null,null,{"$f":"+'RESULTADOS MOTIVACIÓN'!J6","v":3.1022222222222227},{"$f":"+MOTIVACIÓN!H23","v":3},{"$f":"+H137","v":3.1022222222222227}]